{"text_format":"1","workbook":"xlsx","n_sheets":4,"sheets":["Instrukcja merytoryczna","Informacje nt Ankiety","Instrukcja techniczna","Dane"],"not_rendered":{"charts":0,"images":1,"macros":1,"external_links":0,"defined_names":4,"comments":1,"pivot_tables":0},"unopened":[],"bounds":{"document_bytes":16777216,"sheet_cells":100000,"rows_first":2000,"rows_last":500,"rows_between":2000,"halvings":0,"cell_chars":16384,"cell_head_chars":4096},"cells_cut":0,"cells_raw":0,"read":"whole","date_system":"1900"}

{"sheet":"Instrukcja merytoryczna","index":0,"n_rows":30,"n_cols":2,"rows_kept":30,"cut":false,"hidden":false,"merged":[]}
[]
[null,"Przejdź do formularza Ankiety"]
[]
[null,"Wyjaśnienia dodatkowe dotyczące zwartości merytorycznej ankiety"]
[]
[null,"W OBU ANKIETACH (finansowanie udzielone i otrzymane) należy raportować WSZYSTKIE transakcje zawarte w celu finansowania działalności w podziale na kategorie wymienione w ankiecie. Między ankietami nie powinno być różnic w zakresie raportowanych danych."]
[]
[null,"Celem prowadzonego badania jest zebranie informacji nt. przepływów finansowych służących FINANSOWANIU DZIAŁALNOŚCI między Bankami/Oddziałami a podmiotami powiązanymi. Dlatego to po stronie Banku/Oddziału leży decyzja, czy daną transakcję można uznać jako formę finansowania działalności."]
[]
[null,"Bilans"]
[null,"BL - tylko lokaty i kredyt"]
[null,"BP - wszystkie inne instrumenty bilansowe,  które bank stosuje do finansowania działalności"]
[]
[null,"Pozabilans"]
[null,"PL - tylko linie kredytowe"]
[null,"PG - tylko gwarancje"]
[null,"PT - wszystkie instrumenty pozabilansowe (w tym pochodne), wykorzystane do finansowania działalności"]
[]
[null,"W celu unifikacji danych prosimy o ich przekazywanie: "]
[]
[null,"według terminów zapadalności"]
[null,"według wartości nominalnej."]
[null,"w obu plikach maja być podane wszystkie transakcje pozabilansowe, które służą finansowaniu bez ograniczania ich rodzajów"]
[null,"nie należy w tabeli ujmować sald rachunków nostro"]
[null,"należy ująć lokaty jednodniowe oraz O/N"]
[]
[null,"Dodatkowo wyjaśniamy, że:"]
[]
[null,"a) w przypadku Banku - w kolumnie 9 w arkuszu dane należy zaznaczyć \"T\" gdy transakcja dotyczy podmiotu pierwotnie dominującego - inaczej \"matki\""]
[null,"b) w przypadku Oddziału Instytucji Kredytowej - W kolumnie 9 w arkuszu dane należy zaznaczyć \"T\" gdy transakcja dotyczy podmiotu pierwotnie dominującego wobec jednostki, do której należy Oddział"]

{"sheet":"Informacje nt Ankiety","index":1,"n_rows":86,"n_cols":2,"rows_kept":86,"cut":false,"hidden":false,"merged":[]}
[]
[null,"Przejdź do formularza Ankiety"]
[]
[null,"Informacje ogólne"]
[]
[null,"Informację dotyczącą finansowania OTRZYMANEGO należy przekazywać miesięcznie:"]
[]
[null,"zarówno w przypadku Banku jak też Oddziału Instytucji Kredytowej:"]
[null,"za ostatni dzień roboczy danego miesiąca (w terminie 5 dni roboczych)"]
[]
[null,"Formularz obowiązuje od 1 lutego 2014 r. (pierwsza wysyłka do UKNF do 5 marca 2014 r."]
[]
[null,"Zakres danych w porównaniu z poprzednim cyklem ankiety nie uległ zmianie, w związku ze zmianą częstotliwości przekazywania plików do UKNF zaistniała konieczność dodania dodatkowej kolumny (DataTMP) rozróżniającej daty rekordów."]
[null,"Przy okazji formularz został rozbudowany o liczne algorytmy kontrolne oraz szczegółowe instrukcje mające na celu wyeliminowanie błędów powtarzających się na etapie wypełniania sprawozdania przez Banki / Oddziały"]
[]
[null,"Kolorystyka arkusza Dane"]
[]
[null,"Pola żółte oznaczają ważne wskazówki techniczne, których przestrzeganie zapewni poprawne wypełnienie formularza."]
[]
[null,"Pola zielone (kolor tła tej komórki) pozostają do wypełnienia przez Bank / Oddział"]
[null,"Jeżeli zielone pole mimo wypełnienia nie zmieni koloru na jasny żółty (kolor tła tej komórki) będzie to sygnalizować błąd"]
[]
[null,"Pola czerwone (kolor tła tej komórki) sygnalizują błędy - szczegóły błędów można sprawdzić w obszarach właściwych algorytmów kontrolnych"]
[]
[null,"Poprawnie wypełnione pole zmienia kolor na jasny żółty (kolor tła tej komórki)"]
[]
[null,"Wskazówki jak wypełnić formularz"]
[]
[null,"W celu poprawnego wypełnienia arkusza Dane należy OBLIGATORYJNIE wypełnić 3 pola:"]
[null,"Komórka G4 - wybrać z listy rozwijanej właściwy bank - system nie akceptuje wpisów spoza listy"]
[null,"Komórki H4 - wybrać z listy rozwijanej właściwy rok - system nie akceptuje wpisów spoza listy"]
[null,"Komórka I4 - wybrać z listy rozwijanej właściwy miesiąc - system nie akceptuje wpisów spoza listy"]
[]
[null,"WAŻNE !!! - Po poprawnym wybraniu nazwy banku oraz właściwej daty, W ŻÓŁTYM POLU (komórka K4), pojawi się nazwa, pod jaką należy zapisać plik i odesłać do UKNF - patrz blok Zapisywanie pliku - link poniżej"]
[null,"Zapisywanie pliku"]
[]
[null,"Dni świąteczne"]
[null,"Formularz nie ma wbudowanego kalendarza dni świątecznych dlatego w sytuacji gdy w danym miesiącu wystąpi dzień świąteczny należy w zielonym obszarze S25:S55 zaznaczyć dni świąteczne. Pozwoli to na kontrolę błędnych wpisów zawierających daty świąt. Pominięcie tego elementu będzie skutkowało sygnalizacją o rzekomym  braku danych których nie powinno być (za dni świąteczne nie należy wypełniać raportu - jedynie za dni robocze)."]
[]
[null,"Następnie BANK WYPEŁNIA POZOSTAŁE ZIELONE POLA"]
[null,"1.  W celu zminimalizowania możliwości popełnienia błędu w czasie wypełniania pliku większość pól została zabezpieczona przed błędnym wpisem i ograniczona do wyboru z listy rozwijanej."]
[]
[null,"2. Niestety w przypadku kopiowania większego zakresu danych automatyczne sprawdzanie formuł nie działa, dlatego dodatkowo na wypełniane pola nałożone zostały odpowiednie formaty oraz stworzony został system formuł kontrolujących poprawność wklejanych danych."]
[]
[null,"Dlatego bardzo ważne jest wklejanie bloków danych jako wartości opcja (Wklej specjalnie -> Wartości) co pozwala zachować nadane formaty i algorytmy - patrz blok \"Informacja na temat poprawnego przeklejania bloku danych\" - link poniżej"]
[null,"Instrukcja poprawnego przeklejania bloku danych"]
[]
[null,"3.  Poprawne wypełnienie kolejnych rekordów w zielonych polach spowoduje automatyczne wypełnienie pól szarych"]
[null,"4.  Błędy lub braki wypełnienia szarych pól (szare pola zawierają formuły) mogą świadczyć o błędnym wypełnieniu pól zielonych  - blok Kolorystyka arkusza Dane"]
[null,"5.  Szczególną uwagę należy zwrócić na pole Regon/Pesel, na podstawie którego automatycznie wypełniają się inne pola - blok Numer EKZ/Regon - link poniżej"]
[null,"Numer EKZ / Regon"]
[]
[null,"Kontakt Bank / Oddział"]
[]
[null,"W celu umożliwienia bieżącego wyjaśniania potencjalnych wątpliwości w kwestii otrzymanych od Państwa danych prosimy wskazać osoby odpowiedzialne za przygotowania informacji - komórki C4:D5"]
[]
[null,"Kontakt UKNF"]
[]
[null,"W razie problemów technicznych z plikiem prosimy kontaktować się z:"]
[null,"Piotr Domański - 22 262 47 43"]
[null,"piotr.domanski@knf.gov.pl"]
[]
[null,"W przypadku pojawienia się wątpliwości merytorycznych prosimy o kontakt z:"]
[null,"Jarosław Hornowski"]
[null,"jaroslaw.hornowski@knf.gov.pl"]
[]
[null,"BRAK FINANSOWANIA W MIESIĄCU SPRAWOZDAWCZYM"]
[]
[null,"W przypadku gdy w danym miesiącu nie wystąpiło finansowanie należy:"]
[null,"1. W formularzu wybrać właściwy Bank / Oddział (komórka G4)"]
[null,"2. Wybrać właściwą datę sprawozdania (komórki H4 oraz I4)"]
[null,"3. Odesłać do UKNF plik bez danych statystycznych"]
[]
[null,"ZAPISYWANIE PLIKU"]
[]
[null,"W związku z pojawiającymi się błędami wynikającymi z tworzenia kolejnych plików do UKNF poprzez nadpisywanie plików przekazanych wcześniej, sugerujemy do każdej kolejnej wysyłki wykorzystać pustą formatkę, co wyeliminuje problemy tego rodzaju."]
[]
[null,"Wypełniony oraz sprawdzony merytorycznie plik należy zapisać pod nazwą wygenerowaną automatycznie w polu K4."]
[null,"Przed odesłaniem pliku należy dokonać sprawdzenia poprawności danych (przynajmniej na poziomie wbudowanych algorytmów kontrolnych)"]
[]
[null,"Format zapisu - plik został przygotowany w formacie MS Excel 2010 i jest to format optymalny dla tego formularza."]
[]
[null,"Ze względu na fakt, że do pliku zostały dołączone makra (Przycisk tabela przestawna) optymalnym dla odsyłanego do UKNF pliku będzie format *.XLSM"]
[]
[null,"W przypadku Banku / Oddziału korzystającego z pakietu Office w wersji 97-2003 istnieje możliwość pozyskania formatki w takim formacie, ale będzie to okupione większym rozmiarem pliku wynikowego. W celu pozyskania formatki w wersji 97-2003 prosimy o kontakt - link poniżej"]
[null,"Kontakt UKNF"]

{"sheet":"Instrukcja techniczna","index":2,"n_rows":53,"n_cols":2,"rows_kept":53,"cut":false,"hidden":false,"merged":[]}
[]
[null,"Przejdź do formularza Ankiety"]
[]
[null,"Informacja na temat poprawnego przeklejania bloku danych"]
[]
[null,"1. Zaznaczony blok danych w pliku źródłowym kopiujemy do bufora (menu kopiuj lub Ctrl + C)"]
[null,"2. W formularzu UKNF ustawiamy się w komórce do której będziemy wklejać dane"]
[null,"3. Wybieramy opcję Wklej specjalnie (z menu lub kombinacją klawiszy Ctrl + Alt + V)"]
[]
[null,"UWAGA !!!"]
[null,"Wklejanie bloku danych za pomocą funkcji Wklej (Ctrl + V) spowoduje nadpisanie formatów nałożonych przez UKNF oraz może wyłączyć działanie niektórych algorytmów kontrolnych, co ograniczy szansę na automatyczne wychwytywanie błędów powstałych w trakcie wypełniania formularza przez Bank / Oddział"]
[]
[null,"4. Pojawi się okno dialogowe które parametryzujemy jak na rysunku poniżej i wybieramy OK."]
[]
[]
[]
[]
[]
[]
[]
[]
[]
[]
[]
[]
[]
[]
[]
[]
[]
[]
[null,"5. Sprawdzamy czy na wklejonym obszarze kolory pól zmieniły się na kolor jasny żółty (jak ta komórka)"]
[null,"6. Sprawdzamy czy na raporcie występują pola czerwone sygnalizujące braki bądź błędy danych"]
[null,"7. Jeśli tak, dokonujemy stosownych poprawek"]
[]
[null,"Numer EKZ / Regon"]
[]
[null,"EKZ – 12 znaków wg wzoru: 'Z ((1000) lub (0000)) [A-Z] {2} [0-9] {5}"]
[]
[null,"Znak nr 1 - \"Z\""]
[null,"Znaki nr 2 - 5 - \"0000\" lub \"1000\""]
[null,"Znaki nr 6 - 7 - Duże litery A - Z - razem tworzą kod kraju"]
[null,"Znaki nr 8 - 12 - Cyfry 0 - 9"]
[]
[null,"Regon"]
[null,"9 znakowy ciąg TEKSTOWY typu:  002303023"]
[null,"Regon w formacie liczbowym \"gubi\" zera występujące na początku, co prowadzi to do błędów, np.:"]
[null,"regon tekstowy -  002303023 - poprawny"]
[null,"regon liczbowy -       2303023 - błąd (7 znaków)"]
[]
[null,"Przycisk tabela przestawna"]
[]
[null,"Dla potrzeb analizy lub w celu sprawdzenia danych wprowadzonych do formularza do pliku dołączona została makroprocedura umożliwiająca szybkie stworzenie nowego skoroszytu z tabelą przestaną bazującą na danych z danego pliku. "]

{"sheet":"Dane","index":3,"n_rows":500,"n_cols":57,"rows_kept":500,"cut":false,"hidden":false,"merged":[[0,18,1,18],[0,16,1,16],[0,17,1,17]]}
["Finansowanie OTRZYMANE podmiotom powiązanym",null,null,null,null,null,null,null,null,null,null,null,null,null,"formularz obowiązuje od 1 lutego 2014 r.",null,"Numer kolumny","Nazwa","Ile rekordów wypełnił bank",null,null,null,"Algorytmy kontrolne kolumn",null,null,null,null,"Finansowanie","O",null,null,"Znak przejściowy","_",null,null,null,"Data","Matka","Sektor","Ekspozycja","Zapadalność","Waluta"]
["Kontakt z Bankiem / Oddziałem",null,null,null,null,null,"Wybierz Bank / Oddział oraz data raportu z listy",null,null,null,"Nazwa pliku do UKNF",null,null,"Tabela przestawna",null,null,null,null,null,null,null,null,"Najmniejsza liczba rekordów w kolumnach 7-15",null,null,null,null,"Wybrany kod banku",{"$f":"IF(S14=\"Błąd\",\"x\",VALUE(LEFT(Dane!$G$4,4)))","v":"x"},null,null,null,null,null,null,"Data min",{"$f":"IF($AC$15=\"x\",\"Wybierz datę\",IF($AC$14=\"O\",$AC$17,AG7))","v":"Wybierz datę"},"T","F","BL",1,"EUR"]
[null,null,"Imię i nazwisko","telefon",null,null,"Wybierz Bank / Oddział","Rok","Miesiąc",null,"Nazwa pliku dla UKNF",null,null,null,null,null,"Kolumna 7","NazwaPodmiotu",{"$f":"COUNTA(G22:G500)","v":0},null,null,null,{"$f":"MIN(S3:$S$11)","v":0},null,null,null,null,"Nazwa wybranego banku",{"$f":"IF(S14=\"Błąd\",\"x\",VLOOKUP(AC2,$AE$23:$AF$80,2,FALSE))","v":"x"},null,null,"Nr Wiersza nagłówka TP",{"$f":"ROW(A21)","v":21},null,null,"Data max",{"$f":"IF($AC$15=\"x\",\"Wybierz datę\",IF($AC$14=\"O\",$AC$17,AG8))","v":"Wybierz datę"},"N","N","BP",2,"USD"]
["Sporządził",null,null,null,null,null,null,null,null,null,{"$f":"IF(AC12=\"x\",\"Błąd w obszarze G4:I4\",AC12)","v":"Błąd w obszarze G4:I4"},null,null,null,null,null,"Kolumna 8","Regon/EKZ",{"$f":"COUNTA(H22:H500)","v":0},null,null,null,"Największa liczba rekordów w kolumnach 7-15",null,null,null,null,"Data Rok",{"$f":"IF(S15=\"Błąd\",\"x\",Dane!H4)","v":"x"},null,null,"Wiersz pierwszej linii wpisu",{"$f":"$AG$3+1","v":22},null,null,null,null,null,null,"PL",3,"CHF"]
["Zatwierdził",null,null,null,null,null,null,null,null,null,null,null,null,null,null,null,"Kolumna 9","CzyMatka",{"$f":"COUNTA(I22:I500)","v":0},null,null,null,{"$f":"MAX(S3:$S$11)","v":0},null,null,null,null,"Data Miesiąc nazwa",{"$f":"IF(S16=\"Błąd\",\"x\",Dane!I4)","v":"x"},null,null,"Wiersz ostatniej linii wpisu",{"$f":"$AG$3+W5","v":21},null,null,null,null,null,null,"PG",4,"PLN"]
[null,null,"Kontakt UKNF",null,null,null,"Informacje nt. Ankiety","Inf. techniczne",null,"Inf. merytoryczne","Zapisywanie pliku",null,null,"Tabela przestawna",null,null,"Kolumna 10","Sektor",{"$f":"COUNTA(J22:J500)","v":0},null,null,null,"Rozbieżności w liczbie rekordów w kolumnach",null,null,null,null,"Data Miesiąc liczba",{"$f":"IF($S$16=\"Błąd\",\"x\",VLOOKUP(AC5,$AJ$6:$AK$17,2,FALSE))","v":"x"},null,null,null,null,null,null,"styczeń",1,"01",null,"PT",5,"Inna"]
[null,null,null,null,null,null,null,null,null,null,null,null,null,null,null,null,"Kolumna 11","Ekspozycja",{"$f":"COUNTA(K22:K500)","v":0},null,null,null,{"$f":"IF(W3<>W5,\"TAK\",\"NIE\")","v":"NIE"},null,null,null,null,"Data Miesiąc tekst",{"$f":"IF($S$16=\"Błąd\",\"x\",VLOOKUP(AC6,$AK$6:$AL$17,2,FALSE))","v":"x"},null,null,null,{"$f":"IF($AC$15=\"x\",\"Wybierz datę\",DATE(AC4,AC6,1))","v":"Wybierz datę"},null,null,"luty",2,"02",null,null,6]
["Obszar algorytmów kontrolnych - czerwone pola oznaczają błędy lub braki danych",null,null,null,null,null,null,null,null,null,null,null,null,null,null,null,"Kolumna 12","Zapadalność",{"$f":"COUNTA(L22:L500)","v":0},null,null,null,null,null,null,null,null,null,null,null,null,null,{"$f":"IF($AC$15=\"x\",\"Wybierz datę\",DATE(AC4,AC6+1,0))","v":"Wybierz datę"},null,null,"marzec",3,"03",null,null,7]
["Kontrola danych kontaktowych",null,null,null,null,"Kontrola wyboru Banku / Oddziału i daty raportu",null,null,null,"Kontrola ilości danych w kolumnach",null,null,{"$f":"\"Czy było finansowanie - \" & UPPER(I4)","v":"Czy było finansowanie - "},null,null,null,"Kolumna 13","Waluta",{"$f":"COUNTA(M22:M500)","v":0},null,null,null,null,null,null,null,null,"Nazwa pliku - Data",{"$f":"AC4 & AG1 & AC7","v":"x_x"},null,null,null,null,null,null,"kwiecień",4,"04",null,null,8]
[{"$f":"IF(COUNTA($C$4:$D$5)<4,\"Niekompletne dane kontaktowe-zakres C4:D5\",\"OK\")","v":"Niekompletne dane kontaktowe-zakres C4:D5"},null,null,null,null,{"$f":"IF(OR(S14=\"Błąd\",S15=\"Błąd\",S16=\"Błąd\"),\"Wybierz Bank / Oddział  i datę raportu  - zakres G4:I4\",\"OK\")","v":"Wybierz Bank / Oddział  i datę raportu  - zakres G4:I4"},null,null,null,{"$f":"IF(W7=\"TAK\",W6,\"OK\")","v":"OK"},null,null,{"$f":"IF(F10=\"OK\",IF($W$5>0,\"TAK\",\"NIE   - brak danych\"),\"Uzupełnij  zakres G4:I4\")","v":"Uzupełnij  zakres G4:I4"},null,null,null,"Kolumna 14","Kwota",{"$f":"COUNTA(N22:N500)","v":0},null,null,null,null,null,null,null,null,"Nazwa pliku - Data + Fin",{"$f":"IF(AC9=\"x\",\"x\", AC1 &AG1 & AC9)","v":"O_x_x"},null,null,null,null,null,null,"maj",5,"05"]
[null,null,"Idź do obszaru kontaktów",null,null,null,"Idź do obszaru wyboru Banku i daty",null,null,"Idź do algorytmów kontrolnych",null,null,null,"Brak finansowania",null,null,"Kolumna 15","DataTMP",{"$f":"COUNTA(O22:O500)","v":0},null,null,null,null,null,null,null,null,"Nazwa pliku - Bank",{"$f":"IF(AC2=\"x\",\"x\", AG1 & AC2)","v":"x"},null,null,2014,null,null,null,"czerwiec",6,"06"]
[null,null,null,null,null,null,null,null,null,null,null,null,null,null,null,null,null,null,null,null,null,null,null,null,null,null,null,"NAZWA PLIKU",{"$f":"IF(OR(AC2=\"x\",AC4=\"x\",AC5=\"x\"),\"x\", AC10 &AC11 & \".xlsm\")","v":"x"},null,null,2015,null,null,null,"lipiec",7,"07"]
[{"$f":"\"Liczba świąt:  \" & UPPER(I4)","v":"Liczba świąt:  "},null,null,{"$f":"\"Brak dat:  \" & UPPER(I4)","v":"Brak dat:  "},null,null,{"$f":"G21","v":"NazwaPodmiotu"},"Regon/EKZ","CzyMatka","Sektor","Ekspozycja","Zapadalność","Waluta","Kwota","DataTMP",null,"Kontrola wyboru podmiotu i daty",null,null,null,null,null,null,null,null,null,null,null,null,null,null,2016,null,null,null,"sierpień",8,"08"]
[{"$f":"COUNTIF(S26:S56,$S$62)","v":0},null,null,{"$f":"T63","v":0},null,null,{"$f":"X24","v":0},{"$f":"X33","v":0},{"$f":"X40","v":0},{"$f":"X46","v":0},{"$f":"X52","v":0},{"$f":"X60","v":0},{"$f":"X66","v":0},{"$f":"X72","v":0},{"$f":"T69","v":0},null,"Bank/Oddział",{"$f":"IF(ISNA(VLOOKUP(G4,Dane!$AG$23:$AG$80,1,FALSE)),\"Wybierz Bank\",VLOOKUP(G4,Dane!$AG$23:$AG$80,1,FALSE))","v":"Wybierz Bank"},{"$f":"IF(LEFT(R14,7)=\"Wybierz\",\"Błąd\",\"Poprawnie\")","v":"Błąd"},null,null,null,null,null,null,null,null,"Bank czy Oddział","O",null,null,2017,null,null,null,"wrzesień",9,"09",null,"2000-01-01",{"$f":"TEXT(AN14,\"dddd\")","v":"sobota"}]
["Pomoc",null,"Aktualizuj","Pokaż","Pomoc",null,"Pokaż błędy","Pokaż błędy","Pokaż błędy","Pokaż błędy","Pokaż błędy","Pokaż błędy","Pokaż błędy","Pokaż błędy","Pokaż błędy",null,"Rok",{"$f":"IF(ISNA(VLOOKUP(H4,Dane!$AF$11:$AF$17,1,FALSE)),\"Wybierz Rok\",VLOOKUP(H4,Dane!$AF$11:$AF$17,1,FALSE))","v":"Wybierz Rok"},{"$f":"IF(LEFT(R15,7)=\"Wybierz\",\"Błąd\",\"Poprawnie\")","v":"Błąd"},null,null,null,null,null,null,null,null,"DataOK",{"$f":"IF(AND(AC4<>\"x\",AC6<>\"x\"),\"OK\",\"x\")","v":"x"},null,null,2018,null,null,null,"październik",10,"10",null,"2000-01-02",{"$f":"TEXT(AN15,\"dddd\")","v":"niedziela"}]
[null,null,null,null,null,null,null,null,null,null,null,null,null,null,null,null,"Miesiąc",{"$f":"IF(ISNA(VLOOKUP(I4,Dane!$AJ$6:$AJ$17,1,FALSE)),\"Wybierz miesiąc\",VLOOKUP(I4,Dane!$AJ$6:$AJ$17,1,FALSE))","v":"Wybierz miesiąc"},{"$f":"IF(LEFT(R16,7)=\"Wybierz\",\"Błąd\",\"Poprawnie\")","v":"Błąd"},null,null,null,null,null,null,null,null,null,null,null,null,2019,null,null,null,"listopad",11,"11"]
["WAŻNE - W przypadku wklejania bloku danych należy wkleić WARTOŚCI (opcja wklej specjalnie lub Ctrl + Alt +V -> Wartości) w celu zachowania formatów oraz algorytmów kontrolnych",null,null,null,null,null,null,null,null,null,null,null,null,null,null,null,null,null,null,null,null,null,null,null,null,null,null,"Ostatni dzień roboczy",{"$f":"MAX(BE26:BE56)","v":"00:00:00"},null,null,2020,null,null,null,"grudzień",12,"12"]
["Po poprawnym przeklejeniu prawidłowych wartości kolor wypełnianych komórek powinien się zmienić na jasno żółty:",null,null,null,null,null,null,null,null,null,"Jeżeli kolor jest inny przejdź do instrukcji",null,null,"Jak kopiować"]
["Finansowanie","Kod Banku/Oddziału","Nazwa Banku","Data","Rezydent /\nNierezydent","Kod kraju","Nazwa podmiotu z którym dokonano transakcji","Regon/EKZ","Czy finansowanie zostało OTRZYMANE od podmiotu dominującego","Sektor\nF-podmiot sektora finansowego\nN-podmiot sektora niefinansowego","Ekspozycje bilansowe\nBL - Lokaty i kredyty otrzymane\nBP - Pozostałe zobowiązania\n\nEkspozycje pozabilansowe\nPL - Linie kredytowe otrzymane\nPG - Gwarancje otrzymane\nPT - Transakcje pozabilansowe","1 - <= 1 D\n2 - > 1 D <= 1 W\n3 - > 1 W <= 1 M\n4 - > 1 M <= 3 M\n5 - > 3 M <= 6 M\n6 - > 6 M <= 1 Y\n7 - > 1 Y <= 5 Y\n8 - > 5 Y","Waluta ","Kwota\n(tys. zł)","Data\n(w formacie liczbowym, nie tekstowym)",null,"Algorytmy kontrolne pola DataTMP\nkolumna 15 (O)\n\nKontrola kompletności danych w poszczególnych dniach miesiąca",null,null,null,null,null,"Algorytmy kontrolne reszty kolumn\n\nWpisy błędne",null,null,null,null,"Algorytmy kontrolne kolumn\n\nWpisy poprawne",null,null,null,null,null,null,"DataTMP czy święto","Nazwa podmiotu","Zapadalność","Kwota","DataTMP","EKZ błąd długości","EKZ - znak 1","EKZ błąd znaków 2- 5","EKZ - błąd znak 6","EKZ - błąd znak 7","EKZ - błąd znaków 8-12","EKZ OK","Pomocni-cza EKZ","EKZ - błąd struktury numeru",null,"Regon błąd długości","Regon - błąd struktury (zawiera litery)","Regon OK","Pomocni-cza Regon"]
[1,{"$f":"A20+1","v":2},3,4,5,6,7,8,9,10,11,12,13,14,15,null,null,null,null,null,null,null,null,null,null,null,null,null,null,null,null,null,null,null,null,{"$f":"SUM(AJ22:AJ500)","v":0},0,0,0,0,0,0,0,0,0,{"$f":"COUNTIF(AT21:AT500,\">1\")","v":0},null,null,null,{"$f":"SUM(AX22:AX500)","v":0},{"$f":"SUM(AY22:AY500)","v":0},{"$f":"COUNTIF(AZ21:AZ500,\">1\")","v":0}]
["Finansowanie","KodBanku","NazwaBanku","Data","Rez/Nierez","KodKraju","NazwaPodmiotu","Regon/EKZ","CzyMatka","Sektor","Ekspozycja","Zapadalność","Waluta","Kwota","DataTMP",null,{"$f":"R16","v":"Wybierz miesiąc"},{"$f":"R15","v":"Wybierz Rok"},null,null,null,null,{"$f":"\"Pole \" & G21 & \" - kolumna G (7)\"","v":"Pole NazwaPodmiotu - kolumna G (7)"},null,null,null,null,"Liczba wpisów Razem",{"$f":"S3","v":0},null,null,null,null,null,null,null,null,null,null,{"$f":"COUNTIF(AN22:AN500,0)","v":0},0,0,0,0,0,0,null,{"$f":"COUNTIF(AV22:AV500,\">0\")","v":0},null,{"$f":"COUNTIF(AX22:AX500,0)","v":0},null,{"$f":"COUNTIF(AZ22:AZ500,0)","v":0}]
[{"$f":"IF(ROW()<$AG$4+$W$5,\"O\",\"\")","v":""},{"$f":"IF(A22<>\"\",IF($G$4=\"\",\"Błąd\",$AC$2),\"\")","v":""},{"$f":"IF(A22<>\"\",IF($G$4=\"\",\"Błąd\",$AC$3),\"\")","v":""},{"$f":"IF(A22<>\"\",IF(OR($S$15=\"Błąd\",$S$16=\"Błąd\",O22=\"\",O22<$AK$2,O22>$AK$3),\"Błąd\",O22),\"\")","v":""},{"$f":"IF(A22<>\"\",IF(AT22=0,\"N\",IF(AZ22=0,\"R\",\"Błąd\")),\"\")","v":""},{"$f":"IF(A22<>\"\",IF(AT22=0,MID(H22,6,2),IF(AZ22=0,\"PL\",\"Błąd\")),\"\")","v":""},null,null,null,null,null,null,null,null,null,null,null,null,null,null,null,null,"Liczba pustych komórek",{"$f":"IF($W$7=\"TAK\",$W$5-S3,0)","v":0},null,null,null,"Liczba wpisów tekstowych",{"$f":"AJ20","v":0},null,"Kod","Nazwa Krótka","Bank",null,{"$f":"IF(AND(O22>=$AK$2,O22<=$AK$3),VLOOKUP(O22,$Q$26:$U$56,5,FALSE),\"\")","v":""},{"$f":"IF(LEN(G22)>0,1,0)","v":0},{"$f":"IF(T(L22)<>\"\",1,0)","v":0},{"$f":"IF(T(N22)<>\"\",1,0)","v":0},{"$f":"IF(T(O22)<>\"\",1,0)","v":0},{"$f":"IF($AO22=0,IF(LEN($H22)<>12,1,0),\"xxx\")","v":"xxx"},{"$f":"IF(LEFT($H22,1)=\"Z\",0,IF($H22=\"\",\"xxx\",1))","v":"xxx"},{"$f":"IF($AO22=0,IF(AND(MID($H22,2,4)<>\"0000\",MID($H22,2,4)<>\"1000\"),1,0),\"xxx\")","v":"xxx"},{"$f":"IF($AO22=0,IF(AND(LEN($H22)>=6,CODE(MID($H22,6,1))>=65,CODE(MID($H22,6,1))<=90),0,1),\"xxx\")","v":"xxx"},{"$f":"IF($AO22=0,IF(AND(LEN($H22)>=7,CODE(MID($H22,7,1))>=65,CODE(MID($H22,7,1))<=90),0,1),\"xxx\")","v":"xxx"},{"$f":"IF($AO22=0,IF(ISNUMBER($AU22),0,1),\"xxx\")","v":"xxx"},{"$f":"IF(COUNTIF(AN22:AR22,\"xxx\")>0,\"xxx\",SUM(AN22:AS22))","v":"xxx"},{"$f":"VALUE(MID($H22,8,5))","v":{"$error":"#VALUE!"}},{"$f":"SUM(AP22:AS22)","v":0},null,{"$f":"IF(AO22=1,IF(LEN($H22)=9,0,1),\"xxx\")","v":"xxx"},{"$f":"IF($AO22=1,IF(ISNUMBER($BA22),0,1),\"xxx\")","v":"xxx"},{"$f":"IF(COUNTIF(AX22:AY22,\"xxx\")>0,\"xxx\",SUM(AX22:AY22))","v":"xxx"},{"$f":"VALUE(H22)","v":0}]
["","","","","","",null,null,null,null,null,null,null,null,null,null,"Daty wcześniejsze",null,null,{"$f":"COUNTIF($O$22:$O$500,\"<\" & $AK$2)","v":0},null,null,"Liczba wpisów liczbowych",{"$f":"COUNT($G$22:$G$500)","v":0},null,null,null,"Razem poprawnych",{"$f":"SUM(AC22)","v":0},null,103,"B. Handlowy",{"$f":"AE23 & \" - \" & AF23","v":"103 - B. Handlowy"},null,"",0,0,0,0,"xxx","xxx","xxx","xxx","xxx","xxx",{"$f":"IF(COUNTIF(AN23:AR23,\"xxx\")>0,\"xxx\",SUM(AN23:AS23))","v":"xxx"},{"$f":"VALUE(MID($H23,8,5))","v":{"$error":"#VALUE!"}},{"$f":"SUM(AP23:AS23)","v":0},null,{"$f":"IF(AO23=1,IF(LEN($H23)=9,0,1),\"xxx\")","v":"xxx"},"xxx",{"$f":"IF(COUNTIF(AX23:AY23,\"xxx\")>0,\"xxx\",SUM(AX23:AY23))","v":"xxx"},0]
["","","","","","",null,null,null,null,null,null,null,null,null,null,null,null,null,null,null,null,"Suma błędów",{"$f":"SUM(X22:X23)","v":0},null,null,null,null,null,null,105,"ING BSK","105 - ING BSK",null,"",0,0,0,0,"xxx","xxx","xxx","xxx","xxx","xxx","xxx",{"$error":"#VALUE!"},0,null,"xxx","xxx","xxx",0,null,"data","miesiąc","wolne"]
["","","","","","",null,null,null,null,null,null,null,null,null,null,"Data","Dzień","Czy święto","Liczba dat","Komunikat",null,null,null,null,null,null,null,null,null,106,"BPH","106 - BPH",null,"",0,0,0,0,"xxx","xxx","xxx","xxx","xxx",{"$f":"IF($AO25=0,IF(ISNUMBER($AU25),0,1),\"xxx\")","v":"xxx"},"xxx",{"$error":"#VALUE!"},0,null,"xxx",{"$f":"IF($AO25=1,IF(ISNUMBER($BA25),0,1),\"xxx\")","v":"xxx"},"xxx",0]
["","","","","","",null,null,null,null,null,null,null,null,null,null,{"$f":"IF(BD26=$AC$6,BC26,\" \")","v":" "},{"$f":"TEXT(Q26,\"dddd\")","v":" "},null,{"$f":"COUNTIF($O$22:$O$500,Q26)","v":0},{"$f":"IF(T26>0,IF(OR(Q26<$AK$2,Q26>$AK$3,BE26=\"wolne\"),\"Błąd\",\"\"),IF(AND(Q26>=$AK$2,Q26<=$AK$3,BE26<>\"wolne\"),\"Brak danych\",\"\"))","v":""},null,{"$f":"\"Pole \" & H21 & \" - kolumna H (8)\"","v":"Pole Regon/EKZ - kolumna H (8)"},null,null,null,null,"Liczba wpisów Razem",{"$f":"S4","v":0},null,109,"BZ WBK","109 - BZ WBK",null,"",0,0,0,0,"xxx","xxx","xxx","xxx","xxx","xxx","xxx",{"$error":"#VALUE!"},0,null,"xxx","xxx","xxx",0,null,{"$f":"$AG$7","v":"Wybierz datę"},{"$f":"IF($AC$15=\"OK\",MONTH(BC26),\"Wybierz datę\")","v":"Wybierz datę"},{"$f":"IFERROR(IF(OR(Q26=\" \",WEEKDAY(BC26,2)=6,WEEKDAY(BC26,2)=7,S26=$S$62),\"wolne\",Q26),\"\")","v":""}]
["","","","","","",null,null,null,null,null,null,null,null,null,null," "," ",null,0,"",null,"Liczba pustych komórek",{"$f":"IF($W$7=\"TAK\",$W$5-S4,0)","v":0},null,null,null,"Liczba wpisów EKZ",{"$f":"AT21","v":0},null,114,"mBank z Oddz.","114 - mBank z Oddz.",null,"",0,0,0,0,"xxx","xxx","xxx","xxx","xxx","xxx","xxx",{"$error":"#VALUE!"},0,null,"xxx","xxx","xxx",0,null,{"$f":"IF($AC$15=\"OK\",BC26+1,\"Wybierz datę\")","v":"Wybierz datę"},"Wybierz datę",""]
["","","","","","",null,null,null,null,null,null,null,null,null,null," "," ",null,0,"",null,"Liczba EKZ o błędnej długości",{"$f":"$AN$20","v":0},null,null,null,"Liczba wpisów Regon",{"$f":"AZ21","v":0},null,116,"Millennium","116 - Millennium",null,"",0,0,0,0,"xxx","xxx","xxx","xxx","xxx","xxx","xxx",{"$error":"#VALUE!"},0,null,"xxx","xxx","xxx",0,null,"Wybierz datę","Wybierz datę",""]
["","","","","","",null,null,null,null,null,null,null,null,null,null," "," ",null,0,"",null,"Liczba EKZ o błędnej strukturze numeru",{"$f":"AV21","v":0},null,null,null,"Razem poprawnych",{"$f":"SUM(AC27:AC28)","v":0},null,128,"HSBC","128 - HSBC",null,"",0,0,0,0,"xxx","xxx","xxx","xxx","xxx","xxx","xxx",{"$error":"#VALUE!"},0,null,"xxx","xxx","xxx",0,null,"Wybierz datę","Wybierz datę",""]
["","","","","","",null,null,null,null,null,null,null,null,null,null," "," ",null,0,"",null,"Liczba Regonów tekstowych o błędnej długości",{"$f":"$AX$20","v":0},null,null,null,null,null,null,147,"Euro Bank","147 - Euro Bank",null,"",0,0,0,0,"xxx","xxx","xxx","xxx","xxx","xxx","xxx",{"$error":"#VALUE!"},0,null,"xxx","xxx","xxx",0,null,"Wybierz datę","Wybierz datę",""]
["","","","","","",null,null,null,null,null,null,null,null,null,null," "," ",null,0,"",null,"Liczba Regonów w formacie liczbowym",{"$f":"COUNT($H$22:$H$500)","v":0},null,null,null,null,null,null,158,"Mercedes z Oddz.","158 - Mercedes z Oddz.",null,"",0,0,0,0,"xxx","xxx","xxx","xxx","xxx","xxx","xxx",{"$error":"#VALUE!"},0,null,"xxx","xxx","xxx",0,null,"Wybierz datę","Wybierz datę",""]
["","","","","","",null,null,null,null,null,null,null,null,null,null," "," ",null,0,"",null,"Liczba Regonów o błędnej strukturze numeru",{"$f":"AY20","v":0},null,null,null,null,null,null,167,"RBS Bank","167 - RBS Bank",null,"",0,0,0,0,"xxx","xxx","xxx","xxx","xxx","xxx","xxx",{"$error":"#VALUE!"},0,null,"xxx","xxx","xxx",0,null,"Wybierz datę","Wybierz datę",""]
["","","","","","",null,null,null,null,null,null,null,null,null,null," "," ",null,0,"",null,"Suma błędów",{"$f":"SUM(X27:X32)","v":0},null,null,null,null,null,null,175,"Raiffeisen","175 - Raiffeisen",null,"",0,0,0,0,"xxx","xxx","xxx","xxx","xxx","xxx","xxx",{"$error":"#VALUE!"},0,null,"xxx","xxx","xxx",0,null,"Wybierz datę","Wybierz datę",""]
["","","","","","",null,null,null,null,null,null,null,null,null,null," "," ",null,0,"",null,"Numer EKZ / Regon - pomoc",null,null,null,null,null,null,null,184,"Societe Generale O.","184 - Societe Generale O.",null,"",0,0,0,0,"xxx","xxx","xxx","xxx","xxx","xxx","xxx",{"$error":"#VALUE!"},0,null,"xxx","xxx","xxx",0,null,"Wybierz datę","Wybierz datę",""]
["","","",{"$f":"IF(A35<>\"\",IF(OR($S$15=\"Błąd\",$S$16=\"Błąd\",O35=\"\",O35<$AK$2,O35>$AK$3),\"Błąd\",O35),\"\")","v":""},"","",null,null,null,null,null,null,null,null,null,null," "," ",null,0,"",null,null,null,null,null,null,null,null,null,187,"FM Bank PBP","187 - FM Bank PBP",null,"",0,0,0,0,"xxx","xxx","xxx","xxx","xxx","xxx","xxx",{"$error":"#VALUE!"},0,null,"xxx","xxx","xxx",0,null,"Wybierz datę","Wybierz datę",""]
["","","","","","",null,null,null,null,null,null,null,null,null,null," "," ",null,0,"",null,{"$f":"\"Pole \" & I21 & \" - kolumna I (9)\"","v":"Pole CzyMatka - kolumna I (9)"},null,null,null,null,"Liczba wpisów Razem",{"$f":"S5","v":0},null,191,"Deutsche Bank","191 - Deutsche Bank",null,"",0,0,0,0,"xxx","xxx","xxx","xxx","xxx","xxx","xxx",{"$error":"#VALUE!"},0,null,"xxx","xxx","xxx",0,null,"Wybierz datę","Wybierz datę",""]
["","","","","","",null,null,null,null,null,null,null,null,null,null," "," ",null,0,"",null,"Liczba pustych komórek",{"$f":"IF($W$7=\"TAK\",$W$5-S5,0)","v":0},null,null,null,{"$f":"\"Liczba wpisów \" & AL2","v":"Liczba wpisów T"},{"$f":"COUNTIF($I$22:$I$500,\"=\" & AL2)","v":0},null,194,"Credit Agricole","194 - Credit Agricole",null,"",0,0,0,0,"xxx","xxx","xxx","xxx","xxx","xxx","xxx",{"$error":"#VALUE!"},0,null,"xxx","xxx","xxx",0,null,"Wybierz datę","Wybierz datę",""]
["","","","","","",null,null,null,null,null,null,null,null,null,null," "," ",null,0,"",null,"Liczba wpisów spoza dozwolonej listy, w tym:",{"$f":"AC36-AC39","v":0},null,null,null,{"$f":"\"Liczba wpisów \" & AL3","v":"Liczba wpisów N"},{"$f":"COUNTIF($I$22:$I$500,\"=\" & AL3)","v":0},null,203,"BGŻ BNP","203 - BGŻ BNP",null,"",0,0,0,0,"xxx","xxx","xxx","xxx","xxx","xxx","xxx",{"$error":"#VALUE!"},0,null,"xxx","xxx","xxx",0,null,"Wybierz datę","Wybierz datę",""]
["","","","","","",null,null,null,null,null,null,null,null,null,null," "," ",null,0,"",null,"Liczba wpisów w formacie liczbowym",{"$f":"COUNT($I$22:$I$500)","v":0},null,null,null,"Razem poprawnych",{"$f":"SUM(AC37:AC38)","v":0},null,212,"Santander","212 - Santander",null,"",0,0,0,0,"xxx","xxx","xxx","xxx","xxx","xxx","xxx",{"$error":"#VALUE!"},0,null,"xxx","xxx","xxx",0,null,"Wybierz datę","Wybierz datę",""]
["","","","","","",null,null,null,null,null,null,null,null,null,null," "," ",null,0,"",null,"Suma błędów",{"$f":"SUM(X37:X38)","v":0},null,null,null,null,null,null,213,"Volkswagen","213 - Volkswagen",null,"",0,0,0,0,"xxx","xxx","xxx","xxx","xxx","xxx","xxx",{"$error":"#VALUE!"},0,null,"xxx","xxx","xxx",0,null,"Wybierz datę","Wybierz datę",""]
["","","","","","",null,null,null,null,null,null,null,null,null,null," "," ",null,0,"",null,null,null,null,null,null,null,null,null,214,"FCA Bank","214 - FCA Bank",null,"",0,0,0,0,"xxx","xxx","xxx","xxx","xxx","xxx","xxx",{"$error":"#VALUE!"},0,null,"xxx","xxx","xxx",0,null,"Wybierz datę","Wybierz datę",""]
["","","","","","",null,null,null,null,null,null,null,null,null,null," "," ",null,0,"",null,{"$f":"\"Pole \" & J21 & \" - kolumna J (10)\"","v":"Pole Sektor - kolumna J (10)"},null,null,null,null,"Liczba wpisów Razem",{"$f":"S6","v":0},null,215,"mBank Hipot.","215 - mBank Hipot.",null,"",0,0,0,0,"xxx","xxx","xxx","xxx","xxx","xxx","xxx",{"$error":"#VALUE!"},0,null,"xxx","xxx","xxx",0,null,"Wybierz datę","Wybierz datę",""]
["","","","","","",null,null,null,null,null,null,null,null,null,null," "," ",null,0,"",null,"Liczba pustych komórek",{"$f":"IF($W$7=\"TAK\",$W$5-S6,0)","v":0},null,null,null,{"$f":"\"Liczba wpisów \" & AM2","v":"Liczba wpisów F"},{"$f":"COUNTIF($J$22:$J$500,\"=\" & AM2)","v":0},null,216,"Toyota Bank","216 - Toyota Bank",null,"",0,0,0,0,"xxx","xxx","xxx","xxx","xxx","xxx","xxx",{"$error":"#VALUE!"},0,null,"xxx","xxx","xxx",0,null,"Wybierz datę","Wybierz datę",""]
["","","","","","",null,null,null,null,null,null,null,null,null,null," "," ",null,0,"",null,"Liczba wpisów spoza dozwolonej listy, w tym:",{"$f":"AC42-AC45","v":0},null,null,null,{"$f":"\"Liczba wpisów \" & AM3","v":"Liczba wpisów N"},{"$f":"COUNTIF($J$22:$J$500,\"=\" & AM3)","v":0},null,219,"DNB Bank","219 - DNB Bank",null,"",0,0,0,0,"xxx","xxx","xxx","xxx","xxx","xxx","xxx",{"$error":"#VALUE!"},0,null,"xxx","xxx","xxx",0,null,"Wybierz datę","Wybierz datę",""]
["","","","","","",null,null,null,null,null,null,null,null,null,null," "," ",null,0,"",null,"Liczba wpisów w formacie liczbowym",{"$f":"COUNT($J$22:$J$500)","v":0},null,null,null,"Razem poprawnych",{"$f":"SUM(AC43:AC44)","v":0},null,224,"Banque PSA O.","224 - Banque PSA O.",null,"",0,0,0,0,"xxx","xxx","xxx","xxx","xxx","xxx","xxx",{"$error":"#VALUE!"},0,null,"xxx","xxx","xxx",0,null,"Wybierz datę","Wybierz datę",""]
["","","","","","",null,null,null,null,null,null,null,null,null,null," "," ",null,0,"",null,"Suma błędów",{"$f":"SUM(X43:X44)","v":0},null,null,null,null,null,null,225,"Svenska O.","225 - Svenska O.",null,"",0,0,0,0,"xxx","xxx","xxx","xxx","xxx","xxx","xxx",{"$error":"#VALUE!"},0,null,"xxx","xxx","xxx",0,null,"Wybierz datę","Wybierz datę",""]
["","","","","","",null,null,null,null,null,null,null,null,null,null," "," ",null,0,"",null,null,null,null,null,null,null,null,null,232,"Nykredit Real. O.","232 - Nykredit Real. O.",null,"",0,0,0,0,"xxx","xxx","xxx","xxx","xxx","xxx","xxx",{"$error":"#VALUE!"},0,null,"xxx","xxx","xxx",0,null,"Wybierz datę","Wybierz datę",""]
["","","","","","",null,null,null,null,null,null,null,null,null,null," "," ",null,0,"",null,{"$f":"\"Pole \" & K21 & \" - kolumna K (11)\"","v":"Pole Ekspozycja - kolumna K (11)"},null,null,null,null,"Liczba wpisów Razem",{"$f":"S7","v":0},null,235,"BNP Paribas O.","235 - BNP Paribas O.",null,"",0,0,0,0,"xxx","xxx","xxx","xxx","xxx","xxx","xxx",{"$error":"#VALUE!"},0,null,"xxx","xxx","xxx",0,null,"Wybierz datę","Wybierz datę",""]
["","","","","","",null,null,null,null,null,null,null,null,null,null," "," ",null,0,"",null,"Liczba pustych komórek",{"$f":"IF($W$7=\"TAK\",$W$5-S7,0)","v":0},null,null,null,{"$f":"\"Liczba wpisów \" & AN2","v":"Liczba wpisów BL"},{"$f":"COUNTIF($K$22:$K$500,\"=\" & AN2)","v":0},null,236,"Danske O.","236 - Danske O.",null,"",0,0,0,0,"xxx","xxx","xxx","xxx","xxx","xxx","xxx",{"$error":"#VALUE!"},0,null,"xxx","xxx","xxx",0,null,"Wybierz datę","Wybierz datę",""]
["","","","","","",null,null,null,null,null,null,null,null,null,null," "," ",null,0,"",null,"Liczba wpisów spoza dozwolonej listy, w tym:",{"$f":"AC48-AC54","v":0},null,null,null,{"$f":"\"Liczba wpisów \" & AN3","v":"Liczba wpisów BP"},{"$f":"COUNTIF($K$22:$K$500,\"=\" & AN3)","v":0},null,237,"Skandinaviska Ensk. O.","237 - Skandinaviska Ensk. O.",null,"",0,0,0,0,"xxx","xxx","xxx","xxx","xxx","xxx","xxx",{"$error":"#VALUE!"},0,null,"xxx","xxx","xxx",0,null,"Wybierz datę","Wybierz datę",""]
["","","","","","",null,null,null,null,null,null,null,null,null,null," "," ",null,0,"",null,"Liczba wpisów w formacie liczbowym",{"$f":"COUNT($K$22:$K$500)","v":0},null,null,null,{"$f":"\"Liczba wpisów \" & AN4","v":"Liczba wpisów PL"},{"$f":"COUNTIF($K$22:$K$500,\"=\" & AN4)","v":0},null,238,"Banco Cofidis O.","238 - Banco Cofidis O.",null,"",0,0,0,0,"xxx","xxx","xxx","xxx","xxx","xxx","xxx",{"$error":"#VALUE!"},0,null,"xxx","xxx","xxx",0,null,"Wybierz datę","Wybierz datę",""]
["","","","","","",null,null,null,null,null,null,null,null,null,null," "," ",null,0,"",null,"Suma błędów",{"$f":"SUM(X49:X50)","v":0},null,null,null,{"$f":"\"Liczba wpisów \" & AN5","v":"Liczba wpisów PG"},{"$f":"COUNTIF($K$22:$K$500,\"=\" & AN5)","v":0},null,239,"Caixabank O.","239 - Caixabank O.",null,"",0,0,0,0,"xxx","xxx","xxx","xxx","xxx","xxx","xxx",{"$error":"#VALUE!"},0,null,"xxx","xxx","xxx",0,null,"Wybierz datę","Wybierz datę",""]
["","","","","","",null,null,null,null,null,null,null,null,null,null," "," ",null,0,"",null,null,null,null,null,null,{"$f":"\"Liczba wpisów \" & AN6","v":"Liczba wpisów PT"},{"$f":"COUNTIF($K$22:$K$500,\"=\" & AN6)","v":0},null,241,"Elavon O.","241 - Elavon O.",null,"",0,0,0,0,"xxx","xxx","xxx","xxx","xxx","xxx","xxx",{"$error":"#VALUE!"},0,null,"xxx","xxx","xxx",0,null,"Wybierz datę","Wybierz datę",""]
["","","","","","",null,null,null,null,null,null,null,null,null,null," "," ",null,0,"",null,{"$f":"\"Pole \" & L21 & \" - kolumna L (12)\"","v":"Pole Zapadalność - kolumna L (12)"},null,null,null,null,"Razem poprawnych",{"$f":"SUM(AC49:AC53)","v":0},null,243,"BNP Par. Sec. O.","243 - BNP Par. Sec. O.",null,"",0,0,0,0,"xxx","xxx","xxx","xxx","xxx","xxx","xxx",{"$error":"#VALUE!"},0,null,"xxx","xxx","xxx",0,null,"Wybierz datę","Wybierz datę",""]
["","","","","","",null,null,null,null,null,null,null,null,null,null," "," ",null,0,"",null,"Liczba pustych komórek",{"$f":"IF($W$7=\"TAK\",$W$5-S8,0)","v":0},null,null,null,null,null,null,247,"Haitong Bank O.","247 - Haitong Bank O.",null,"",0,0,0,0,"xxx","xxx","xxx","xxx","xxx","xxx","xxx",{"$error":"#VALUE!"},0,null,"xxx","xxx","xxx",0,null,"Wybierz datę","Wybierz datę",""]
["","","","","","",null,null,null,null,null,null,null,null,null,null," "," ",null,0,"",null,"Liczba wpisów spoza dozwolonej listy, w tym:",{"$f":"AC56-AC65","v":0},null,null,null,"Liczba wpisów Razem",{"$f":"S8","v":0},null,251,"Aareal Bank O.","251 - Aareal Bank O.",null,"",0,0,0,0,"xxx","xxx","xxx","xxx","xxx","xxx","xxx",{"$error":"#VALUE!"},0,null,"xxx","xxx","xxx",0,null,"Wybierz datę","Wybierz datę",""]
["","","","","","",null,null,null,null,null,null,null,null,null,null,null,null,null,null,null,null,"Liczba wpisów w formacie tekstowym",{"$f":"AK20","v":0},null,null,null,{"$f":"\"Liczba wpisów \" & AO2","v":"Liczba wpisów 1"},{"$f":"COUNTIF($L$22:$L$500,AO2)","v":0},null,254,"Citibank Europe O.","254 - Citibank Europe O.",null,"",0,0,0,0,"xxx","xxx","xxx","xxx","xxx","xxx","xxx",{"$error":"#VALUE!"},0,null,"xxx","xxx","xxx",0]
["","","","","","",null,null,null,null,null,null,null,null,null,null,"Daty późniejsze",null,null,{"$f":"COUNTIF($O$22:$O$500,\">\" & $AK$3)","v":0},null,null,"Liczba wpisów > 8",{"$f":"COUNTIF($L$22:$L$500,\">8\")","v":0},null,null,null,"Liczba wpisów 2",0,null,255,"Ikano Bank O.","255 - Ikano Bank O.",null,"",0,0,0,0,"xxx","xxx","xxx","xxx","xxx","xxx","xxx",{"$error":"#VALUE!"},0,null,"xxx","xxx","xxx",0]
["","","","","","",null,null,null,null,null,null,null,null,null,null,null,null,null,null,null,null,"Liczba wpisów < 1",{"$f":"COUNTIF($L$22:$L$500,\"<1\")","v":0},null,null,null,"Liczba wpisów 3",0,null,256,"Nordea Bank AB O.","256 - Nordea Bank AB O.",null,"",0,0,0,0,"xxx","xxx","xxx","xxx","xxx","xxx","xxx",{"$error":"#VALUE!"},0,null,"xxx","xxx","xxx",0]
["","","","","","",null,null,null,null,null,null,null,null,null,null,"Liczba wpisów:",null,{"$f":"AO14","v":"sobota"},{"$f":"SUMIF($R$26:$R$56,S60,$T$26:$T$56)","v":0},null,null,"Suma błędów",{"$f":"SUM(X55:X56)","v":0},null,null,null,"Liczba wpisów 4",0,null,257,"UBS Limited O.","257 - UBS Limited O.",null,"",0,0,0,0,"xxx","xxx","xxx","xxx","xxx","xxx","xxx",{"$error":"#VALUE!"},0,null,"xxx","xxx","xxx",0]
["","","","","","",null,null,null,null,null,null,null,null,null,null,"Liczba wpisów:",null,{"$f":"AO15","v":"niedziela"},{"$f":"SUMIF($R$26:$R$56,S61,$T$26:$T$56)","v":0},null,null,null,null,null,null,null,"Liczba wpisów 5",0,null,258,"J.P. Morgan Europe O.","258 - J.P. Morgan Europe O.",null,"",0,0,0,0,"xxx","xxx","xxx","xxx","xxx","xxx","xxx",{"$error":"#VALUE!"},0,null,"xxx","xxx","xxx",0]
["","","","","","",null,null,null,null,null,null,null,null,null,null,"Liczba wpisów:",null,"święto",{"$f":"SUMIF($S$26:$S$56,S62,$T$26:$T$56)","v":0},null,null,{"$f":"\"Pole \" & M21 & \" - kolumna M (13)\"","v":"Pole Waluta - kolumna M (13)"},null,null,null,null,"Liczba wpisów 6",0,null,260,"Bank of China O.","260 - Bank of China O.",null,"",0,0,0,0,"xxx","xxx","xxx","xxx","xxx","xxx","xxx",{"$error":"#VALUE!"},0,null,"xxx","xxx","xxx",0]
["","","","","","",null,null,null,null,null,null,null,null,null,null,"Liczba braków dat:",null,"Brak danych",{"$f":"COUNTIF(U26:U56,S63)","v":0},null,null,"Liczba pustych komórek",{"$f":"IF($W$7=\"TAK\",$W$5-S9,0)","v":0},null,null,null,"Liczba wpisów 7",0,null,262,"I and C Bank of China O.","262 - I and C Bank of China O.",null,"",0,0,0,0,"xxx","xxx","xxx","xxx","xxx","xxx","xxx",{"$error":"#VALUE!"},0,null,"xxx","xxx","xxx",0]
["","","","","","",null,null,null,null,null,null,null,null,null,null,"Liczba pustych komórek",null,null,{"$f":"IF($W$7=\"TAK\",$W$5-S11,0)","v":0},null,null,"Liczba wpisów spoza dozwolonej listy, w tym:",{"$f":"AC67-AC73","v":0},null,null,null,"Liczba wpisów 8",0,null,263,"Saxo Bank O.","263 - Saxo Bank O.",null,"",0,0,0,0,"xxx","xxx","xxx","xxx","xxx","xxx","xxx",{"$error":"#VALUE!"},0,null,"xxx","xxx","xxx",0]
["","","","","","",null,null,null,null,null,null,null,null,null,null,{"$f":"\"Liczba dat przed:     \" & TEXT($AK$2,\"dd mmm rrrr\")","v":"Liczba dat przed:     Wybierz datę"},null,null,{"$f":"T23","v":0},null,null,"Liczba wpisów w formacie liczbowym",{"$f":"COUNT($M$22:$M$500)","v":0},null,null,null,"Razem poprawnych",{"$f":"SUM(AC57:AC64)","v":0},null,264,"RCI Banque O.","264 - RCI Banque O.",null,"",0,0,0,0,"xxx","xxx","xxx","xxx","xxx","xxx","xxx",{"$error":"#VALUE!"},0,null,"xxx","xxx","xxx",0]
["","","","","","",null,null,null,null,null,null,null,null,null,null,{"$f":"\"Liczba dat po:         \" & TEXT($AK$3,\"dd mmm rrrr\")","v":"Liczba dat po:         Wybierz datę"},null,null,{"$f":"T58","v":0},null,null,"Suma błędów",{"$f":"SUM(X63:X64)","v":0},null,null,null,null,null,null,265,"Euroclear Bank O.","265 - Euroclear Bank O.",null,"",0,0,0,0,"xxx","xxx","xxx","xxx","xxx","xxx","xxx",{"$error":"#VALUE!"},0,null,"xxx","xxx","xxx",0]
["","","","","","",null,null,null,null,null,null,null,null,null,null,"Liczba wpisów ujemnych",null,null,{"$f":"COUNTIF($O$22:$O$500,\"<0\")","v":0},null,null,null,null,null,null,null,"Liczba wpisów Razem",{"$f":"S9","v":0},null,266,"Intesa Sanpaolo O.","266 - Intesa Sanpaolo O.",null,"",0,0,0,0,"xxx","xxx","xxx","xxx","xxx","xxx","xxx",{"$error":"#VALUE!"},0,null,"xxx","xxx","xxx",0]
["","","","","","",null,null,null,null,null,null,null,null,null,null,"Liczba dat w formacie tekstowym",null,null,{"$f":"AM20","v":0},null,null,{"$f":"\"Pole \" & N21 & \" - kolumna N (14)\"","v":"Pole Kwota - kolumna N (14)"},null,null,null,null,{"$f":"\"Liczba wpisów \" & AP2","v":"Liczba wpisów EUR"},{"$f":"COUNTIF($M$22:$M$500,AP2)","v":0},null,267,"Western Union  O.","267 - Western Union  O.",null,"",0,0,0,0,"xxx","xxx","xxx","xxx","xxx","xxx","xxx",{"$error":"#VALUE!"},0,null,"xxx","xxx","xxx",0]
["","","","","","",null,null,null,null,null,null,null,null,null,null,"Suma błędów",null,null,{"$f":"SUM(T60:T68)","v":0},null,null,"Liczba pustych komórek",{"$f":"IF($W$7=\"TAK\",$W$5-S10,0)","v":0},null,null,null,{"$f":"\"Liczba wpisów \" & AP3","v":"Liczba wpisów USD"},{"$f":"COUNTIF($M$22:$M$500,AP3)","v":0},null,270,"TF Bank O.","270 - TF Bank O.",null,"",0,0,0,0,"xxx","xxx","xxx","xxx","xxx","xxx","xxx",{"$error":"#VALUE!"},0,null,"xxx","xxx","xxx",0]
["","","","","","",null,null,null,null,null,null,null,null,null,null,null,null,null,null,null,null,"Liczba kwot ujemnych",{"$f":"COUNTIF($N$22:$N$500,\"<0\")","v":0},null,null,null,{"$f":"\"Liczba wpisów \" & AP4","v":"Liczba wpisów CHF"},{"$f":"COUNTIF($M$22:$M$500,AP4)","v":0},null,271,"FCE Bank O.","271 - FCE Bank O.",null,"",0,0,0,0,"xxx","xxx","xxx","xxx","xxx","xxx","xxx",{"$error":"#VALUE!"},0,null,"xxx","xxx","xxx",0]
["","","","","","",null,null,null,null,null,null,null,null,null,null,null,null,null,null,null,null,"Liczba wpisów w formacie tekstowym",{"$f":"AL20","v":0},null,null,null,{"$f":"\"Liczba wpisów \" & AP5","v":"Liczba wpisów PLN"},{"$f":"COUNTIF($M$22:$M$500,AP5)","v":0},null,272,"AS Inbank O.","272 - AS Inbank O.",null,"",0,0,0,0,"xxx","xxx","xxx","xxx","xxx","xxx","xxx",{"$error":"#VALUE!"},0,null,"xxx","xxx","xxx",0]
["","","","","","",null,null,null,null,null,null,null,null,null,null,null,null,null,null,null,null,"Suma błędów",{"$f":"SUM(X69:X71)","v":0},null,null,null,{"$f":"\"Liczba wpisów \" & AP6","v":"Liczba wpisów Inna"},{"$f":"COUNTIF($M$22:$M$500,AP6)","v":0},null,273,"China Construction O.","273 - China Construction O.",null,"",0,0,0,0,"xxx","xxx","xxx","xxx","xxx","xxx","xxx",{"$error":"#VALUE!"},0,null,"xxx","xxx","xxx",0]
["","","","","","",null,null,null,null,null,null,null,null,null,null,null,null,null,null,null,null,null,null,null,null,null,"Razem poprawnych",{"$f":"SUM(AC68:AC72)","v":0},null,274,"MUFG Bank O.","274 - MUFG Bank O.",null,"",0,0,0,0,"xxx","xxx","xxx","xxx","xxx","xxx","xxx",{"$error":"#VALUE!"},0,null,"xxx","xxx","xxx",0]
["","","","","","",null,null,null,null,null,null,null,null,null,null,null,null,null,null,null,null,null,null,null,null,null,null,null,null,null,null," - ",null,"",0,0,0,0,"xxx","xxx","xxx","xxx","xxx","xxx","xxx",{"$error":"#VALUE!"},0,null,"xxx","xxx","xxx",0]
["","","","","","",null,null,null,null,null,null,null,null,null,null,null,null,null,null,null,null,null,null,null,null,null,"Liczba wpisów Razem",{"$f":"S10","v":0},null,null,null," - ",null,"",0,0,0,0,"xxx","xxx","xxx","xxx","xxx","xxx","xxx",{"$error":"#VALUE!"},0,null,"xxx","xxx","xxx",0]
["","","","","","",null,null,null,null,null,null,null,null,null,null,null,null,null,null,null,null,null,null,null,null,null,"Liczba kwot > 0",{"$f":"COUNTIF($N$22:$N$500,\">0\")","v":0},null,null,null," - ",null,"",0,0,0,0,"xxx","xxx","xxx","xxx","xxx","xxx","xxx",{"$error":"#VALUE!"},0,null,"xxx","xxx","xxx",0]
["","","","","","",null,null,null,null,null,null,null,null,null,null,null,null,null,null,null,null,null,null,null,null,null,"Razem poprawnych",{"$f":"SUM(AC76:AC76)","v":0},null,null,null," - ",null,"",0,0,0,0,"xxx","xxx","xxx","xxx","xxx","xxx","xxx",{"$error":"#VALUE!"},0,null,"xxx","xxx","xxx",0]
["","","","","","",null,null,null,null,null,null,null,null,null,null,null,null,null,null,null,null,null,null,null,null,null,null,null,null,null,null," - ",null,"",0,0,0,0,"xxx","xxx","xxx","xxx","xxx","xxx","xxx",{"$error":"#VALUE!"},0,null,"xxx","xxx","xxx",0]
["","","","","","",null,null,null,null,null,null,null,null,null,null,null,null,null,null,null,null,null,null,null,null,null,null,null,null,null,null,null,null,"",0,0,0,0,"xxx","xxx","xxx","xxx","xxx","xxx","xxx",{"$error":"#VALUE!"},0,null,"xxx","xxx","xxx",0]
["","","","","","",null,null,null,null,null,null,null,null,null,null,null,null,null,null,null,null,null,null,null,null,null,null,null,null,null,null,null,null,"",0,0,0,0,"xxx","xxx","xxx","xxx","xxx","xxx","xxx",{"$error":"#VALUE!"},0,null,"xxx","xxx","xxx",0]
["","","","","","",null,null,null,null,null,null,null,null,null,null,null,null,null,null,null,null,null,null,null,null,null,null,null,null,null,null,null,null,"",0,0,0,0,"xxx","xxx","xxx","xxx","xxx","xxx","xxx",{"$error":"#VALUE!"},0,null,"xxx","xxx","xxx",0]
["","","","","","",null,null,null,null,null,null,null,null,null,null,null,null,null,null,null,null,null,null,null,null,null,null,null,null,null,null,null,null,"",0,0,0,0,"xxx","xxx","xxx","xxx","xxx","xxx","xxx",{"$error":"#VALUE!"},0,null,"xxx","xxx","xxx",0]
["","","","","","",null,null,null,null,null,null,null,null,null,null,null,null,null,null,null,null,null,null,null,null,null,null,null,null,null,null,null,null,"",0,0,0,0,"xxx","xxx","xxx","xxx","xxx","xxx","xxx",{"$error":"#VALUE!"},0,null,"xxx","xxx","xxx",0]
["","","","","","",null,null,null,null,null,null,null,null,null,null,null,null,null,null,null,null,null,null,null,null,null,null,null,null,null,null,null,null,"",0,0,0,0,"xxx","xxx","xxx","xxx","xxx","xxx","xxx",{"$error":"#VALUE!"},0,null,"xxx","xxx","xxx",0]
["","","","","","",null,null,null,null,null,null,null,null,null,null,null,null,null,null,null,null,null,null,null,null,null,null,null,null,null,null,null,null,"",0,0,0,0,"xxx","xxx","xxx","xxx","xxx","xxx","xxx",{"$error":"#VALUE!"},0,null,"xxx","xxx","xxx",0]
[{"$f":"IF(ROW()<$AG$4+$W$5,\"O\",\"\")","v":""},{"$f":"IF(A86<>\"\",IF($G$4=\"\",\"Błąd\",$AC$2),\"\")","v":""},{"$f":"IF(A86<>\"\",IF($G$4=\"\",\"Błąd\",$AC$3),\"\")","v":""},"",{"$f":"IF(A86<>\"\",IF(AT86=0,\"N\",IF(AZ86=0,\"R\",\"Błąd\")),\"\")","v":""},{"$f":"IF(A86<>\"\",IF(AT86=0,MID(H86,6,2),IF(AZ86=0,\"PL\",\"Błąd\")),\"\")","v":""},null,null,null,null,null,null,null,null,null,null,null,null,null,null,null,null,null,null,null,null,null,null,null,null,null,null,null,null,{"$f":"IF(AND(O86>=$AK$2,O86<=$AK$3),VLOOKUP(O86,$Q$26:$U$56,5,FALSE),\"\")","v":""},{"$f":"IF(LEN(G86)>0,1,0)","v":0},{"$f":"IF(T(L86)<>\"\",1,0)","v":0},{"$f":"IF(T(N86)<>\"\",1,0)","v":0},{"$f":"IF(T(O86)<>\"\",1,0)","v":0},{"$f":"IF($AO86=0,IF(LEN($H86)<>12,1,0),\"xxx\")","v":"xxx"},{"$f":"IF(LEFT($H86,1)=\"Z\",0,IF($H86=\"\",\"xxx\",1))","v":"xxx"},{"$f":"IF($AO86=0,IF(AND(MID($H86,2,4)<>\"0000\",MID($H86,2,4)<>\"1000\"),1,0),\"xxx\")","v":"xxx"},{"$f":"IF($AO86=0,IF(AND(LEN($H86)>=6,CODE(MID($H86,6,1))>=65,CODE(MID($H86,6,1))<=90),0,1),\"xxx\")","v":"xxx"},{"$f":"IF($AO86=0,IF(AND(LEN($H86)>=7,CODE(MID($H86,7,1))>=65,CODE(MID($H86,7,1))<=90),0,1),\"xxx\")","v":"xxx"},{"$f":"IF($AO86=0,IF(ISNUMBER($AU86),0,1),\"xxx\")","v":"xxx"},"xxx",{"$error":"#VALUE!"},0,null,"xxx",{"$f":"IF($AO86=1,IF(ISNUMBER($BA86),0,1),\"xxx\")","v":"xxx"},"xxx",{"$f":"VALUE(H86)","v":0}]
["","","","","","",null,null,null,null,null,null,null,null,null,null,null,null,null,null,null,null,null,null,null,null,null,null,null,null,null,null,null,null,"",0,0,0,0,"xxx","xxx","xxx","xxx","xxx","xxx",{"$f":"IF(COUNTIF(AN87:AR87,\"xxx\")>0,\"xxx\",SUM(AN87:AS87))","v":"xxx"},{"$f":"VALUE(MID($H87,8,5))","v":{"$error":"#VALUE!"}},{"$f":"SUM(AP87:AS87)","v":0},null,{"$f":"IF(AO87=1,IF(LEN($H87)=9,0,1),\"xxx\")","v":"xxx"},"xxx",{"$f":"IF(COUNTIF(AX87:AY87,\"xxx\")>0,\"xxx\",SUM(AX87:AY87))","v":"xxx"},0]
["","","","","","",null,null,null,null,null,null,null,null,null,null,null,null,null,null,null,null,null,null,null,null,null,null,null,null,null,null,null,null,"",0,0,0,0,"xxx","xxx","xxx","xxx","xxx","xxx","xxx",{"$error":"#VALUE!"},0,null,"xxx","xxx","xxx",0]
["","","","","","",null,null,null,null,null,null,null,null,null,null,null,null,null,null,null,null,null,null,null,null,null,null,null,null,null,null,null,null,"",0,0,0,0,"xxx","xxx","xxx","xxx","xxx","xxx","xxx",{"$error":"#VALUE!"},0,null,"xxx","xxx","xxx",0]
["","","","","","",null,null,null,null,null,null,null,null,null,null,null,null,null,null,null,null,null,null,null,null,null,null,null,null,null,null,null,null,"",0,0,0,0,"xxx","xxx","xxx","xxx","xxx","xxx","xxx",{"$error":"#VALUE!"},0,null,"xxx","xxx","xxx",0]
["","","","","","",null,null,null,null,null,null,null,null,null,null,null,null,null,null,null,null,null,null,null,null,null,null,null,null,null,null,null,null,"",0,0,0,0,"xxx","xxx","xxx","xxx","xxx","xxx","xxx",{"$error":"#VALUE!"},0,null,"xxx","xxx","xxx",0]
["","","","","","",null,null,null,null,null,null,null,null,null,null,null,null,null,null,null,null,null,null,null,null,null,null,null,null,null,null,null,null,"",0,0,0,0,"xxx","xxx","xxx","xxx","xxx","xxx","xxx",{"$error":"#VALUE!"},0,null,"xxx","xxx","xxx",0]
["","","","","","",null,null,null,null,null,null,null,null,null,null,null,null,null,null,null,null,null,null,null,null,null,null,null,null,null,null,null,null,"",0,0,0,0,"xxx","xxx","xxx","xxx","xxx","xxx","xxx",{"$error":"#VALUE!"},0,null,"xxx","xxx","xxx",0]
["","","","","","",null,null,null,null,null,null,null,null,null,null,null,null,null,null,null,null,null,null,null,null,null,null,null,null,null,null,null,null,"",0,0,0,0,"xxx","xxx","xxx","xxx","xxx","xxx","xxx",{"$error":"#VALUE!"},0,null,"xxx","xxx","xxx",0]
["","","","","","",null,null,null,null,null,null,null,null,null,null,null,null,null,null,null,null,null,null,null,null,null,null,null,null,null,null,null,null,"",0,0,0,0,"xxx","xxx","xxx","xxx","xxx","xxx","xxx",{"$error":"#VALUE!"},0,null,"xxx","xxx","xxx",0]
["","","","","","",null,null,null,null,null,null,null,null,null,null,null,null,null,null,null,null,null,null,null,null,null,null,null,null,null,null,null,null,"",0,0,0,0,"xxx","xxx","xxx","xxx","xxx","xxx","xxx",{"$error":"#VALUE!"},0,null,"xxx","xxx","xxx",0]
["","","","","","",null,null,null,null,null,null,null,null,null,null,null,null,null,null,null,null,null,null,null,null,null,null,null,null,null,null,null,null,"",0,0,0,0,"xxx","xxx","xxx","xxx","xxx","xxx","xxx",{"$error":"#VALUE!"},0,null,"xxx","xxx","xxx",0]
["","","","","","",null,null,null,null,null,null,null,null,null,null,null,null,null,null,null,null,null,null,null,null,null,null,null,null,null,null,null,null,"",0,0,0,0,"xxx","xxx","xxx","xxx","xxx","xxx","xxx",{"$error":"#VALUE!"},0,null,"xxx","xxx","xxx",0]
["","","",{"$f":"IF(A99<>\"\",IF(OR($S$15=\"Błąd\",$S$16=\"Błąd\",O99=\"\",O99<$AK$2,O99>$AK$3),\"Błąd\",O99),\"\")","v":""},"","",null,null,null,null,null,null,null,null,null,null,null,null,null,null,null,null,null,null,null,null,null,null,null,null,null,null,null,null,"",0,0,0,0,"xxx","xxx","xxx","xxx","xxx","xxx","xxx",{"$error":"#VALUE!"},0,null,"xxx","xxx","xxx",0]
["","","","","","",null,null,null,null,null,null,null,null,null,null,null,null,null,null,null,null,null,null,null,null,null,null,null,null,null,null,null,null,"",0,0,0,0,"xxx","xxx","xxx","xxx","xxx","xxx","xxx",{"$error":"#VALUE!"},0,null,"xxx","xxx","xxx",0]
["","","","","","",null,null,null,null,null,null,null,null,null,null,null,null,null,null,null,null,null,null,null,null,null,null,null,null,null,null,null,null,"",0,0,0,0,"xxx","xxx","xxx","xxx","xxx","xxx","xxx",{"$error":"#VALUE!"},0,null,"xxx","xxx","xxx",0]
["","","","","","",null,null,null,null,null,null,null,null,null,null,null,null,null,null,null,null,null,null,null,null,null,null,null,null,null,null,null,null,"",0,0,0,0,"xxx","xxx","xxx","xxx","xxx","xxx","xxx",{"$error":"#VALUE!"},0,null,"xxx","xxx","xxx",0]
["","","","","","",null,null,null,null,null,null,null,null,null,null,null,null,null,null,null,null,null,null,null,null,null,null,null,null,null,null,null,null,"",0,0,0,0,"xxx","xxx","xxx","xxx","xxx","xxx","xxx",{"$error":"#VALUE!"},0,null,"xxx","xxx","xxx",0]
["","","","","","",null,null,null,null,null,null,null,null,null,null,null,null,null,null,null,null,null,null,null,null,null,null,null,null,null,null,null,null,"",0,0,0,0,"xxx","xxx","xxx","xxx","xxx","xxx","xxx",{"$error":"#VALUE!"},0,null,"xxx","xxx","xxx",0]
["","","","","","",null,null,null,null,null,null,null,null,null,null,null,null,null,null,null,null,null,null,null,null,null,null,null,null,null,null,null,null,"",0,0,0,0,"xxx","xxx","xxx","xxx","xxx","xxx","xxx",{"$error":"#VALUE!"},0,null,"xxx","xxx","xxx",0]
["","","","","","",null,null,null,null,null,null,null,null,null,null,null,null,null,null,null,null,null,null,null,null,null,null,null,null,null,null,null,null,"",0,0,0,0,"xxx","xxx","xxx","xxx","xxx","xxx","xxx",{"$error":"#VALUE!"},0,null,"xxx","xxx","xxx",0]
["","","","","","",null,null,null,null,null,null,null,null,null,null,null,null,null,null,null,null,null,null,null,null,null,null,null,null,null,null,null,null,"",0,0,0,0,"xxx","xxx","xxx","xxx","xxx","xxx","xxx",{"$error":"#VALUE!"},0,null,"xxx","xxx","xxx",0]
["","","","","","",null,null,null,null,null,null,null,null,null,null,null,null,null,null,null,null,null,null,null,null,null,null,null,null,null,null,null,null,"",0,0,0,0,"xxx","xxx","xxx","xxx","xxx","xxx","xxx",{"$error":"#VALUE!"},0,null,"xxx","xxx","xxx",0]
["","","","","","",null,null,null,null,null,null,null,null,null,null,null,null,null,null,null,null,null,null,null,null,null,null,null,null,null,null,null,null,"",0,0,0,0,"xxx","xxx","xxx","xxx","xxx","xxx","xxx",{"$error":"#VALUE!"},0,null,"xxx","xxx","xxx",0]
["","","","","","",null,null,null,null,null,null,null,null,null,null,null,null,null,null,null,null,null,null,null,null,null,null,null,null,null,null,null,null,"",0,0,0,0,"xxx","xxx","xxx","xxx","xxx","xxx","xxx",{"$error":"#VALUE!"},0,null,"xxx","xxx","xxx",0]
["","","","","","",null,null,null,null,null,null,null,null,null,null,null,null,null,null,null,null,null,null,null,null,null,null,null,null,null,null,null,null,"",0,0,0,0,"xxx","xxx","xxx","xxx","xxx","xxx","xxx",{"$error":"#VALUE!"},0,null,"xxx","xxx","xxx",0]
["","","","","","",null,null,null,null,null,null,null,null,null,null,null,null,null,null,null,null,null,null,null,null,null,null,null,null,null,null,null,null,"",0,0,0,0,"xxx","xxx","xxx","xxx","xxx","xxx","xxx",{"$error":"#VALUE!"},0,null,"xxx","xxx","xxx",0]
["","","","","","",null,null,null,null,null,null,null,null,null,null,null,null,null,null,null,null,null,null,null,null,null,null,null,null,null,null,null,null,"",0,0,0,0,"xxx","xxx","xxx","xxx","xxx","xxx","xxx",{"$error":"#VALUE!"},0,null,"xxx","xxx","xxx",0]
["","","","","","",null,null,null,null,null,null,null,null,null,null,null,null,null,null,null,null,null,null,null,null,null,null,null,null,null,null,null,null,"",0,0,0,0,"xxx","xxx","xxx","xxx","xxx","xxx","xxx",{"$error":"#VALUE!"},0,null,"xxx","xxx","xxx",0]
["","","","","","",null,null,null,null,null,null,null,null,null,null,null,null,null,null,null,null,null,null,null,null,null,null,null,null,null,null,null,null,"",0,0,0,0,"xxx","xxx","xxx","xxx","xxx","xxx","xxx",{"$error":"#VALUE!"},0,null,"xxx","xxx","xxx",0]
["","","","","","",null,null,null,null,null,null,null,null,null,null,null,null,null,null,null,null,null,null,null,null,null,null,null,null,null,null,null,null,"",0,0,0,0,"xxx","xxx","xxx","xxx","xxx","xxx","xxx",{"$error":"#VALUE!"},0,null,"xxx","xxx","xxx",0]
["","","","","","",null,null,null,null,null,null,null,null,null,null,null,null,null,null,null,null,null,null,null,null,null,null,null,null,null,null,null,null,"",0,0,0,0,"xxx","xxx","xxx","xxx","xxx","xxx","xxx",{"$error":"#VALUE!"},0,null,"xxx","xxx","xxx",0]
["","","","","","",null,null,null,null,null,null,null,null,null,null,null,null,null,null,null,null,null,null,null,null,null,null,null,null,null,null,null,null,"",0,0,0,0,"xxx","xxx","xxx","xxx","xxx","xxx","xxx",{"$error":"#VALUE!"},0,null,"xxx","xxx","xxx",0]
["","","","","","",null,null,null,null,null,null,null,null,null,null,null,null,null,null,null,null,null,null,null,null,null,null,null,null,null,null,null,null,"",0,0,0,0,"xxx","xxx","xxx","xxx","xxx","xxx","xxx",{"$error":"#VALUE!"},0,null,"xxx","xxx","xxx",0]
["","","","","","",null,null,null,null,null,null,null,null,null,null,null,null,null,null,null,null,null,null,null,null,null,null,null,null,null,null,null,null,"",0,0,0,0,"xxx","xxx","xxx","xxx","xxx","xxx","xxx",{"$error":"#VALUE!"},0,null,"xxx","xxx","xxx",0]
["","","","","","",null,null,null,null,null,null,null,null,null,null,null,null,null,null,null,null,null,null,null,null,null,null,null,null,null,null,null,null,"",0,0,0,0,"xxx","xxx","xxx","xxx","xxx","xxx","xxx",{"$error":"#VALUE!"},0,null,"xxx","xxx","xxx",0]
["","","","","","",null,null,null,null,null,null,null,null,null,null,null,null,null,null,null,null,null,null,null,null,null,null,null,null,null,null,null,null,"",0,0,0,0,"xxx","xxx","xxx","xxx","xxx","xxx","xxx",{"$error":"#VALUE!"},0,null,"xxx","xxx","xxx",0]
["","","","","","",null,null,null,null,null,null,null,null,null,null,null,null,null,null,null,null,null,null,null,null,null,null,null,null,null,null,null,null,"",0,0,0,0,"xxx","xxx","xxx","xxx","xxx","xxx","xxx",{"$error":"#VALUE!"},0,null,"xxx","xxx","xxx",0]
["","","","","","",null,null,null,null,null,null,null,null,null,null,null,null,null,null,null,null,null,null,null,null,null,null,null,null,null,null,null,null,"",0,0,0,0,"xxx","xxx","xxx","xxx","xxx","xxx","xxx",{"$error":"#VALUE!"},0,null,"xxx","xxx","xxx",0]
["","","","","","",null,null,null,null,null,null,null,null,null,null,null,null,null,null,null,null,null,null,null,null,null,null,null,null,null,null,null,null,"",0,0,0,0,"xxx","xxx","xxx","xxx","xxx","xxx","xxx",{"$error":"#VALUE!"},0,null,"xxx","xxx","xxx",0]
["","","","","","",null,null,null,null,null,null,null,null,null,null,null,null,null,null,null,null,null,null,null,null,null,null,null,null,null,null,null,null,"",0,0,0,0,"xxx","xxx","xxx","xxx","xxx","xxx","xxx",{"$error":"#VALUE!"},0,null,"xxx","xxx","xxx",0]
["","","","","","",null,null,null,null,null,null,null,null,null,null,null,null,null,null,null,null,null,null,null,null,null,null,null,null,null,null,null,null,"",0,0,0,0,"xxx","xxx","xxx","xxx","xxx","xxx","xxx",{"$error":"#VALUE!"},0,null,"xxx","xxx","xxx",0]
["","","","","","",null,null,null,null,null,null,null,null,null,null,null,null,null,null,null,null,null,null,null,null,null,null,null,null,null,null,null,null,"",0,0,0,0,"xxx","xxx","xxx","xxx","xxx","xxx","xxx",{"$error":"#VALUE!"},0,null,"xxx","xxx","xxx",0]
["","","","","","",null,null,null,null,null,null,null,null,null,null,null,null,null,null,null,null,null,null,null,null,null,null,null,null,null,null,null,null,"",0,0,0,0,"xxx","xxx","xxx","xxx","xxx","xxx","xxx",{"$error":"#VALUE!"},0,null,"xxx","xxx","xxx",0]
["","","","","","",null,null,null,null,null,null,null,null,null,null,null,null,null,null,null,null,null,null,null,null,null,null,null,null,null,null,null,null,"",0,0,0,0,"xxx","xxx","xxx","xxx","xxx","xxx","xxx",{"$error":"#VALUE!"},0,null,"xxx","xxx","xxx",0]
["","","","","","",null,null,null,null,null,null,null,null,null,null,null,null,null,null,null,null,null,null,null,null,null,null,null,null,null,null,null,null,"",0,0,0,0,"xxx","xxx","xxx","xxx","xxx","xxx","xxx",{"$error":"#VALUE!"},0,null,"xxx","xxx","xxx",0]
["","","","","","",null,null,null,null,null,null,null,null,null,null,null,null,null,null,null,null,null,null,null,null,null,null,null,null,null,null,null,null,"",0,0,0,0,"xxx","xxx","xxx","xxx","xxx","xxx","xxx",{"$error":"#VALUE!"},0,null,"xxx","xxx","xxx",0]
["","","","","","",null,null,null,null,null,null,null,null,null,null,null,null,null,null,null,null,null,null,null,null,null,null,null,null,null,null,null,null,"",0,0,0,0,"xxx","xxx","xxx","xxx","xxx","xxx","xxx",{"$error":"#VALUE!"},0,null,"xxx","xxx","xxx",0]
["","","","","","",null,null,null,null,null,null,null,null,null,null,null,null,null,null,null,null,null,null,null,null,null,null,null,null,null,null,null,null,"",0,0,0,0,"xxx","xxx","xxx","xxx","xxx","xxx","xxx",{"$error":"#VALUE!"},0,null,"xxx","xxx","xxx",0]
["","","","","","",null,null,null,null,null,null,null,null,null,null,null,null,null,null,null,null,null,null,null,null,null,null,null,null,null,null,null,null,"",0,0,0,0,"xxx","xxx","xxx","xxx","xxx","xxx","xxx",{"$error":"#VALUE!"},0,null,"xxx","xxx","xxx",0]
["","","","","","",null,null,null,null,null,null,null,null,null,null,null,null,null,null,null,null,null,null,null,null,null,null,null,null,null,null,null,null,"",0,0,0,0,"xxx","xxx","xxx","xxx","xxx","xxx","xxx",{"$error":"#VALUE!"},0,null,"xxx","xxx","xxx",0]
["","","","","","",null,null,null,null,null,null,null,null,null,null,null,null,null,null,null,null,null,null,null,null,null,null,null,null,null,null,null,null,"",0,0,0,0,"xxx","xxx","xxx","xxx","xxx","xxx","xxx",{"$error":"#VALUE!"},0,null,"xxx","xxx","xxx",0]
["","","","","","",null,null,null,null,null,null,null,null,null,null,null,null,null,null,null,null,null,null,null,null,null,null,null,null,null,null,null,null,"",0,0,0,0,"xxx","xxx","xxx","xxx","xxx","xxx","xxx",{"$error":"#VALUE!"},0,null,"xxx","xxx","xxx",0]
["","","","","","",null,null,null,null,null,null,null,null,null,null,null,null,null,null,null,null,null,null,null,null,null,null,null,null,null,null,null,null,"",0,0,0,0,"xxx","xxx","xxx","xxx","xxx","xxx","xxx",{"$error":"#VALUE!"},0,null,"xxx","xxx","xxx",0]
["","","","","","",null,null,null,null,null,null,null,null,null,null,null,null,null,null,null,null,null,null,null,null,null,null,null,null,null,null,null,null,"",0,0,0,0,"xxx","xxx","xxx","xxx","xxx","xxx","xxx",{"$error":"#VALUE!"},0,null,"xxx","xxx","xxx",0]
["","","","","","",null,null,null,null,null,null,null,null,null,null,null,null,null,null,null,null,null,null,null,null,null,null,null,null,null,null,null,null,"",0,0,0,0,"xxx","xxx","xxx","xxx","xxx","xxx","xxx",{"$error":"#VALUE!"},0,null,"xxx","xxx","xxx",0]
["","","","","","",null,null,null,null,null,null,null,null,null,null,null,null,null,null,null,null,null,null,null,null,null,null,null,null,null,null,null,null,"",0,0,0,0,"xxx","xxx","xxx","xxx","xxx","xxx","xxx",{"$error":"#VALUE!"},0,null,"xxx","xxx","xxx",0]
["","","","","","",null,null,null,null,null,null,null,null,null,null,null,null,null,null,null,null,null,null,null,null,null,null,null,null,null,null,null,null,"",0,0,0,0,"xxx","xxx","xxx","xxx","xxx","xxx","xxx",{"$error":"#VALUE!"},0,null,"xxx","xxx","xxx",0]
["","","","","","",null,null,null,null,null,null,null,null,null,null,null,null,null,null,null,null,null,null,null,null,null,null,null,null,null,null,null,null,"",0,0,0,0,"xxx","xxx","xxx","xxx","xxx","xxx","xxx",{"$error":"#VALUE!"},0,null,"xxx","xxx","xxx",0]
["","","","","","",null,null,null,null,null,null,null,null,null,null,null,null,null,null,null,null,null,null,null,null,null,null,null,null,null,null,null,null,"",0,0,0,0,"xxx","xxx","xxx","xxx","xxx","xxx","xxx",{"$error":"#VALUE!"},0,null,"xxx","xxx","xxx",0]
["","","","","","",null,null,null,null,null,null,null,null,null,null,null,null,null,null,null,null,null,null,null,null,null,null,null,null,null,null,null,null,"",0,0,0,0,"xxx","xxx","xxx","xxx","xxx","xxx","xxx",{"$error":"#VALUE!"},0,null,"xxx","xxx","xxx",0]
["","","","","","",null,null,null,null,null,null,null,null,null,null,null,null,null,null,null,null,null,null,null,null,null,null,null,null,null,null,null,null,"",0,0,0,0,"xxx","xxx","xxx","xxx","xxx","xxx","xxx",{"$error":"#VALUE!"},0,null,"xxx","xxx","xxx",0]
["","","","","","",null,null,null,null,null,null,null,null,null,null,null,null,null,null,null,null,null,null,null,null,null,null,null,null,null,null,null,null,"",0,0,0,0,"xxx","xxx","xxx","xxx","xxx","xxx","xxx",{"$error":"#VALUE!"},0,null,"xxx","xxx","xxx",0]
["","","","","","",null,null,null,null,null,null,null,null,null,null,null,null,null,null,null,null,null,null,null,null,null,null,null,null,null,null,null,null,"",0,0,0,0,"xxx","xxx","xxx","xxx","xxx","xxx","xxx",{"$error":"#VALUE!"},0,null,"xxx","xxx","xxx",0]
[{"$f":"IF(ROW()<$AG$4+$W$5,\"O\",\"\")","v":""},{"$f":"IF(A150<>\"\",IF($G$4=\"\",\"Błąd\",$AC$2),\"\")","v":""},{"$f":"IF(A150<>\"\",IF($G$4=\"\",\"Błąd\",$AC$3),\"\")","v":""},"",{"$f":"IF(A150<>\"\",IF(AT150=0,\"N\",IF(AZ150=0,\"R\",\"Błąd\")),\"\")","v":""},{"$f":"IF(A150<>\"\",IF(AT150=0,MID(H150,6,2),IF(AZ150=0,\"PL\",\"Błąd\")),\"\")","v":""},null,null,null,null,null,null,null,null,null,null,null,null,null,null,null,null,null,null,null,null,null,null,null,null,null,null,null,null,{"$f":"IF(AND(O150>=$AK$2,O150<=$AK$3),VLOOKUP(O150,$Q$26:$U$56,5,FALSE),\"\")","v":""},{"$f":"IF(LEN(G150)>0,1,0)","v":0},{"$f":"IF(T(L150)<>\"\",1,0)","v":0},{"$f":"IF(T(N150)<>\"\",1,0)","v":0},{"$f":"IF(T(O150)<>\"\",1,0)","v":0},{"$f":"IF($AO150=0,IF(LEN($H150)<>12,1,0),\"xxx\")","v":"xxx"},{"$f":"IF(LEFT($H150,1)=\"Z\",0,IF($H150=\"\",\"xxx\",1))","v":"xxx"},{"$f":"IF($AO150=0,IF(AND(MID($H150,2,4)<>\"0000\",MID($H150,2,4)<>\"1000\"),1,0),\"xxx\")","v":"xxx"},{"$f":"IF($AO150=0,IF(AND(LEN($H150)>=6,CODE(MID($H150,6,1))>=65,CODE(MID($H150,6,1))<=90),0,1),\"xxx\")","v":"xxx"},{"$f":"IF($AO150=0,IF(AND(LEN($H150)>=7,CODE(MID($H150,7,1))>=65,CODE(MID($H150,7,1))<=90),0,1),\"xxx\")","v":"xxx"},{"$f":"IF($AO150=0,IF(ISNUMBER($AU150),0,1),\"xxx\")","v":"xxx"},"xxx",{"$error":"#VALUE!"},0,null,"xxx",{"$f":"IF($AO150=1,IF(ISNUMBER($BA150),0,1),\"xxx\")","v":"xxx"},"xxx",{"$f":"VALUE(H150)","v":0}]
["","","","","","",null,null,null,null,null,null,null,null,null,null,null,null,null,null,null,null,null,null,null,null,null,null,null,null,null,null,null,null,"",0,0,0,0,"xxx","xxx","xxx","xxx","xxx","xxx",{"$f":"IF(COUNTIF(AN151:AR151,\"xxx\")>0,\"xxx\",SUM(AN151:AS151))","v":"xxx"},{"$f":"VALUE(MID($H151,8,5))","v":{"$error":"#VALUE!"}},{"$f":"SUM(AP151:AS151)","v":0},null,{"$f":"IF(AO151=1,IF(LEN($H151)=9,0,1),\"xxx\")","v":"xxx"},"xxx",{"$f":"IF(COUNTIF(AX151:AY151,\"xxx\")>0,\"xxx\",SUM(AX151:AY151))","v":"xxx"},0]
["","","","","","",null,null,null,null,null,null,null,null,null,null,null,null,null,null,null,null,null,null,null,null,null,null,null,null,null,null,null,null,"",0,0,0,0,"xxx","xxx","xxx","xxx","xxx","xxx","xxx",{"$error":"#VALUE!"},0,null,"xxx","xxx","xxx",0]
["","","","","","",null,null,null,null,null,null,null,null,null,null,null,null,null,null,null,null,null,null,null,null,null,null,null,null,null,null,null,null,"",0,0,0,0,"xxx","xxx","xxx","xxx","xxx","xxx","xxx",{"$error":"#VALUE!"},0,null,"xxx","xxx","xxx",0]
["","","","","","",null,null,null,null,null,null,null,null,null,null,null,null,null,null,null,null,null,null,null,null,null,null,null,null,null,null,null,null,"",0,0,0,0,"xxx","xxx","xxx","xxx","xxx","xxx","xxx",{"$error":"#VALUE!"},0,null,"xxx","xxx","xxx",0]
["","","","","","",null,null,null,null,null,null,null,null,null,null,null,null,null,null,null,null,null,null,null,null,null,null,null,null,null,null,null,null,"",0,0,0,0,"xxx","xxx","xxx","xxx","xxx","xxx","xxx",{"$error":"#VALUE!"},0,null,"xxx","xxx","xxx",0]
["","","","","","",null,null,null,null,null,null,null,null,null,null,null,null,null,null,null,null,null,null,null,null,null,null,null,null,null,null,null,null,"",0,0,0,0,"xxx","xxx","xxx","xxx","xxx","xxx","xxx",{"$error":"#VALUE!"},0,null,"xxx","xxx","xxx",0]
["","","","","","",null,null,null,null,null,null,null,null,null,null,null,null,null,null,null,null,null,null,null,null,null,null,null,null,null,null,null,null,"",0,0,0,0,"xxx","xxx","xxx","xxx","xxx","xxx","xxx",{"$error":"#VALUE!"},0,null,"xxx","xxx","xxx",0]
["","","","","","",null,null,null,null,null,null,null,null,null,null,null,null,null,null,null,null,null,null,null,null,null,null,null,null,null,null,null,null,"",0,0,0,0,"xxx","xxx","xxx","xxx","xxx","xxx","xxx",{"$error":"#VALUE!"},0,null,"xxx","xxx","xxx",0]
["","","","","","",null,null,null,null,null,null,null,null,null,null,null,null,null,null,null,null,null,null,null,null,null,null,null,null,null,null,null,null,"",0,0,0,0,"xxx","xxx","xxx","xxx","xxx","xxx","xxx",{"$error":"#VALUE!"},0,null,"xxx","xxx","xxx",0]
["","","","","","",null,null,null,null,null,null,null,null,null,null,null,null,null,null,null,null,null,null,null,null,null,null,null,null,null,null,null,null,"",0,0,0,0,"xxx","xxx","xxx","xxx","xxx","xxx","xxx",{"$error":"#VALUE!"},0,null,"xxx","xxx","xxx",0]
["","","","","","",null,null,null,null,null,null,null,null,null,null,null,null,null,null,null,null,null,null,null,null,null,null,null,null,null,null,null,null,"",0,0,0,0,"xxx","xxx","xxx","xxx","xxx","xxx","xxx",{"$error":"#VALUE!"},0,null,"xxx","xxx","xxx",0]
["","","","","","",null,null,null,null,null,null,null,null,null,null,null,null,null,null,null,null,null,null,null,null,null,null,null,null,null,null,null,null,"",0,0,0,0,"xxx","xxx","xxx","xxx","xxx","xxx","xxx",{"$error":"#VALUE!"},0,null,"xxx","xxx","xxx",0]
["","","",{"$f":"IF(A163<>\"\",IF(OR($S$15=\"Błąd\",$S$16=\"Błąd\",O163=\"\",O163<$AK$2,O163>$AK$3),\"Błąd\",O163),\"\")","v":""},"","",null,null,null,null,null,null,null,null,null,null,null,null,null,null,null,null,null,null,null,null,null,null,null,null,null,null,null,null,"",0,0,0,0,"xxx","xxx","xxx","xxx","xxx","xxx","xxx",{"$error":"#VALUE!"},0,null,"xxx","xxx","xxx",0]
["","","","","","",null,null,null,null,null,null,null,null,null,null,null,null,null,null,null,null,null,null,null,null,null,null,null,null,null,null,null,null,"",0,0,0,0,"xxx","xxx","xxx","xxx","xxx","xxx","xxx",{"$error":"#VALUE!"},0,null,"xxx","xxx","xxx",0]
["","","","","","",null,null,null,null,null,null,null,null,null,null,null,null,null,null,null,null,null,null,null,null,null,null,null,null,null,null,null,null,"",0,0,0,0,"xxx","xxx","xxx","xxx","xxx","xxx","xxx",{"$error":"#VALUE!"},0,null,"xxx","xxx","xxx",0]
["","","","","","",null,null,null,null,null,null,null,null,null,null,null,null,null,null,null,null,null,null,null,null,null,null,null,null,null,null,null,null,"",0,0,0,0,"xxx","xxx","xxx","xxx","xxx","xxx","xxx",{"$error":"#VALUE!"},0,null,"xxx","xxx","xxx",0]
["","","","","","",null,null,null,null,null,null,null,null,null,null,null,null,null,null,null,null,null,null,null,null,null,null,null,null,null,null,null,null,"",0,0,0,0,"xxx","xxx","xxx","xxx","xxx","xxx","xxx",{"$error":"#VALUE!"},0,null,"xxx","xxx","xxx",0]
["","","","","","",null,null,null,null,null,null,null,null,null,null,null,null,null,null,null,null,null,null,null,null,null,null,null,null,null,null,null,null,"",0,0,0,0,"xxx","xxx","xxx","xxx","xxx","xxx","xxx",{"$error":"#VALUE!"},0,null,"xxx","xxx","xxx",0]
["","","","","","",null,null,null,null,null,null,null,null,null,null,null,null,null,null,null,null,null,null,null,null,null,null,null,null,null,null,null,null,"",0,0,0,0,"xxx","xxx","xxx","xxx","xxx","xxx","xxx",{"$error":"#VALUE!"},0,null,"xxx","xxx","xxx",0]
["","","","","","",null,null,null,null,null,null,null,null,null,null,null,null,null,null,null,null,null,null,null,null,null,null,null,null,null,null,null,null,"",0,0,0,0,"xxx","xxx","xxx","xxx","xxx","xxx","xxx",{"$error":"#VALUE!"},0,null,"xxx","xxx","xxx",0]
["","","","","","",null,null,null,null,null,null,null,null,null,null,null,null,null,null,null,null,null,null,null,null,null,null,null,null,null,null,null,null,"",0,0,0,0,"xxx","xxx","xxx","xxx","xxx","xxx","xxx",{"$error":"#VALUE!"},0,null,"xxx","xxx","xxx",0]
["","","","","","",null,null,null,null,null,null,null,null,null,null,null,null,null,null,null,null,null,null,null,null,null,null,null,null,null,null,null,null,"",0,0,0,0,"xxx","xxx","xxx","xxx","xxx","xxx","xxx",{"$error":"#VALUE!"},0,null,"xxx","xxx","xxx",0]
["","","","","","",null,null,null,null,null,null,null,null,null,null,null,null,null,null,null,null,null,null,null,null,null,null,null,null,null,null,null,null,"",0,0,0,0,"xxx","xxx","xxx","xxx","xxx","xxx","xxx",{"$error":"#VALUE!"},0,null,"xxx","xxx","xxx",0]
["","","","","","",null,null,null,null,null,null,null,null,null,null,null,null,null,null,null,null,null,null,null,null,null,null,null,null,null,null,null,null,"",0,0,0,0,"xxx","xxx","xxx","xxx","xxx","xxx","xxx",{"$error":"#VALUE!"},0,null,"xxx","xxx","xxx",0]
["","","","","","",null,null,null,null,null,null,null,null,null,null,null,null,null,null,null,null,null,null,null,null,null,null,null,null,null,null,null,null,"",0,0,0,0,"xxx","xxx","xxx","xxx","xxx","xxx","xxx",{"$error":"#VALUE!"},0,null,"xxx","xxx","xxx",0]
["","","","","","",null,null,null,null,null,null,null,null,null,null,null,null,null,null,null,null,null,null,null,null,null,null,null,null,null,null,null,null,"",0,0,0,0,"xxx","xxx","xxx","xxx","xxx","xxx","xxx",{"$error":"#VALUE!"},0,null,"xxx","xxx","xxx",0]
["","","","","","",null,null,null,null,null,null,null,null,null,null,null,null,null,null,null,null,null,null,null,null,null,null,null,null,null,null,null,null,"",0,0,0,0,"xxx","xxx","xxx","xxx","xxx","xxx","xxx",{"$error":"#VALUE!"},0,null,"xxx","xxx","xxx",0]
["","","","","","",null,null,null,null,null,null,null,null,null,null,null,null,null,null,null,null,null,null,null,null,null,null,null,null,null,null,null,null,"",0,0,0,0,"xxx","xxx","xxx","xxx","xxx","xxx","xxx",{"$error":"#VALUE!"},0,null,"xxx","xxx","xxx",0]
["","","","","","",null,null,null,null,null,null,null,null,null,null,null,null,null,null,null,null,null,null,null,null,null,null,null,null,null,null,null,null,"",0,0,0,0,"xxx","xxx","xxx","xxx","xxx","xxx","xxx",{"$error":"#VALUE!"},0,null,"xxx","xxx","xxx",0]
["","","","","","",null,null,null,null,null,null,null,null,null,null,null,null,null,null,null,null,null,null,null,null,null,null,null,null,null,null,null,null,"",0,0,0,0,"xxx","xxx","xxx","xxx","xxx","xxx","xxx",{"$error":"#VALUE!"},0,null,"xxx","xxx","xxx",0]
["","","","","","",null,null,null,null,null,null,null,null,null,null,null,null,null,null,null,null,null,null,null,null,null,null,null,null,null,null,null,null,"",0,0,0,0,"xxx","xxx","xxx","xxx","xxx","xxx","xxx",{"$error":"#VALUE!"},0,null,"xxx","xxx","xxx",0]
["","","","","","",null,null,null,null,null,null,null,null,null,null,null,null,null,null,null,null,null,null,null,null,null,null,null,null,null,null,null,null,"",0,0,0,0,"xxx","xxx","xxx","xxx","xxx","xxx","xxx",{"$error":"#VALUE!"},0,null,"xxx","xxx","xxx",0]
["","","","","","",null,null,null,null,null,null,null,null,null,null,null,null,null,null,null,null,null,null,null,null,null,null,null,null,null,null,null,null,"",0,0,0,0,"xxx","xxx","xxx","xxx","xxx","xxx","xxx",{"$error":"#VALUE!"},0,null,"xxx","xxx","xxx",0]
["","","","","","",null,null,null,null,null,null,null,null,null,null,null,null,null,null,null,null,null,null,null,null,null,null,null,null,null,null,null,null,"",0,0,0,0,"xxx","xxx","xxx","xxx","xxx","xxx","xxx",{"$error":"#VALUE!"},0,null,"xxx","xxx","xxx",0]
["","","","","","",null,null,null,null,null,null,null,null,null,null,null,null,null,null,null,null,null,null,null,null,null,null,null,null,null,null,null,null,"",0,0,0,0,"xxx","xxx","xxx","xxx","xxx","xxx","xxx",{"$error":"#VALUE!"},0,null,"xxx","xxx","xxx",0]
["","","","","","",null,null,null,null,null,null,null,null,null,null,null,null,null,null,null,null,null,null,null,null,null,null,null,null,null,null,null,null,"",0,0,0,0,"xxx","xxx","xxx","xxx","xxx","xxx","xxx",{"$error":"#VALUE!"},0,null,"xxx","xxx","xxx",0]
["","","","","","",null,null,null,null,null,null,null,null,null,null,null,null,null,null,null,null,null,null,null,null,null,null,null,null,null,null,null,null,"",0,0,0,0,"xxx","xxx","xxx","xxx","xxx","xxx","xxx",{"$error":"#VALUE!"},0,null,"xxx","xxx","xxx",0]
["","","","","","",null,null,null,null,null,null,null,null,null,null,null,null,null,null,null,null,null,null,null,null,null,null,null,null,null,null,null,null,"",0,0,0,0,"xxx","xxx","xxx","xxx","xxx","xxx","xxx",{"$error":"#VALUE!"},0,null,"xxx","xxx","xxx",0]
["","","","","","",null,null,null,null,null,null,null,null,null,null,null,null,null,null,null,null,null,null,null,null,null,null,null,null,null,null,null,null,"",0,0,0,0,"xxx","xxx","xxx","xxx","xxx","xxx","xxx",{"$error":"#VALUE!"},0,null,"xxx","xxx","xxx",0]
["","","","","","",null,null,null,null,null,null,null,null,null,null,null,null,null,null,null,null,null,null,null,null,null,null,null,null,null,null,null,null,"",0,0,0,0,"xxx","xxx","xxx","xxx","xxx","xxx","xxx",{"$error":"#VALUE!"},0,null,"xxx","xxx","xxx",0]
["","","","","","",null,null,null,null,null,null,null,null,null,null,null,null,null,null,null,null,null,null,null,null,null,null,null,null,null,null,null,null,"",0,0,0,0,"xxx","xxx","xxx","xxx","xxx","xxx","xxx",{"$error":"#VALUE!"},0,null,"xxx","xxx","xxx",0]
["","","","","","",null,null,null,null,null,null,null,null,null,null,null,null,null,null,null,null,null,null,null,null,null,null,null,null,null,null,null,null,"",0,0,0,0,"xxx","xxx","xxx","xxx","xxx","xxx","xxx",{"$error":"#VALUE!"},0,null,"xxx","xxx","xxx",0]
["","","","","","",null,null,null,null,null,null,null,null,null,null,null,null,null,null,null,null,null,null,null,null,null,null,null,null,null,null,null,null,"",0,0,0,0,"xxx","xxx","xxx","xxx","xxx","xxx","xxx",{"$error":"#VALUE!"},0,null,"xxx","xxx","xxx",0]
["","","","","","",null,null,null,null,null,null,null,null,null,null,null,null,null,null,null,null,null,null,null,null,null,null,null,null,null,null,null,null,"",0,0,0,0,"xxx","xxx","xxx","xxx","xxx","xxx","xxx",{"$error":"#VALUE!"},0,null,"xxx","xxx","xxx",0]
["","","","","","",null,null,null,null,null,null,null,null,null,null,null,null,null,null,null,null,null,null,null,null,null,null,null,null,null,null,null,null,"",0,0,0,0,"xxx","xxx","xxx","xxx","xxx","xxx","xxx",{"$error":"#VALUE!"},0,null,"xxx","xxx","xxx",0]
["","","","","","",null,null,null,null,null,null,null,null,null,null,null,null,null,null,null,null,null,null,null,null,null,null,null,null,null,null,null,null,"",0,0,0,0,"xxx","xxx","xxx","xxx","xxx","xxx","xxx",{"$error":"#VALUE!"},0,null,"xxx","xxx","xxx",0]
["","","","","","",null,null,null,null,null,null,null,null,null,null,null,null,null,null,null,null,null,null,null,null,null,null,null,null,null,null,null,null,"",0,0,0,0,"xxx","xxx","xxx","xxx","xxx","xxx","xxx",{"$error":"#VALUE!"},0,null,"xxx","xxx","xxx",0]
["","","","","","",null,null,null,null,null,null,null,null,null,null,null,null,null,null,null,null,null,null,null,null,null,null,null,null,null,null,null,null,"",0,0,0,0,"xxx","xxx","xxx","xxx","xxx","xxx","xxx",{"$error":"#VALUE!"},0,null,"xxx","xxx","xxx",0]
["","","","","","",null,null,null,null,null,null,null,null,null,null,null,null,null,null,null,null,null,null,null,null,null,null,null,null,null,null,null,null,"",0,0,0,0,"xxx","xxx","xxx","xxx","xxx","xxx","xxx",{"$error":"#VALUE!"},0,null,"xxx","xxx","xxx",0]
["","","","","","",null,null,null,null,null,null,null,null,null,null,null,null,null,null,null,null,null,null,null,null,null,null,null,null,null,null,null,null,"",0,0,0,0,"xxx","xxx","xxx","xxx","xxx","xxx","xxx",{"$error":"#VALUE!"},0,null,"xxx","xxx","xxx",0]
["","","","","","",null,null,null,null,null,null,null,null,null,null,null,null,null,null,null,null,null,null,null,null,null,null,null,null,null,null,null,null,"",0,0,0,0,"xxx","xxx","xxx","xxx","xxx","xxx","xxx",{"$error":"#VALUE!"},0,null,"xxx","xxx","xxx",0]
["","","","","","",null,null,null,null,null,null,null,null,null,null,null,null,null,null,null,null,null,null,null,null,null,null,null,null,null,null,null,null,"",0,0,0,0,"xxx","xxx","xxx","xxx","xxx","xxx","xxx",{"$error":"#VALUE!"},0,null,"xxx","xxx","xxx",0]
["","","","","","",null,null,null,null,null,null,null,null,null,null,null,null,null,null,null,null,null,null,null,null,null,null,null,null,null,null,null,null,"",0,0,0,0,"xxx","xxx","xxx","xxx","xxx","xxx","xxx",{"$error":"#VALUE!"},0,null,"xxx","xxx","xxx",0]
["","","","","","",null,null,null,null,null,null,null,null,null,null,null,null,null,null,null,null,null,null,null,null,null,null,null,null,null,null,null,null,"",0,0,0,0,"xxx","xxx","xxx","xxx","xxx","xxx","xxx",{"$error":"#VALUE!"},0,null,"xxx","xxx","xxx",0]
["","","","","","",null,null,null,null,null,null,null,null,null,null,null,null,null,null,null,null,null,null,null,null,null,null,null,null,null,null,null,null,"",0,0,0,0,"xxx","xxx","xxx","xxx","xxx","xxx","xxx",{"$error":"#VALUE!"},0,null,"xxx","xxx","xxx",0]
["","","","","","",null,null,null,null,null,null,null,null,null,null,null,null,null,null,null,null,null,null,null,null,null,null,null,null,null,null,null,null,"",0,0,0,0,"xxx","xxx","xxx","xxx","xxx","xxx","xxx",{"$error":"#VALUE!"},0,null,"xxx","xxx","xxx",0]
["","","","","","",null,null,null,null,null,null,null,null,null,null,null,null,null,null,null,null,null,null,null,null,null,null,null,null,null,null,null,null,"",0,0,0,0,"xxx","xxx","xxx","xxx","xxx","xxx","xxx",{"$error":"#VALUE!"},0,null,"xxx","xxx","xxx",0]
["","","","","","",null,null,null,null,null,null,null,null,null,null,null,null,null,null,null,null,null,null,null,null,null,null,null,null,null,null,null,null,"",0,0,0,0,"xxx","xxx","xxx","xxx","xxx","xxx","xxx",{"$error":"#VALUE!"},0,null,"xxx","xxx","xxx",0]
["","","","","","",null,null,null,null,null,null,null,null,null,null,null,null,null,null,null,null,null,null,null,null,null,null,null,null,null,null,null,null,"",0,0,0,0,"xxx","xxx","xxx","xxx","xxx","xxx","xxx",{"$error":"#VALUE!"},0,null,"xxx","xxx","xxx",0]
["","","","","","",null,null,null,null,null,null,null,null,null,null,null,null,null,null,null,null,null,null,null,null,null,null,null,null,null,null,null,null,"",0,0,0,0,"xxx","xxx","xxx","xxx","xxx","xxx","xxx",{"$error":"#VALUE!"},0,null,"xxx","xxx","xxx",0]
["","","","","","",null,null,null,null,null,null,null,null,null,null,null,null,null,null,null,null,null,null,null,null,null,null,null,null,null,null,null,null,"",0,0,0,0,"xxx","xxx","xxx","xxx","xxx","xxx","xxx",{"$error":"#VALUE!"},0,null,"xxx","xxx","xxx",0]
["","","","","","",null,null,null,null,null,null,null,null,null,null,null,null,null,null,null,null,null,null,null,null,null,null,null,null,null,null,null,null,"",0,0,0,0,"xxx","xxx","xxx","xxx","xxx","xxx","xxx",{"$error":"#VALUE!"},0,null,"xxx","xxx","xxx",0]
["","","","","","",null,null,null,null,null,null,null,null,null,null,null,null,null,null,null,null,null,null,null,null,null,null,null,null,null,null,null,null,"",0,0,0,0,"xxx","xxx","xxx","xxx","xxx","xxx","xxx",{"$error":"#VALUE!"},0,null,"xxx","xxx","xxx",0]
[{"$f":"IF(ROW()<$AG$4+$W$5,\"O\",\"\")","v":""},{"$f":"IF(A214<>\"\",IF($G$4=\"\",\"Błąd\",$AC$2),\"\")","v":""},{"$f":"IF(A214<>\"\",IF($G$4=\"\",\"Błąd\",$AC$3),\"\")","v":""},"",{"$f":"IF(A214<>\"\",IF(AT214=0,\"N\",IF(AZ214=0,\"R\",\"Błąd\")),\"\")","v":""},{"$f":"IF(A214<>\"\",IF(AT214=0,MID(H214,6,2),IF(AZ214=0,\"PL\",\"Błąd\")),\"\")","v":""},null,null,null,null,null,null,null,null,null,null,null,null,null,null,null,null,null,null,null,null,null,null,null,null,null,null,null,null,{"$f":"IF(AND(O214>=$AK$2,O214<=$AK$3),VLOOKUP(O214,$Q$26:$U$56,5,FALSE),\"\")","v":""},{"$f":"IF(LEN(G214)>0,1,0)","v":0},{"$f":"IF(T(L214)<>\"\",1,0)","v":0},{"$f":"IF(T(N214)<>\"\",1,0)","v":0},{"$f":"IF(T(O214)<>\"\",1,0)","v":0},{"$f":"IF($AO214=0,IF(LEN($H214)<>12,1,0),\"xxx\")","v":"xxx"},{"$f":"IF(LEFT($H214,1)=\"Z\",0,IF($H214=\"\",\"xxx\",1))","v":"xxx"},{"$f":"IF($AO214=0,IF(AND(MID($H214,2,4)<>\"0000\",MID($H214,2,4)<>\"1000\"),1,0),\"xxx\")","v":"xxx"},{"$f":"IF($AO214=0,IF(AND(LEN($H214)>=6,CODE(MID($H214,6,1))>=65,CODE(MID($H214,6,1))<=90),0,1),\"xxx\")","v":"xxx"},{"$f":"IF($AO214=0,IF(AND(LEN($H214)>=7,CODE(MID($H214,7,1))>=65,CODE(MID($H214,7,1))<=90),0,1),\"xxx\")","v":"xxx"},{"$f":"IF($AO214=0,IF(ISNUMBER($AU214),0,1),\"xxx\")","v":"xxx"},"xxx",{"$error":"#VALUE!"},0,null,"xxx",{"$f":"IF($AO214=1,IF(ISNUMBER($BA214),0,1),\"xxx\")","v":"xxx"},"xxx",{"$f":"VALUE(H214)","v":0}]
["","","","","","",null,null,null,null,null,null,null,null,null,null,null,null,null,null,null,null,null,null,null,null,null,null,null,null,null,null,null,null,"",0,0,0,0,"xxx","xxx","xxx","xxx","xxx","xxx",{"$f":"IF(COUNTIF(AN215:AR215,\"xxx\")>0,\"xxx\",SUM(AN215:AS215))","v":"xxx"},{"$f":"VALUE(MID($H215,8,5))","v":{"$error":"#VALUE!"}},{"$f":"SUM(AP215:AS215)","v":0},null,{"$f":"IF(AO215=1,IF(LEN($H215)=9,0,1),\"xxx\")","v":"xxx"},"xxx",{"$f":"IF(COUNTIF(AX215:AY215,\"xxx\")>0,\"xxx\",SUM(AX215:AY215))","v":"xxx"},0]
["","","","","","",null,null,null,null,null,null,null,null,null,null,null,null,null,null,null,null,null,null,null,null,null,null,null,null,null,null,null,null,"",0,0,0,0,"xxx","xxx","xxx","xxx","xxx","xxx","xxx",{"$error":"#VALUE!"},0,null,"xxx","xxx","xxx",0]
["","","","","","",null,null,null,null,null,null,null,null,null,null,null,null,null,null,null,null,null,null,null,null,null,null,null,null,null,null,null,null,"",0,0,0,0,"xxx","xxx","xxx","xxx","xxx","xxx","xxx",{"$error":"#VALUE!"},0,null,"xxx","xxx","xxx",0]
["","","","","","",null,null,null,null,null,null,null,null,null,null,null,null,null,null,null,null,null,null,null,null,null,null,null,null,null,null,null,null,"",0,0,0,0,"xxx","xxx","xxx","xxx","xxx","xxx","xxx",{"$error":"#VALUE!"},0,null,"xxx","xxx","xxx",0]
["","","","","","",null,null,null,null,null,null,null,null,null,null,null,null,null,null,null,null,null,null,null,null,null,null,null,null,null,null,null,null,"",0,0,0,0,"xxx","xxx","xxx","xxx","xxx","xxx","xxx",{"$error":"#VALUE!"},0,null,"xxx","xxx","xxx",0]
["","","","","","",null,null,null,null,null,null,null,null,null,null,null,null,null,null,null,null,null,null,null,null,null,null,null,null,null,null,null,null,"",0,0,0,0,"xxx","xxx","xxx","xxx","xxx","xxx","xxx",{"$error":"#VALUE!"},0,null,"xxx","xxx","xxx",0]
["","","","","","",null,null,null,null,null,null,null,null,null,null,null,null,null,null,null,null,null,null,null,null,null,null,null,null,null,null,null,null,"",0,0,0,0,"xxx","xxx","xxx","xxx","xxx","xxx","xxx",{"$error":"#VALUE!"},0,null,"xxx","xxx","xxx",0]
["","","","","","",null,null,null,null,null,null,null,null,null,null,null,null,null,null,null,null,null,null,null,null,null,null,null,null,null,null,null,null,"",0,0,0,0,"xxx","xxx","xxx","xxx","xxx","xxx","xxx",{"$error":"#VALUE!"},0,null,"xxx","xxx","xxx",0]
["","","","","","",null,null,null,null,null,null,null,null,null,null,null,null,null,null,null,null,null,null,null,null,null,null,null,null,null,null,null,null,"",0,0,0,0,"xxx","xxx","xxx","xxx","xxx","xxx","xxx",{"$error":"#VALUE!"},0,null,"xxx","xxx","xxx",0]
["","","","","","",null,null,null,null,null,null,null,null,null,null,null,null,null,null,null,null,null,null,null,null,null,null,null,null,null,null,null,null,"",0,0,0,0,"xxx","xxx","xxx","xxx","xxx","xxx","xxx",{"$error":"#VALUE!"},0,null,"xxx","xxx","xxx",0]
["","","","","","",null,null,null,null,null,null,null,null,null,null,null,null,null,null,null,null,null,null,null,null,null,null,null,null,null,null,null,null,"",0,0,0,0,"xxx","xxx","xxx","xxx","xxx","xxx","xxx",{"$error":"#VALUE!"},0,null,"xxx","xxx","xxx",0]
["","","","","","",null,null,null,null,null,null,null,null,null,null,null,null,null,null,null,null,null,null,null,null,null,null,null,null,null,null,null,null,"",0,0,0,0,"xxx","xxx","xxx","xxx","xxx","xxx","xxx",{"$error":"#VALUE!"},0,null,"xxx","xxx","xxx",0]
["","","",{"$f":"IF(A227<>\"\",IF(OR($S$15=\"Błąd\",$S$16=\"Błąd\",O227=\"\",O227<$AK$2,O227>$AK$3),\"Błąd\",O227),\"\")","v":""},"","",null,null,null,null,null,null,null,null,null,null,null,null,null,null,null,null,null,null,null,null,null,null,null,null,null,null,null,null,"",0,0,0,0,"xxx","xxx","xxx","xxx","xxx","xxx","xxx",{"$error":"#VALUE!"},0,null,"xxx","xxx","xxx",0]
["","","","","","",null,null,null,null,null,null,null,null,null,null,null,null,null,null,null,null,null,null,null,null,null,null,null,null,null,null,null,null,"",0,0,0,0,"xxx","xxx","xxx","xxx","xxx","xxx","xxx",{"$error":"#VALUE!"},0,null,"xxx","xxx","xxx",0]
["","","","","","",null,null,null,null,null,null,null,null,null,null,null,null,null,null,null,null,null,null,null,null,null,null,null,null,null,null,null,null,"",0,0,0,0,"xxx","xxx","xxx","xxx","xxx","xxx","xxx",{"$error":"#VALUE!"},0,null,"xxx","xxx","xxx",0]
["","","","","","",null,null,null,null,null,null,null,null,null,null,null,null,null,null,null,null,null,null,null,null,null,null,null,null,null,null,null,null,"",0,0,0,0,"xxx","xxx","xxx","xxx","xxx","xxx","xxx",{"$error":"#VALUE!"},0,null,"xxx","xxx","xxx",0]
["","","","","","",null,null,null,null,null,null,null,null,null,null,null,null,null,null,null,null,null,null,null,null,null,null,null,null,null,null,null,null,"",0,0,0,0,"xxx","xxx","xxx","xxx","xxx","xxx","xxx",{"$error":"#VALUE!"},0,null,"xxx","xxx","xxx",0]
["","","","","","",null,null,null,null,null,null,null,null,null,null,null,null,null,null,null,null,null,null,null,null,null,null,null,null,null,null,null,null,"",0,0,0,0,"xxx","xxx","xxx","xxx","xxx","xxx","xxx",{"$error":"#VALUE!"},0,null,"xxx","xxx","xxx",0]
["","","","","","",null,null,null,null,null,null,null,null,null,null,null,null,null,null,null,null,null,null,null,null,null,null,null,null,null,null,null,null,"",0,0,0,0,"xxx","xxx","xxx","xxx","xxx","xxx","xxx",{"$error":"#VALUE!"},0,null,"xxx","xxx","xxx",0]
["","","","","","",null,null,null,null,null,null,null,null,null,null,null,null,null,null,null,null,null,null,null,null,null,null,null,null,null,null,null,null,"",0,0,0,0,"xxx","xxx","xxx","xxx","xxx","xxx","xxx",{"$error":"#VALUE!"},0,null,"xxx","xxx","xxx",0]
["","","","","","",null,null,null,null,null,null,null,null,null,null,null,null,null,null,null,null,null,null,null,null,null,null,null,null,null,null,null,null,"",0,0,0,0,"xxx","xxx","xxx","xxx","xxx","xxx","xxx",{"$error":"#VALUE!"},0,null,"xxx","xxx","xxx",0]
["","","","","","",null,null,null,null,null,null,null,null,null,null,null,null,null,null,null,null,null,null,null,null,null,null,null,null,null,null,null,null,"",0,0,0,0,"xxx","xxx","xxx","xxx","xxx","xxx","xxx",{"$error":"#VALUE!"},0,null,"xxx","xxx","xxx",0]
["","","","","","",null,null,null,null,null,null,null,null,null,null,null,null,null,null,null,null,null,null,null,null,null,null,null,null,null,null,null,null,"",0,0,0,0,"xxx","xxx","xxx","xxx","xxx","xxx","xxx",{"$error":"#VALUE!"},0,null,"xxx","xxx","xxx",0]
["","","","","","",null,null,null,null,null,null,null,null,null,null,null,null,null,null,null,null,null,null,null,null,null,null,null,null,null,null,null,null,"",0,0,0,0,"xxx","xxx","xxx","xxx","xxx","xxx","xxx",{"$error":"#VALUE!"},0,null,"xxx","xxx","xxx",0]
["","","","","","",null,null,null,null,null,null,null,null,null,null,null,null,null,null,null,null,null,null,null,null,null,null,null,null,null,null,null,null,"",0,0,0,0,"xxx","xxx","xxx","xxx","xxx","xxx","xxx",{"$error":"#VALUE!"},0,null,"xxx","xxx","xxx",0]
["","","","","","",null,null,null,null,null,null,null,null,null,null,null,null,null,null,null,null,null,null,null,null,null,null,null,null,null,null,null,null,"",0,0,0,0,"xxx","xxx","xxx","xxx","xxx","xxx","xxx",{"$error":"#VALUE!"},0,null,"xxx","xxx","xxx",0]
["","","","","","",null,null,null,null,null,null,null,null,null,null,null,null,null,null,null,null,null,null,null,null,null,null,null,null,null,null,null,null,"",0,0,0,0,"xxx","xxx","xxx","xxx","xxx","xxx","xxx",{"$error":"#VALUE!"},0,null,"xxx","xxx","xxx",0]
["","","","","","",null,null,null,null,null,null,null,null,null,null,null,null,null,null,null,null,null,null,null,null,null,null,null,null,null,null,null,null,"",0,0,0,0,"xxx","xxx","xxx","xxx","xxx","xxx","xxx",{"$error":"#VALUE!"},0,null,"xxx","xxx","xxx",0]
["","","","","","",null,null,null,null,null,null,null,null,null,null,null,null,null,null,null,null,null,null,null,null,null,null,null,null,null,null,null,null,"",0,0,0,0,"xxx","xxx","xxx","xxx","xxx","xxx","xxx",{"$error":"#VALUE!"},0,null,"xxx","xxx","xxx",0]
["","","","","","",null,null,null,null,null,null,null,null,null,null,null,null,null,null,null,null,null,null,null,null,null,null,null,null,null,null,null,null,"",0,0,0,0,"xxx","xxx","xxx","xxx","xxx","xxx","xxx",{"$error":"#VALUE!"},0,null,"xxx","xxx","xxx",0]
["","","","","","",null,null,null,null,null,null,null,null,null,null,null,null,null,null,null,null,null,null,null,null,null,null,null,null,null,null,null,null,"",0,0,0,0,"xxx","xxx","xxx","xxx","xxx","xxx","xxx",{"$error":"#VALUE!"},0,null,"xxx","xxx","xxx",0]
["","","","","","",null,null,null,null,null,null,null,null,null,null,null,null,null,null,null,null,null,null,null,null,null,null,null,null,null,null,null,null,"",0,0,0,0,"xxx","xxx","xxx","xxx","xxx","xxx","xxx",{"$error":"#VALUE!"},0,null,"xxx","xxx","xxx",0]
["","","","","","",null,null,null,null,null,null,null,null,null,null,null,null,null,null,null,null,null,null,null,null,null,null,null,null,null,null,null,null,"",0,0,0,0,"xxx","xxx","xxx","xxx","xxx","xxx","xxx",{"$error":"#VALUE!"},0,null,"xxx","xxx","xxx",0]
["","","","","","",null,null,null,null,null,null,null,null,null,null,null,null,null,null,null,null,null,null,null,null,null,null,null,null,null,null,null,null,"",0,0,0,0,"xxx","xxx","xxx","xxx","xxx","xxx","xxx",{"$error":"#VALUE!"},0,null,"xxx","xxx","xxx",0]
["","","","","","",null,null,null,null,null,null,null,null,null,null,null,null,null,null,null,null,null,null,null,null,null,null,null,null,null,null,null,null,"",0,0,0,0,"xxx","xxx","xxx","xxx","xxx","xxx","xxx",{"$error":"#VALUE!"},0,null,"xxx","xxx","xxx",0]
["","","","","","",null,null,null,null,null,null,null,null,null,null,null,null,null,null,null,null,null,null,null,null,null,null,null,null,null,null,null,null,"",0,0,0,0,"xxx","xxx","xxx","xxx","xxx","xxx","xxx",{"$error":"#VALUE!"},0,null,"xxx","xxx","xxx",0]
["","","","","","",null,null,null,null,null,null,null,null,null,null,null,null,null,null,null,null,null,null,null,null,null,null,null,null,null,null,null,null,"",0,0,0,0,"xxx","xxx","xxx","xxx","xxx","xxx","xxx",{"$error":"#VALUE!"},0,null,"xxx","xxx","xxx",0]
["","","","","","",null,null,null,null,null,null,null,null,null,null,null,null,null,null,null,null,null,null,null,null,null,null,null,null,null,null,null,null,"",0,0,0,0,"xxx","xxx","xxx","xxx","xxx","xxx","xxx",{"$error":"#VALUE!"},0,null,"xxx","xxx","xxx",0]
["","","","","","",null,null,null,null,null,null,null,null,null,null,null,null,null,null,null,null,null,null,null,null,null,null,null,null,null,null,null,null,"",0,0,0,0,"xxx","xxx","xxx","xxx","xxx","xxx","xxx",{"$error":"#VALUE!"},0,null,"xxx","xxx","xxx",0]
["","","","","","",null,null,null,null,null,null,null,null,null,null,null,null,null,null,null,null,null,null,null,null,null,null,null,null,null,null,null,null,"",0,0,0,0,"xxx","xxx","xxx","xxx","xxx","xxx","xxx",{"$error":"#VALUE!"},0,null,"xxx","xxx","xxx",0]
["","","","","","",null,null,null,null,null,null,null,null,null,null,null,null,null,null,null,null,null,null,null,null,null,null,null,null,null,null,null,null,"",0,0,0,0,"xxx","xxx","xxx","xxx","xxx","xxx","xxx",{"$error":"#VALUE!"},0,null,"xxx","xxx","xxx",0]
["","","","","","",null,null,null,null,null,null,null,null,null,null,null,null,null,null,null,null,null,null,null,null,null,null,null,null,null,null,null,null,"",0,0,0,0,"xxx","xxx","xxx","xxx","xxx","xxx","xxx",{"$error":"#VALUE!"},0,null,"xxx","xxx","xxx",0]
["","","","","","",null,null,null,null,null,null,null,null,null,null,null,null,null,null,null,null,null,null,null,null,null,null,null,null,null,null,null,null,"",0,0,0,0,"xxx","xxx","xxx","xxx","xxx","xxx","xxx",{"$error":"#VALUE!"},0,null,"xxx","xxx","xxx",0]
["","","","","","",null,null,null,null,null,null,null,null,null,null,null,null,null,null,null,null,null,null,null,null,null,null,null,null,null,null,null,null,"",0,0,0,0,"xxx","xxx","xxx","xxx","xxx","xxx","xxx",{"$error":"#VALUE!"},0,null,"xxx","xxx","xxx",0]
["","","","","","",null,null,null,null,null,null,null,null,null,null,null,null,null,null,null,null,null,null,null,null,null,null,null,null,null,null,null,null,"",0,0,0,0,"xxx","xxx","xxx","xxx","xxx","xxx","xxx",{"$error":"#VALUE!"},0,null,"xxx","xxx","xxx",0]
["","","","","","",null,null,null,null,null,null,null,null,null,null,null,null,null,null,null,null,null,null,null,null,null,null,null,null,null,null,null,null,"",0,0,0,0,"xxx","xxx","xxx","xxx","xxx","xxx","xxx",{"$error":"#VALUE!"},0,null,"xxx","xxx","xxx",0]
["","","","","","",null,null,null,null,null,null,null,null,null,null,null,null,null,null,null,null,null,null,null,null,null,null,null,null,null,null,null,null,"",0,0,0,0,"xxx","xxx","xxx","xxx","xxx","xxx","xxx",{"$error":"#VALUE!"},0,null,"xxx","xxx","xxx",0]
["","","","","","",null,null,null,null,null,null,null,null,null,null,null,null,null,null,null,null,null,null,null,null,null,null,null,null,null,null,null,null,"",0,0,0,0,"xxx","xxx","xxx","xxx","xxx","xxx","xxx",{"$error":"#VALUE!"},0,null,"xxx","xxx","xxx",0]
["","","","","","",null,null,null,null,null,null,null,null,null,null,null,null,null,null,null,null,null,null,null,null,null,null,null,null,null,null,null,null,"",0,0,0,0,"xxx","xxx","xxx","xxx","xxx","xxx","xxx",{"$error":"#VALUE!"},0,null,"xxx","xxx","xxx",0]
["","","","","","",null,null,null,null,null,null,null,null,null,null,null,null,null,null,null,null,null,null,null,null,null,null,null,null,null,null,null,null,"",0,0,0,0,"xxx","xxx","xxx","xxx","xxx","xxx","xxx",{"$error":"#VALUE!"},0,null,"xxx","xxx","xxx",0]
["","","","","","",null,null,null,null,null,null,null,null,null,null,null,null,null,null,null,null,null,null,null,null,null,null,null,null,null,null,null,null,"",0,0,0,0,"xxx","xxx","xxx","xxx","xxx","xxx","xxx",{"$error":"#VALUE!"},0,null,"xxx","xxx","xxx",0]
["","","","","","",null,null,null,null,null,null,null,null,null,null,null,null,null,null,null,null,null,null,null,null,null,null,null,null,null,null,null,null,"",0,0,0,0,"xxx","xxx","xxx","xxx","xxx","xxx","xxx",{"$error":"#VALUE!"},0,null,"xxx","xxx","xxx",0]
["","","","","","",null,null,null,null,null,null,null,null,null,null,null,null,null,null,null,null,null,null,null,null,null,null,null,null,null,null,null,null,"",0,0,0,0,"xxx","xxx","xxx","xxx","xxx","xxx","xxx",{"$error":"#VALUE!"},0,null,"xxx","xxx","xxx",0]
["","","","","","",null,null,null,null,null,null,null,null,null,null,null,null,null,null,null,null,null,null,null,null,null,null,null,null,null,null,null,null,"",0,0,0,0,"xxx","xxx","xxx","xxx","xxx","xxx","xxx",{"$error":"#VALUE!"},0,null,"xxx","xxx","xxx",0]
["","","","","","",null,null,null,null,null,null,null,null,null,null,null,null,null,null,null,null,null,null,null,null,null,null,null,null,null,null,null,null,"",0,0,0,0,"xxx","xxx","xxx","xxx","xxx","xxx","xxx",{"$error":"#VALUE!"},0,null,"xxx","xxx","xxx",0]
["","","","","","",null,null,null,null,null,null,null,null,null,null,null,null,null,null,null,null,null,null,null,null,null,null,null,null,null,null,null,null,"",0,0,0,0,"xxx","xxx","xxx","xxx","xxx","xxx","xxx",{"$error":"#VALUE!"},0,null,"xxx","xxx","xxx",0]
["","","","","","",null,null,null,null,null,null,null,null,null,null,null,null,null,null,null,null,null,null,null,null,null,null,null,null,null,null,null,null,"",0,0,0,0,"xxx","xxx","xxx","xxx","xxx","xxx","xxx",{"$error":"#VALUE!"},0,null,"xxx","xxx","xxx",0]
["","","","","","",null,null,null,null,null,null,null,null,null,null,null,null,null,null,null,null,null,null,null,null,null,null,null,null,null,null,null,null,"",0,0,0,0,"xxx","xxx","xxx","xxx","xxx","xxx","xxx",{"$error":"#VALUE!"},0,null,"xxx","xxx","xxx",0]
["","","","","","",null,null,null,null,null,null,null,null,null,null,null,null,null,null,null,null,null,null,null,null,null,null,null,null,null,null,null,null,"",0,0,0,0,"xxx","xxx","xxx","xxx","xxx","xxx","xxx",{"$error":"#VALUE!"},0,null,"xxx","xxx","xxx",0]
["","","","","","",null,null,null,null,null,null,null,null,null,null,null,null,null,null,null,null,null,null,null,null,null,null,null,null,null,null,null,null,"",0,0,0,0,"xxx","xxx","xxx","xxx","xxx","xxx","xxx",{"$error":"#VALUE!"},0,null,"xxx","xxx","xxx",0]
["","","","","","",null,null,null,null,null,null,null,null,null,null,null,null,null,null,null,null,null,null,null,null,null,null,null,null,null,null,null,null,"",0,0,0,0,"xxx","xxx","xxx","xxx","xxx","xxx","xxx",{"$error":"#VALUE!"},0,null,"xxx","xxx","xxx",0]
["","","","","","",null,null,null,null,null,null,null,null,null,null,null,null,null,null,null,null,null,null,null,null,null,null,null,null,null,null,null,null,"",0,0,0,0,"xxx","xxx","xxx","xxx","xxx","xxx","xxx",{"$error":"#VALUE!"},0,null,"xxx","xxx","xxx",0]
["","","","","","",null,null,null,null,null,null,null,null,null,null,null,null,null,null,null,null,null,null,null,null,null,null,null,null,null,null,null,null,"",0,0,0,0,"xxx","xxx","xxx","xxx","xxx","xxx","xxx",{"$error":"#VALUE!"},0,null,"xxx","xxx","xxx",0]
[{"$f":"IF(ROW()<$AG$4+$W$5,\"O\",\"\")","v":""},{"$f":"IF(A278<>\"\",IF($G$4=\"\",\"Błąd\",$AC$2),\"\")","v":""},{"$f":"IF(A278<>\"\",IF($G$4=\"\",\"Błąd\",$AC$3),\"\")","v":""},"",{"$f":"IF(A278<>\"\",IF(AT278=0,\"N\",IF(AZ278=0,\"R\",\"Błąd\")),\"\")","v":""},{"$f":"IF(A278<>\"\",IF(AT278=0,MID(H278,6,2),IF(AZ278=0,\"PL\",\"Błąd\")),\"\")","v":""},null,null,null,null,null,null,null,null,null,null,null,null,null,null,null,null,null,null,null,null,null,null,null,null,null,null,null,null,{"$f":"IF(AND(O278>=$AK$2,O278<=$AK$3),VLOOKUP(O278,$Q$26:$U$56,5,FALSE),\"\")","v":""},{"$f":"IF(LEN(G278)>0,1,0)","v":0},{"$f":"IF(T(L278)<>\"\",1,0)","v":0},{"$f":"IF(T(N278)<>\"\",1,0)","v":0},{"$f":"IF(T(O278)<>\"\",1,0)","v":0},{"$f":"IF($AO278=0,IF(LEN($H278)<>12,1,0),\"xxx\")","v":"xxx"},{"$f":"IF(LEFT($H278,1)=\"Z\",0,IF($H278=\"\",\"xxx\",1))","v":"xxx"},{"$f":"IF($AO278=0,IF(AND(MID($H278,2,4)<>\"0000\",MID($H278,2,4)<>\"1000\"),1,0),\"xxx\")","v":"xxx"},{"$f":"IF($AO278=0,IF(AND(LEN($H278)>=6,CODE(MID($H278,6,1))>=65,CODE(MID($H278,6,1))<=90),0,1),\"xxx\")","v":"xxx"},{"$f":"IF($AO278=0,IF(AND(LEN($H278)>=7,CODE(MID($H278,7,1))>=65,CODE(MID($H278,7,1))<=90),0,1),\"xxx\")","v":"xxx"},{"$f":"IF($AO278=0,IF(ISNUMBER($AU278),0,1),\"xxx\")","v":"xxx"},"xxx",{"$error":"#VALUE!"},0,null,"xxx",{"$f":"IF($AO278=1,IF(ISNUMBER($BA278),0,1),\"xxx\")","v":"xxx"},"xxx",{"$f":"VALUE(H278)","v":0}]
["","","","","","",null,null,null,null,null,null,null,null,null,null,null,null,null,null,null,null,null,null,null,null,null,null,null,null,null,null,null,null,"",0,0,0,0,"xxx","xxx","xxx","xxx","xxx","xxx",{"$f":"IF(COUNTIF(AN279:AR279,\"xxx\")>0,\"xxx\",SUM(AN279:AS279))","v":"xxx"},{"$f":"VALUE(MID($H279,8,5))","v":{"$error":"#VALUE!"}},{"$f":"SUM(AP279:AS279)","v":0},null,{"$f":"IF(AO279=1,IF(LEN($H279)=9,0,1),\"xxx\")","v":"xxx"},"xxx",{"$f":"IF(COUNTIF(AX279:AY279,\"xxx\")>0,\"xxx\",SUM(AX279:AY279))","v":"xxx"},0]
["","","","","","",null,null,null,null,null,null,null,null,null,null,null,null,null,null,null,null,null,null,null,null,null,null,null,null,null,null,null,null,"",0,0,0,0,"xxx","xxx","xxx","xxx","xxx","xxx","xxx",{"$error":"#VALUE!"},0,null,"xxx","xxx","xxx",0]
["","","","","","",null,null,null,null,null,null,null,null,null,null,null,null,null,null,null,null,null,null,null,null,null,null,null,null,null,null,null,null,"",0,0,0,0,"xxx","xxx","xxx","xxx","xxx","xxx","xxx",{"$error":"#VALUE!"},0,null,"xxx","xxx","xxx",0]
["","","","","","",null,null,null,null,null,null,null,null,null,null,null,null,null,null,null,null,null,null,null,null,null,null,null,null,null,null,null,null,"",0,0,0,0,"xxx","xxx","xxx","xxx","xxx","xxx","xxx",{"$error":"#VALUE!"},0,null,"xxx","xxx","xxx",0]
["","","","","","",null,null,null,null,null,null,null,null,null,null,null,null,null,null,null,null,null,null,null,null,null,null,null,null,null,null,null,null,"",0,0,0,0,"xxx","xxx","xxx","xxx","xxx","xxx","xxx",{"$error":"#VALUE!"},0,null,"xxx","xxx","xxx",0]
["","","","","","",null,null,null,null,null,null,null,null,null,null,null,null,null,null,null,null,null,null,null,null,null,null,null,null,null,null,null,null,"",0,0,0,0,"xxx","xxx","xxx","xxx","xxx","xxx","xxx",{"$error":"#VALUE!"},0,null,"xxx","xxx","xxx",0]
["","","","","","",null,null,null,null,null,null,null,null,null,null,null,null,null,null,null,null,null,null,null,null,null,null,null,null,null,null,null,null,"",0,0,0,0,"xxx","xxx","xxx","xxx","xxx","xxx","xxx",{"$error":"#VALUE!"},0,null,"xxx","xxx","xxx",0]
["","","","","","",null,null,null,null,null,null,null,null,null,null,null,null,null,null,null,null,null,null,null,null,null,null,null,null,null,null,null,null,"",0,0,0,0,"xxx","xxx","xxx","xxx","xxx","xxx","xxx",{"$error":"#VALUE!"},0,null,"xxx","xxx","xxx",0]
["","","","","","",null,null,null,null,null,null,null,null,null,null,null,null,null,null,null,null,null,null,null,null,null,null,null,null,null,null,null,null,"",0,0,0,0,"xxx","xxx","xxx","xxx","xxx","xxx","xxx",{"$error":"#VALUE!"},0,null,"xxx","xxx","xxx",0]
["","","","","","",null,null,null,null,null,null,null,null,null,null,null,null,null,null,null,null,null,null,null,null,null,null,null,null,null,null,null,null,"",0,0,0,0,"xxx","xxx","xxx","xxx","xxx","xxx","xxx",{"$error":"#VALUE!"},0,null,"xxx","xxx","xxx",0]
["","","","","","",null,null,null,null,null,null,null,null,null,null,null,null,null,null,null,null,null,null,null,null,null,null,null,null,null,null,null,null,"",0,0,0,0,"xxx","xxx","xxx","xxx","xxx","xxx","xxx",{"$error":"#VALUE!"},0,null,"xxx","xxx","xxx",0]
["","","","","","",null,null,null,null,null,null,null,null,null,null,null,null,null,null,null,null,null,null,null,null,null,null,null,null,null,null,null,null,"",0,0,0,0,"xxx","xxx","xxx","xxx","xxx","xxx","xxx",{"$error":"#VALUE!"},0,null,"xxx","xxx","xxx",0]
["","","",{"$f":"IF(A291<>\"\",IF(OR($S$15=\"Błąd\",$S$16=\"Błąd\",O291=\"\",O291<$AK$2,O291>$AK$3),\"Błąd\",O291),\"\")","v":""},"","",null,null,null,null,null,null,null,null,null,null,null,null,null,null,null,null,null,null,null,null,null,null,null,null,null,null,null,null,"",0,0,0,0,"xxx","xxx","xxx","xxx","xxx","xxx","xxx",{"$error":"#VALUE!"},0,null,"xxx","xxx","xxx",0]
["","","","","","",null,null,null,null,null,null,null,null,null,null,null,null,null,null,null,null,null,null,null,null,null,null,null,null,null,null,null,null,"",0,0,0,0,"xxx","xxx","xxx","xxx","xxx","xxx","xxx",{"$error":"#VALUE!"},0,null,"xxx","xxx","xxx",0]
["","","","","","",null,null,null,null,null,null,null,null,null,null,null,null,null,null,null,null,null,null,null,null,null,null,null,null,null,null,null,null,"",0,0,0,0,"xxx","xxx","xxx","xxx","xxx","xxx","xxx",{"$error":"#VALUE!"},0,null,"xxx","xxx","xxx",0]
["","","","","","",null,null,null,null,null,null,null,null,null,null,null,null,null,null,null,null,null,null,null,null,null,null,null,null,null,null,null,null,"",0,0,0,0,"xxx","xxx","xxx","xxx","xxx","xxx","xxx",{"$error":"#VALUE!"},0,null,"xxx","xxx","xxx",0]
["","","","","","",null,null,null,null,null,null,null,null,null,null,null,null,null,null,null,null,null,null,null,null,null,null,null,null,null,null,null,null,"",0,0,0,0,"xxx","xxx","xxx","xxx","xxx","xxx","xxx",{"$error":"#VALUE!"},0,null,"xxx","xxx","xxx",0]
["","","","","","",null,null,null,null,null,null,null,null,null,null,null,null,null,null,null,null,null,null,null,null,null,null,null,null,null,null,null,null,"",0,0,0,0,"xxx","xxx","xxx","xxx","xxx","xxx","xxx",{"$error":"#VALUE!"},0,null,"xxx","xxx","xxx",0]
["","","","","","",null,null,null,null,null,null,null,null,null,null,null,null,null,null,null,null,null,null,null,null,null,null,null,null,null,null,null,null,"",0,0,0,0,"xxx","xxx","xxx","xxx","xxx","xxx","xxx",{"$error":"#VALUE!"},0,null,"xxx","xxx","xxx",0]
["","","","","","",null,null,null,null,null,null,null,null,null,null,null,null,null,null,null,null,null,null,null,null,null,null,null,null,null,null,null,null,"",0,0,0,0,"xxx","xxx","xxx","xxx","xxx","xxx","xxx",{"$error":"#VALUE!"},0,null,"xxx","xxx","xxx",0]
["","","","","","",null,null,null,null,null,null,null,null,null,null,null,null,null,null,null,null,null,null,null,null,null,null,null,null,null,null,null,null,"",0,0,0,0,"xxx","xxx","xxx","xxx","xxx","xxx","xxx",{"$error":"#VALUE!"},0,null,"xxx","xxx","xxx",0]
["","","","","","",null,null,null,null,null,null,null,null,null,null,null,null,null,null,null,null,null,null,null,null,null,null,null,null,null,null,null,null,"",0,0,0,0,"xxx","xxx","xxx","xxx","xxx","xxx","xxx",{"$error":"#VALUE!"},0,null,"xxx","xxx","xxx",0]
["","","","","","",null,null,null,null,null,null,null,null,null,null,null,null,null,null,null,null,null,null,null,null,null,null,null,null,null,null,null,null,"",0,0,0,0,"xxx","xxx","xxx","xxx","xxx","xxx","xxx",{"$error":"#VALUE!"},0,null,"xxx","xxx","xxx",0]
["","","","","","",null,null,null,null,null,null,null,null,null,null,null,null,null,null,null,null,null,null,null,null,null,null,null,null,null,null,null,null,"",0,0,0,0,"xxx","xxx","xxx","xxx","xxx","xxx","xxx",{"$error":"#VALUE!"},0,null,"xxx","xxx","xxx",0]
["","","","","","",null,null,null,null,null,null,null,null,null,null,null,null,null,null,null,null,null,null,null,null,null,null,null,null,null,null,null,null,"",0,0,0,0,"xxx","xxx","xxx","xxx","xxx","xxx","xxx",{"$error":"#VALUE!"},0,null,"xxx","xxx","xxx",0]
["","","","","","",null,null,null,null,null,null,null,null,null,null,null,null,null,null,null,null,null,null,null,null,null,null,null,null,null,null,null,null,"",0,0,0,0,"xxx","xxx","xxx","xxx","xxx","xxx","xxx",{"$error":"#VALUE!"},0,null,"xxx","xxx","xxx",0]
["","","","","","",null,null,null,null,null,null,null,null,null,null,null,null,null,null,null,null,null,null,null,null,null,null,null,null,null,null,null,null,"",0,0,0,0,"xxx","xxx","xxx","xxx","xxx","xxx","xxx",{"$error":"#VALUE!"},0,null,"xxx","xxx","xxx",0]
["","","","","","",null,null,null,null,null,null,null,null,null,null,null,null,null,null,null,null,null,null,null,null,null,null,null,null,null,null,null,null,"",0,0,0,0,"xxx","xxx","xxx","xxx","xxx","xxx","xxx",{"$error":"#VALUE!"},0,null,"xxx","xxx","xxx",0]
["","","","","","",null,null,null,null,null,null,null,null,null,null,null,null,null,null,null,null,null,null,null,null,null,null,null,null,null,null,null,null,"",0,0,0,0,"xxx","xxx","xxx","xxx","xxx","xxx","xxx",{"$error":"#VALUE!"},0,null,"xxx","xxx","xxx",0]
["","","","","","",null,null,null,null,null,null,null,null,null,null,null,null,null,null,null,null,null,null,null,null,null,null,null,null,null,null,null,null,"",0,0,0,0,"xxx","xxx","xxx","xxx","xxx","xxx","xxx",{"$error":"#VALUE!"},0,null,"xxx","xxx","xxx",0]
["","","","","","",null,null,null,null,null,null,null,null,null,null,null,null,null,null,null,null,null,null,null,null,null,null,null,null,null,null,null,null,"",0,0,0,0,"xxx","xxx","xxx","xxx","xxx","xxx","xxx",{"$error":"#VALUE!"},0,null,"xxx","xxx","xxx",0]
["","","","","","",null,null,null,null,null,null,null,null,null,null,null,null,null,null,null,null,null,null,null,null,null,null,null,null,null,null,null,null,"",0,0,0,0,"xxx","xxx","xxx","xxx","xxx","xxx","xxx",{"$error":"#VALUE!"},0,null,"xxx","xxx","xxx",0]
["","","","","","",null,null,null,null,null,null,null,null,null,null,null,null,null,null,null,null,null,null,null,null,null,null,null,null,null,null,null,null,"",0,0,0,0,"xxx","xxx","xxx","xxx","xxx","xxx","xxx",{"$error":"#VALUE!"},0,null,"xxx","xxx","xxx",0]
["","","","","","",null,null,null,null,null,null,null,null,null,null,null,null,null,null,null,null,null,null,null,null,null,null,null,null,null,null,null,null,"",0,0,0,0,"xxx","xxx","xxx","xxx","xxx","xxx","xxx",{"$error":"#VALUE!"},0,null,"xxx","xxx","xxx",0]
["","","","","","",null,null,null,null,null,null,null,null,null,null,null,null,null,null,null,null,null,null,null,null,null,null,null,null,null,null,null,null,"",0,0,0,0,"xxx","xxx","xxx","xxx","xxx","xxx","xxx",{"$error":"#VALUE!"},0,null,"xxx","xxx","xxx",0]
["","","","","","",null,null,null,null,null,null,null,null,null,null,null,null,null,null,null,null,null,null,null,null,null,null,null,null,null,null,null,null,"",0,0,0,0,"xxx","xxx","xxx","xxx","xxx","xxx","xxx",{"$error":"#VALUE!"},0,null,"xxx","xxx","xxx",0]
["","","","","","",null,null,null,null,null,null,null,null,null,null,null,null,null,null,null,null,null,null,null,null,null,null,null,null,null,null,null,null,"",0,0,0,0,"xxx","xxx","xxx","xxx","xxx","xxx","xxx",{"$error":"#VALUE!"},0,null,"xxx","xxx","xxx",0]
["","","","","","",null,null,null,null,null,null,null,null,null,null,null,null,null,null,null,null,null,null,null,null,null,null,null,null,null,null,null,null,"",0,0,0,0,"xxx","xxx","xxx","xxx","xxx","xxx","xxx",{"$error":"#VALUE!"},0,null,"xxx","xxx","xxx",0]
["","","","","","",null,null,null,null,null,null,null,null,null,null,null,null,null,null,null,null,null,null,null,null,null,null,null,null,null,null,null,null,"",0,0,0,0,"xxx","xxx","xxx","xxx","xxx","xxx","xxx",{"$error":"#VALUE!"},0,null,"xxx","xxx","xxx",0]
["","","","","","",null,null,null,null,null,null,null,null,null,null,null,null,null,null,null,null,null,null,null,null,null,null,null,null,null,null,null,null,"",0,0,0,0,"xxx","xxx","xxx","xxx","xxx","xxx","xxx",{"$error":"#VALUE!"},0,null,"xxx","xxx","xxx",0]
["","","","","","",null,null,null,null,null,null,null,null,null,null,null,null,null,null,null,null,null,null,null,null,null,null,null,null,null,null,null,null,"",0,0,0,0,"xxx","xxx","xxx","xxx","xxx","xxx","xxx",{"$error":"#VALUE!"},0,null,"xxx","xxx","xxx",0]
["","","","","","",null,null,null,null,null,null,null,null,null,null,null,null,null,null,null,null,null,null,null,null,null,null,null,null,null,null,null,null,"",0,0,0,0,"xxx","xxx","xxx","xxx","xxx","xxx","xxx",{"$error":"#VALUE!"},0,null,"xxx","xxx","xxx",0]
["","","","","","",null,null,null,null,null,null,null,null,null,null,null,null,null,null,null,null,null,null,null,null,null,null,null,null,null,null,null,null,"",0,0,0,0,"xxx","xxx","xxx","xxx","xxx","xxx","xxx",{"$error":"#VALUE!"},0,null,"xxx","xxx","xxx",0]
["","","","","","",null,null,null,null,null,null,null,null,null,null,null,null,null,null,null,null,null,null,null,null,null,null,null,null,null,null,null,null,"",0,0,0,0,"xxx","xxx","xxx","xxx","xxx","xxx","xxx",{"$error":"#VALUE!"},0,null,"xxx","xxx","xxx",0]
["","","","","","",null,null,null,null,null,null,null,null,null,null,null,null,null,null,null,null,null,null,null,null,null,null,null,null,null,null,null,null,"",0,0,0,0,"xxx","xxx","xxx","xxx","xxx","xxx","xxx",{"$error":"#VALUE!"},0,null,"xxx","xxx","xxx",0]
["","","","","","",null,null,null,null,null,null,null,null,null,null,null,null,null,null,null,null,null,null,null,null,null,null,null,null,null,null,null,null,"",0,0,0,0,"xxx","xxx","xxx","xxx","xxx","xxx","xxx",{"$error":"#VALUE!"},0,null,"xxx","xxx","xxx",0]
["","","","","","",null,null,null,null,null,null,null,null,null,null,null,null,null,null,null,null,null,null,null,null,null,null,null,null,null,null,null,null,"",0,0,0,0,"xxx","xxx","xxx","xxx","xxx","xxx","xxx",{"$error":"#VALUE!"},0,null,"xxx","xxx","xxx",0]
["","","","","","",null,null,null,null,null,null,null,null,null,null,null,null,null,null,null,null,null,null,null,null,null,null,null,null,null,null,null,null,"",0,0,0,0,"xxx","xxx","xxx","xxx","xxx","xxx","xxx",{"$error":"#VALUE!"},0,null,"xxx","xxx","xxx",0]
["","","","","","",null,null,null,null,null,null,null,null,null,null,null,null,null,null,null,null,null,null,null,null,null,null,null,null,null,null,null,null,"",0,0,0,0,"xxx","xxx","xxx","xxx","xxx","xxx","xxx",{"$error":"#VALUE!"},0,null,"xxx","xxx","xxx",0]
["","","","","","",null,null,null,null,null,null,null,null,null,null,null,null,null,null,null,null,null,null,null,null,null,null,null,null,null,null,null,null,"",0,0,0,0,"xxx","xxx","xxx","xxx","xxx","xxx","xxx",{"$error":"#VALUE!"},0,null,"xxx","xxx","xxx",0]
["","","","","","",null,null,null,null,null,null,null,null,null,null,null,null,null,null,null,null,null,null,null,null,null,null,null,null,null,null,null,null,"",0,0,0,0,"xxx","xxx","xxx","xxx","xxx","xxx","xxx",{"$error":"#VALUE!"},0,null,"xxx","xxx","xxx",0]
["","","","","","",null,null,null,null,null,null,null,null,null,null,null,null,null,null,null,null,null,null,null,null,null,null,null,null,null,null,null,null,"",0,0,0,0,"xxx","xxx","xxx","xxx","xxx","xxx","xxx",{"$error":"#VALUE!"},0,null,"xxx","xxx","xxx",0]
["","","","","","",null,null,null,null,null,null,null,null,null,null,null,null,null,null,null,null,null,null,null,null,null,null,null,null,null,null,null,null,"",0,0,0,0,"xxx","xxx","xxx","xxx","xxx","xxx","xxx",{"$error":"#VALUE!"},0,null,"xxx","xxx","xxx",0]
["","","","","","",null,null,null,null,null,null,null,null,null,null,null,null,null,null,null,null,null,null,null,null,null,null,null,null,null,null,null,null,"",0,0,0,0,"xxx","xxx","xxx","xxx","xxx","xxx","xxx",{"$error":"#VALUE!"},0,null,"xxx","xxx","xxx",0]
["","","","","","",null,null,null,null,null,null,null,null,null,null,null,null,null,null,null,null,null,null,null,null,null,null,null,null,null,null,null,null,"",0,0,0,0,"xxx","xxx","xxx","xxx","xxx","xxx","xxx",{"$error":"#VALUE!"},0,null,"xxx","xxx","xxx",0]
["","","","","","",null,null,null,null,null,null,null,null,null,null,null,null,null,null,null,null,null,null,null,null,null,null,null,null,null,null,null,null,"",0,0,0,0,"xxx","xxx","xxx","xxx","xxx","xxx","xxx",{"$error":"#VALUE!"},0,null,"xxx","xxx","xxx",0]
["","","","","","",null,null,null,null,null,null,null,null,null,null,null,null,null,null,null,null,null,null,null,null,null,null,null,null,null,null,null,null,"",0,0,0,0,"xxx","xxx","xxx","xxx","xxx","xxx","xxx",{"$error":"#VALUE!"},0,null,"xxx","xxx","xxx",0]
["","","","","","",null,null,null,null,null,null,null,null,null,null,null,null,null,null,null,null,null,null,null,null,null,null,null,null,null,null,null,null,"",0,0,0,0,"xxx","xxx","xxx","xxx","xxx","xxx","xxx",{"$error":"#VALUE!"},0,null,"xxx","xxx","xxx",0]
["","","","","","",null,null,null,null,null,null,null,null,null,null,null,null,null,null,null,null,null,null,null,null,null,null,null,null,null,null,null,null,"",0,0,0,0,"xxx","xxx","xxx","xxx","xxx","xxx","xxx",{"$error":"#VALUE!"},0,null,"xxx","xxx","xxx",0]
["","","","","","",null,null,null,null,null,null,null,null,null,null,null,null,null,null,null,null,null,null,null,null,null,null,null,null,null,null,null,null,"",0,0,0,0,"xxx","xxx","xxx","xxx","xxx","xxx","xxx",{"$error":"#VALUE!"},0,null,"xxx","xxx","xxx",0]
["","","","","","",null,null,null,null,null,null,null,null,null,null,null,null,null,null,null,null,null,null,null,null,null,null,null,null,null,null,null,null,"",0,0,0,0,"xxx","xxx","xxx","xxx","xxx","xxx","xxx",{"$error":"#VALUE!"},0,null,"xxx","xxx","xxx",0]
["","","","","","",null,null,null,null,null,null,null,null,null,null,null,null,null,null,null,null,null,null,null,null,null,null,null,null,null,null,null,null,"",0,0,0,0,"xxx","xxx","xxx","xxx","xxx","xxx","xxx",{"$error":"#VALUE!"},0,null,"xxx","xxx","xxx",0]
["","","","","","",null,null,null,null,null,null,null,null,null,null,null,null,null,null,null,null,null,null,null,null,null,null,null,null,null,null,null,null,"",0,0,0,0,"xxx","xxx","xxx","xxx","xxx","xxx","xxx",{"$error":"#VALUE!"},0,null,"xxx","xxx","xxx",0]
[{"$f":"IF(ROW()<$AG$4+$W$5,\"O\",\"\")","v":""},{"$f":"IF(A342<>\"\",IF($G$4=\"\",\"Błąd\",$AC$2),\"\")","v":""},{"$f":"IF(A342<>\"\",IF($G$4=\"\",\"Błąd\",$AC$3),\"\")","v":""},"",{"$f":"IF(A342<>\"\",IF(AT342=0,\"N\",IF(AZ342=0,\"R\",\"Błąd\")),\"\")","v":""},{"$f":"IF(A342<>\"\",IF(AT342=0,MID(H342,6,2),IF(AZ342=0,\"PL\",\"Błąd\")),\"\")","v":""},null,null,null,null,null,null,null,null,null,null,null,null,null,null,null,null,null,null,null,null,null,null,null,null,null,null,null,null,{"$f":"IF(AND(O342>=$AK$2,O342<=$AK$3),VLOOKUP(O342,$Q$26:$U$56,5,FALSE),\"\")","v":""},{"$f":"IF(LEN(G342)>0,1,0)","v":0},{"$f":"IF(T(L342)<>\"\",1,0)","v":0},{"$f":"IF(T(N342)<>\"\",1,0)","v":0},{"$f":"IF(T(O342)<>\"\",1,0)","v":0},{"$f":"IF($AO342=0,IF(LEN($H342)<>12,1,0),\"xxx\")","v":"xxx"},{"$f":"IF(LEFT($H342,1)=\"Z\",0,IF($H342=\"\",\"xxx\",1))","v":"xxx"},{"$f":"IF($AO342=0,IF(AND(MID($H342,2,4)<>\"0000\",MID($H342,2,4)<>\"1000\"),1,0),\"xxx\")","v":"xxx"},{"$f":"IF($AO342=0,IF(AND(LEN($H342)>=6,CODE(MID($H342,6,1))>=65,CODE(MID($H342,6,1))<=90),0,1),\"xxx\")","v":"xxx"},{"$f":"IF($AO342=0,IF(AND(LEN($H342)>=7,CODE(MID($H342,7,1))>=65,CODE(MID($H342,7,1))<=90),0,1),\"xxx\")","v":"xxx"},{"$f":"IF($AO342=0,IF(ISNUMBER($AU342),0,1),\"xxx\")","v":"xxx"},"xxx",{"$error":"#VALUE!"},0,null,"xxx",{"$f":"IF($AO342=1,IF(ISNUMBER($BA342),0,1),\"xxx\")","v":"xxx"},"xxx",{"$f":"VALUE(H342)","v":0}]
["","","","","","",null,null,null,null,null,null,null,null,null,null,null,null,null,null,null,null,null,null,null,null,null,null,null,null,null,null,null,null,"",0,0,0,0,"xxx","xxx","xxx","xxx","xxx","xxx",{"$f":"IF(COUNTIF(AN343:AR343,\"xxx\")>0,\"xxx\",SUM(AN343:AS343))","v":"xxx"},{"$f":"VALUE(MID($H343,8,5))","v":{"$error":"#VALUE!"}},{"$f":"SUM(AP343:AS343)","v":0},null,{"$f":"IF(AO343=1,IF(LEN($H343)=9,0,1),\"xxx\")","v":"xxx"},"xxx",{"$f":"IF(COUNTIF(AX343:AY343,\"xxx\")>0,\"xxx\",SUM(AX343:AY343))","v":"xxx"},0]
["","","","","","",null,null,null,null,null,null,null,null,null,null,null,null,null,null,null,null,null,null,null,null,null,null,null,null,null,null,null,null,"",0,0,0,0,"xxx","xxx","xxx","xxx","xxx","xxx","xxx",{"$error":"#VALUE!"},0,null,"xxx","xxx","xxx",0]
["","","","","","",null,null,null,null,null,null,null,null,null,null,null,null,null,null,null,null,null,null,null,null,null,null,null,null,null,null,null,null,"",0,0,0,0,"xxx","xxx","xxx","xxx","xxx","xxx","xxx",{"$error":"#VALUE!"},0,null,"xxx","xxx","xxx",0]
["","","","","","",null,null,null,null,null,null,null,null,null,null,null,null,null,null,null,null,null,null,null,null,null,null,null,null,null,null,null,null,"",0,0,0,0,"xxx","xxx","xxx","xxx","xxx","xxx","xxx",{"$error":"#VALUE!"},0,null,"xxx","xxx","xxx",0]
["","","","","","",null,null,null,null,null,null,null,null,null,null,null,null,null,null,null,null,null,null,null,null,null,null,null,null,null,null,null,null,"",0,0,0,0,"xxx","xxx","xxx","xxx","xxx","xxx","xxx",{"$error":"#VALUE!"},0,null,"xxx","xxx","xxx",0]
["","","","","","",null,null,null,null,null,null,null,null,null,null,null,null,null,null,null,null,null,null,null,null,null,null,null,null,null,null,null,null,"",0,0,0,0,"xxx","xxx","xxx","xxx","xxx","xxx","xxx",{"$error":"#VALUE!"},0,null,"xxx","xxx","xxx",0]
["","","","","","",null,null,null,null,null,null,null,null,null,null,null,null,null,null,null,null,null,null,null,null,null,null,null,null,null,null,null,null,"",0,0,0,0,"xxx","xxx","xxx","xxx","xxx","xxx","xxx",{"$error":"#VALUE!"},0,null,"xxx","xxx","xxx",0]
["","","","","","",null,null,null,null,null,null,null,null,null,null,null,null,null,null,null,null,null,null,null,null,null,null,null,null,null,null,null,null,"",0,0,0,0,"xxx","xxx","xxx","xxx","xxx","xxx","xxx",{"$error":"#VALUE!"},0,null,"xxx","xxx","xxx",0]
["","","","","","",null,null,null,null,null,null,null,null,null,null,null,null,null,null,null,null,null,null,null,null,null,null,null,null,null,null,null,null,"",0,0,0,0,"xxx","xxx","xxx","xxx","xxx","xxx","xxx",{"$error":"#VALUE!"},0,null,"xxx","xxx","xxx",0]
["","","","","","",null,null,null,null,null,null,null,null,null,null,null,null,null,null,null,null,null,null,null,null,null,null,null,null,null,null,null,null,"",0,0,0,0,"xxx","xxx","xxx","xxx","xxx","xxx","xxx",{"$error":"#VALUE!"},0,null,"xxx","xxx","xxx",0]
["","","","","","",null,null,null,null,null,null,null,null,null,null,null,null,null,null,null,null,null,null,null,null,null,null,null,null,null,null,null,null,"",0,0,0,0,"xxx","xxx","xxx","xxx","xxx","xxx","xxx",{"$error":"#VALUE!"},0,null,"xxx","xxx","xxx",0]
["","","","","","",null,null,null,null,null,null,null,null,null,null,null,null,null,null,null,null,null,null,null,null,null,null,null,null,null,null,null,null,"",0,0,0,0,"xxx","xxx","xxx","xxx","xxx","xxx","xxx",{"$error":"#VALUE!"},0,null,"xxx","xxx","xxx",0]
["","","",{"$f":"IF(A355<>\"\",IF(OR($S$15=\"Błąd\",$S$16=\"Błąd\",O355=\"\",O355<$AK$2,O355>$AK$3),\"Błąd\",O355),\"\")","v":""},"","",null,null,null,null,null,null,null,null,null,null,null,null,null,null,null,null,null,null,null,null,null,null,null,null,null,null,null,null,"",0,0,0,0,"xxx","xxx","xxx","xxx","xxx","xxx","xxx",{"$error":"#VALUE!"},0,null,"xxx","xxx","xxx",0]
["","","","","","",null,null,null,null,null,null,null,null,null,null,null,null,null,null,null,null,null,null,null,null,null,null,null,null,null,null,null,null,"",0,0,0,0,"xxx","xxx","xxx","xxx","xxx","xxx","xxx",{"$error":"#VALUE!"},0,null,"xxx","xxx","xxx",0]
["","","","","","",null,null,null,null,null,null,null,null,null,null,null,null,null,null,null,null,null,null,null,null,null,null,null,null,null,null,null,null,"",0,0,0,0,"xxx","xxx","xxx","xxx","xxx","xxx","xxx",{"$error":"#VALUE!"},0,null,"xxx","xxx","xxx",0]
["","","","","","",null,null,null,null,null,null,null,null,null,null,null,null,null,null,null,null,null,null,null,null,null,null,null,null,null,null,null,null,"",0,0,0,0,"xxx","xxx","xxx","xxx","xxx","xxx","xxx",{"$error":"#VALUE!"},0,null,"xxx","xxx","xxx",0]
["","","","","","",null,null,null,null,null,null,null,null,null,null,null,null,null,null,null,null,null,null,null,null,null,null,null,null,null,null,null,null,"",0,0,0,0,"xxx","xxx","xxx","xxx","xxx","xxx","xxx",{"$error":"#VALUE!"},0,null,"xxx","xxx","xxx",0]
["","","","","","",null,null,null,null,null,null,null,null,null,null,null,null,null,null,null,null,null,null,null,null,null,null,null,null,null,null,null,null,"",0,0,0,0,"xxx","xxx","xxx","xxx","xxx","xxx","xxx",{"$error":"#VALUE!"},0,null,"xxx","xxx","xxx",0]
["","","","","","",null,null,null,null,null,null,null,null,null,null,null,null,null,null,null,null,null,null,null,null,null,null,null,null,null,null,null,null,"",0,0,0,0,"xxx","xxx","xxx","xxx","xxx","xxx","xxx",{"$error":"#VALUE!"},0,null,"xxx","xxx","xxx",0]
["","","","","","",null,null,null,null,null,null,null,null,null,null,null,null,null,null,null,null,null,null,null,null,null,null,null,null,null,null,null,null,"",0,0,0,0,"xxx","xxx","xxx","xxx","xxx","xxx","xxx",{"$error":"#VALUE!"},0,null,"xxx","xxx","xxx",0]
["","","","","","",null,null,null,null,null,null,null,null,null,null,null,null,null,null,null,null,null,null,null,null,null,null,null,null,null,null,null,null,"",0,0,0,0,"xxx","xxx","xxx","xxx","xxx","xxx","xxx",{"$error":"#VALUE!"},0,null,"xxx","xxx","xxx",0]
["","","","","","",null,null,null,null,null,null,null,null,null,null,null,null,null,null,null,null,null,null,null,null,null,null,null,null,null,null,null,null,"",0,0,0,0,"xxx","xxx","xxx","xxx","xxx","xxx","xxx",{"$error":"#VALUE!"},0,null,"xxx","xxx","xxx",0]
["","","","","","",null,null,null,null,null,null,null,null,null,null,null,null,null,null,null,null,null,null,null,null,null,null,null,null,null,null,null,null,"",0,0,0,0,"xxx","xxx","xxx","xxx","xxx","xxx","xxx",{"$error":"#VALUE!"},0,null,"xxx","xxx","xxx",0]
["","","","","","",null,null,null,null,null,null,null,null,null,null,null,null,null,null,null,null,null,null,null,null,null,null,null,null,null,null,null,null,"",0,0,0,0,"xxx","xxx","xxx","xxx","xxx","xxx","xxx",{"$error":"#VALUE!"},0,null,"xxx","xxx","xxx",0]
["","","","","","",null,null,null,null,null,null,null,null,null,null,null,null,null,null,null,null,null,null,null,null,null,null,null,null,null,null,null,null,"",0,0,0,0,"xxx","xxx","xxx","xxx","xxx","xxx","xxx",{"$error":"#VALUE!"},0,null,"xxx","xxx","xxx",0]
["","","","","","",null,null,null,null,null,null,null,null,null,null,null,null,null,null,null,null,null,null,null,null,null,null,null,null,null,null,null,null,"",0,0,0,0,"xxx","xxx","xxx","xxx","xxx","xxx","xxx",{"$error":"#VALUE!"},0,null,"xxx","xxx","xxx",0]
["","","","","","",null,null,null,null,null,null,null,null,null,null,null,null,null,null,null,null,null,null,null,null,null,null,null,null,null,null,null,null,"",0,0,0,0,"xxx","xxx","xxx","xxx","xxx","xxx","xxx",{"$error":"#VALUE!"},0,null,"xxx","xxx","xxx",0]
["","","","","","",null,null,null,null,null,null,null,null,null,null,null,null,null,null,null,null,null,null,null,null,null,null,null,null,null,null,null,null,"",0,0,0,0,"xxx","xxx","xxx","xxx","xxx","xxx","xxx",{"$error":"#VALUE!"},0,null,"xxx","xxx","xxx",0]
["","","","","","",null,null,null,null,null,null,null,null,null,null,null,null,null,null,null,null,null,null,null,null,null,null,null,null,null,null,null,null,"",0,0,0,0,"xxx","xxx","xxx","xxx","xxx","xxx","xxx",{"$error":"#VALUE!"},0,null,"xxx","xxx","xxx",0]
["","","","","","",null,null,null,null,null,null,null,null,null,null,null,null,null,null,null,null,null,null,null,null,null,null,null,null,null,null,null,null,"",0,0,0,0,"xxx","xxx","xxx","xxx","xxx","xxx","xxx",{"$error":"#VALUE!"},0,null,"xxx","xxx","xxx",0]
["","","","","","",null,null,null,null,null,null,null,null,null,null,null,null,null,null,null,null,null,null,null,null,null,null,null,null,null,null,null,null,"",0,0,0,0,"xxx","xxx","xxx","xxx","xxx","xxx","xxx",{"$error":"#VALUE!"},0,null,"xxx","xxx","xxx",0]
["","","","","","",null,null,null,null,null,null,null,null,null,null,null,null,null,null,null,null,null,null,null,null,null,null,null,null,null,null,null,null,"",0,0,0,0,"xxx","xxx","xxx","xxx","xxx","xxx","xxx",{"$error":"#VALUE!"},0,null,"xxx","xxx","xxx",0]
["","","","","","",null,null,null,null,null,null,null,null,null,null,null,null,null,null,null,null,null,null,null,null,null,null,null,null,null,null,null,null,"",0,0,0,0,"xxx","xxx","xxx","xxx","xxx","xxx","xxx",{"$error":"#VALUE!"},0,null,"xxx","xxx","xxx",0]
["","","","","","",null,null,null,null,null,null,null,null,null,null,null,null,null,null,null,null,null,null,null,null,null,null,null,null,null,null,null,null,"",0,0,0,0,"xxx","xxx","xxx","xxx","xxx","xxx","xxx",{"$error":"#VALUE!"},0,null,"xxx","xxx","xxx",0]
["","","","","","",null,null,null,null,null,null,null,null,null,null,null,null,null,null,null,null,null,null,null,null,null,null,null,null,null,null,null,null,"",0,0,0,0,"xxx","xxx","xxx","xxx","xxx","xxx","xxx",{"$error":"#VALUE!"},0,null,"xxx","xxx","xxx",0]
["","","","","","",null,null,null,null,null,null,null,null,null,null,null,null,null,null,null,null,null,null,null,null,null,null,null,null,null,null,null,null,"",0,0,0,0,"xxx","xxx","xxx","xxx","xxx","xxx","xxx",{"$error":"#VALUE!"},0,null,"xxx","xxx","xxx",0]
["","","","","","",null,null,null,null,null,null,null,null,null,null,null,null,null,null,null,null,null,null,null,null,null,null,null,null,null,null,null,null,"",0,0,0,0,"xxx","xxx","xxx","xxx","xxx","xxx","xxx",{"$error":"#VALUE!"},0,null,"xxx","xxx","xxx",0]
["","","","","","",null,null,null,null,null,null,null,null,null,null,null,null,null,null,null,null,null,null,null,null,null,null,null,null,null,null,null,null,"",0,0,0,0,"xxx","xxx","xxx","xxx","xxx","xxx","xxx",{"$error":"#VALUE!"},0,null,"xxx","xxx","xxx",0]
["","","","","","",null,null,null,null,null,null,null,null,null,null,null,null,null,null,null,null,null,null,null,null,null,null,null,null,null,null,null,null,"",0,0,0,0,"xxx","xxx","xxx","xxx","xxx","xxx","xxx",{"$error":"#VALUE!"},0,null,"xxx","xxx","xxx",0]
["","","","","","",null,null,null,null,null,null,null,null,null,null,null,null,null,null,null,null,null,null,null,null,null,null,null,null,null,null,null,null,"",0,0,0,0,"xxx","xxx","xxx","xxx","xxx","xxx","xxx",{"$error":"#VALUE!"},0,null,"xxx","xxx","xxx",0]
["","","","","","",null,null,null,null,null,null,null,null,null,null,null,null,null,null,null,null,null,null,null,null,null,null,null,null,null,null,null,null,"",0,0,0,0,"xxx","xxx","xxx","xxx","xxx","xxx","xxx",{"$error":"#VALUE!"},0,null,"xxx","xxx","xxx",0]
["","","","","","",null,null,null,null,null,null,null,null,null,null,null,null,null,null,null,null,null,null,null,null,null,null,null,null,null,null,null,null,"",0,0,0,0,"xxx","xxx","xxx","xxx","xxx","xxx","xxx",{"$error":"#VALUE!"},0,null,"xxx","xxx","xxx",0]
["","","","","","",null,null,null,null,null,null,null,null,null,null,null,null,null,null,null,null,null,null,null,null,null,null,null,null,null,null,null,null,"",0,0,0,0,"xxx","xxx","xxx","xxx","xxx","xxx","xxx",{"$error":"#VALUE!"},0,null,"xxx","xxx","xxx",0]
["","","","","","",null,null,null,null,null,null,null,null,null,null,null,null,null,null,null,null,null,null,null,null,null,null,null,null,null,null,null,null,"",0,0,0,0,"xxx","xxx","xxx","xxx","xxx","xxx","xxx",{"$error":"#VALUE!"},0,null,"xxx","xxx","xxx",0]
["","","","","","",null,null,null,null,null,null,null,null,null,null,null,null,null,null,null,null,null,null,null,null,null,null,null,null,null,null,null,null,"",0,0,0,0,"xxx","xxx","xxx","xxx","xxx","xxx","xxx",{"$error":"#VALUE!"},0,null,"xxx","xxx","xxx",0]
["","","","","","",null,null,null,null,null,null,null,null,null,null,null,null,null,null,null,null,null,null,null,null,null,null,null,null,null,null,null,null,"",0,0,0,0,"xxx","xxx","xxx","xxx","xxx","xxx","xxx",{"$error":"#VALUE!"},0,null,"xxx","xxx","xxx",0]
["","","","","","",null,null,null,null,null,null,null,null,null,null,null,null,null,null,null,null,null,null,null,null,null,null,null,null,null,null,null,null,"",0,0,0,0,"xxx","xxx","xxx","xxx","xxx","xxx","xxx",{"$error":"#VALUE!"},0,null,"xxx","xxx","xxx",0]
["","","","","","",null,null,null,null,null,null,null,null,null,null,null,null,null,null,null,null,null,null,null,null,null,null,null,null,null,null,null,null,"",0,0,0,0,"xxx","xxx","xxx","xxx","xxx","xxx","xxx",{"$error":"#VALUE!"},0,null,"xxx","xxx","xxx",0]
["","","","","","",null,null,null,null,null,null,null,null,null,null,null,null,null,null,null,null,null,null,null,null,null,null,null,null,null,null,null,null,"",0,0,0,0,"xxx","xxx","xxx","xxx","xxx","xxx","xxx",{"$error":"#VALUE!"},0,null,"xxx","xxx","xxx",0]
["","","","","","",null,null,null,null,null,null,null,null,null,null,null,null,null,null,null,null,null,null,null,null,null,null,null,null,null,null,null,null,"",0,0,0,0,"xxx","xxx","xxx","xxx","xxx","xxx","xxx",{"$error":"#VALUE!"},0,null,"xxx","xxx","xxx",0]
["","","","","","",null,null,null,null,null,null,null,null,null,null,null,null,null,null,null,null,null,null,null,null,null,null,null,null,null,null,null,null,"",0,0,0,0,"xxx","xxx","xxx","xxx","xxx","xxx","xxx",{"$error":"#VALUE!"},0,null,"xxx","xxx","xxx",0]
["","","","","","",null,null,null,null,null,null,null,null,null,null,null,null,null,null,null,null,null,null,null,null,null,null,null,null,null,null,null,null,"",0,0,0,0,"xxx","xxx","xxx","xxx","xxx","xxx","xxx",{"$error":"#VALUE!"},0,null,"xxx","xxx","xxx",0]
["","","","","","",null,null,null,null,null,null,null,null,null,null,null,null,null,null,null,null,null,null,null,null,null,null,null,null,null,null,null,null,"",0,0,0,0,"xxx","xxx","xxx","xxx","xxx","xxx","xxx",{"$error":"#VALUE!"},0,null,"xxx","xxx","xxx",0]
["","","","","","",null,null,null,null,null,null,null,null,null,null,null,null,null,null,null,null,null,null,null,null,null,null,null,null,null,null,null,null,"",0,0,0,0,"xxx","xxx","xxx","xxx","xxx","xxx","xxx",{"$error":"#VALUE!"},0,null,"xxx","xxx","xxx",0]
["","","","","","",null,null,null,null,null,null,null,null,null,null,null,null,null,null,null,null,null,null,null,null,null,null,null,null,null,null,null,null,"",0,0,0,0,"xxx","xxx","xxx","xxx","xxx","xxx","xxx",{"$error":"#VALUE!"},0,null,"xxx","xxx","xxx",0]
["","","","","","",null,null,null,null,null,null,null,null,null,null,null,null,null,null,null,null,null,null,null,null,null,null,null,null,null,null,null,null,"",0,0,0,0,"xxx","xxx","xxx","xxx","xxx","xxx","xxx",{"$error":"#VALUE!"},0,null,"xxx","xxx","xxx",0]
["","","","","","",null,null,null,null,null,null,null,null,null,null,null,null,null,null,null,null,null,null,null,null,null,null,null,null,null,null,null,null,"",0,0,0,0,"xxx","xxx","xxx","xxx","xxx","xxx","xxx",{"$error":"#VALUE!"},0,null,"xxx","xxx","xxx",0]
["","","","","","",null,null,null,null,null,null,null,null,null,null,null,null,null,null,null,null,null,null,null,null,null,null,null,null,null,null,null,null,"",0,0,0,0,"xxx","xxx","xxx","xxx","xxx","xxx","xxx",{"$error":"#VALUE!"},0,null,"xxx","xxx","xxx",0]
["","","","","","",null,null,null,null,null,null,null,null,null,null,null,null,null,null,null,null,null,null,null,null,null,null,null,null,null,null,null,null,"",0,0,0,0,"xxx","xxx","xxx","xxx","xxx","xxx","xxx",{"$error":"#VALUE!"},0,null,"xxx","xxx","xxx",0]
["","","","","","",null,null,null,null,null,null,null,null,null,null,null,null,null,null,null,null,null,null,null,null,null,null,null,null,null,null,null,null,"",0,0,0,0,"xxx","xxx","xxx","xxx","xxx","xxx","xxx",{"$error":"#VALUE!"},0,null,"xxx","xxx","xxx",0]
["","","","","","",null,null,null,null,null,null,null,null,null,null,null,null,null,null,null,null,null,null,null,null,null,null,null,null,null,null,null,null,"",0,0,0,0,"xxx","xxx","xxx","xxx","xxx","xxx","xxx",{"$error":"#VALUE!"},0,null,"xxx","xxx","xxx",0]
["","","","","","",null,null,null,null,null,null,null,null,null,null,null,null,null,null,null,null,null,null,null,null,null,null,null,null,null,null,null,null,"",0,0,0,0,"xxx","xxx","xxx","xxx","xxx","xxx","xxx",{"$error":"#VALUE!"},0,null,"xxx","xxx","xxx",0]
["","","","","","",null,null,null,null,null,null,null,null,null,null,null,null,null,null,null,null,null,null,null,null,null,null,null,null,null,null,null,null,"",0,0,0,0,"xxx","xxx","xxx","xxx","xxx","xxx","xxx",{"$error":"#VALUE!"},0,null,"xxx","xxx","xxx",0]
[{"$f":"IF(ROW()<$AG$4+$W$5,\"O\",\"\")","v":""},{"$f":"IF(A406<>\"\",IF($G$4=\"\",\"Błąd\",$AC$2),\"\")","v":""},{"$f":"IF(A406<>\"\",IF($G$4=\"\",\"Błąd\",$AC$3),\"\")","v":""},"",{"$f":"IF(A406<>\"\",IF(AT406=0,\"N\",IF(AZ406=0,\"R\",\"Błąd\")),\"\")","v":""},{"$f":"IF(A406<>\"\",IF(AT406=0,MID(H406,6,2),IF(AZ406=0,\"PL\",\"Błąd\")),\"\")","v":""},null,null,null,null,null,null,null,null,null,null,null,null,null,null,null,null,null,null,null,null,null,null,null,null,null,null,null,null,{"$f":"IF(AND(O406>=$AK$2,O406<=$AK$3),VLOOKUP(O406,$Q$26:$U$56,5,FALSE),\"\")","v":""},{"$f":"IF(LEN(G406)>0,1,0)","v":0},{"$f":"IF(T(L406)<>\"\",1,0)","v":0},{"$f":"IF(T(N406)<>\"\",1,0)","v":0},{"$f":"IF(T(O406)<>\"\",1,0)","v":0},{"$f":"IF($AO406=0,IF(LEN($H406)<>12,1,0),\"xxx\")","v":"xxx"},{"$f":"IF(LEFT($H406,1)=\"Z\",0,IF($H406=\"\",\"xxx\",1))","v":"xxx"},{"$f":"IF($AO406=0,IF(AND(MID($H406,2,4)<>\"0000\",MID($H406,2,4)<>\"1000\"),1,0),\"xxx\")","v":"xxx"},{"$f":"IF($AO406=0,IF(AND(LEN($H406)>=6,CODE(MID($H406,6,1))>=65,CODE(MID($H406,6,1))<=90),0,1),\"xxx\")","v":"xxx"},{"$f":"IF($AO406=0,IF(AND(LEN($H406)>=7,CODE(MID($H406,7,1))>=65,CODE(MID($H406,7,1))<=90),0,1),\"xxx\")","v":"xxx"},{"$f":"IF($AO406=0,IF(ISNUMBER($AU406),0,1),\"xxx\")","v":"xxx"},"xxx",{"$error":"#VALUE!"},0,null,"xxx",{"$f":"IF($AO406=1,IF(ISNUMBER($BA406),0,1),\"xxx\")","v":"xxx"},"xxx",{"$f":"VALUE(H406)","v":0}]
["","","","","","",null,null,null,null,null,null,null,null,null,null,null,null,null,null,null,null,null,null,null,null,null,null,null,null,null,null,null,null,"",0,0,0,0,"xxx","xxx","xxx","xxx","xxx","xxx",{"$f":"IF(COUNTIF(AN407:AR407,\"xxx\")>0,\"xxx\",SUM(AN407:AS407))","v":"xxx"},{"$f":"VALUE(MID($H407,8,5))","v":{"$error":"#VALUE!"}},{"$f":"SUM(AP407:AS407)","v":0},null,{"$f":"IF(AO407=1,IF(LEN($H407)=9,0,1),\"xxx\")","v":"xxx"},"xxx",{"$f":"IF(COUNTIF(AX407:AY407,\"xxx\")>0,\"xxx\",SUM(AX407:AY407))","v":"xxx"},0]
["","","","","","",null,null,null,null,null,null,null,null,null,null,null,null,null,null,null,null,null,null,null,null,null,null,null,null,null,null,null,null,"",0,0,0,0,"xxx","xxx","xxx","xxx","xxx","xxx","xxx",{"$error":"#VALUE!"},0,null,"xxx","xxx","xxx",0]
["","","","","","",null,null,null,null,null,null,null,null,null,null,null,null,null,null,null,null,null,null,null,null,null,null,null,null,null,null,null,null,"",0,0,0,0,"xxx","xxx","xxx","xxx","xxx","xxx","xxx",{"$error":"#VALUE!"},0,null,"xxx","xxx","xxx",0]
["","","","","","",null,null,null,null,null,null,null,null,null,null,null,null,null,null,null,null,null,null,null,null,null,null,null,null,null,null,null,null,"",0,0,0,0,"xxx","xxx","xxx","xxx","xxx","xxx","xxx",{"$error":"#VALUE!"},0,null,"xxx","xxx","xxx",0]
["","","","","","",null,null,null,null,null,null,null,null,null,null,null,null,null,null,null,null,null,null,null,null,null,null,null,null,null,null,null,null,"",0,0,0,0,"xxx","xxx","xxx","xxx","xxx","xxx","xxx",{"$error":"#VALUE!"},0,null,"xxx","xxx","xxx",0]
["","","","","","",null,null,null,null,null,null,null,null,null,null,null,null,null,null,null,null,null,null,null,null,null,null,null,null,null,null,null,null,"",0,0,0,0,"xxx","xxx","xxx","xxx","xxx","xxx","xxx",{"$error":"#VALUE!"},0,null,"xxx","xxx","xxx",0]
["","","","","","",null,null,null,null,null,null,null,null,null,null,null,null,null,null,null,null,null,null,null,null,null,null,null,null,null,null,null,null,"",0,0,0,0,"xxx","xxx","xxx","xxx","xxx","xxx","xxx",{"$error":"#VALUE!"},0,null,"xxx","xxx","xxx",0]
["","","","","","",null,null,null,null,null,null,null,null,null,null,null,null,null,null,null,null,null,null,null,null,null,null,null,null,null,null,null,null,"",0,0,0,0,"xxx","xxx","xxx","xxx","xxx","xxx","xxx",{"$error":"#VALUE!"},0,null,"xxx","xxx","xxx",0]
["","","","","","",null,null,null,null,null,null,null,null,null,null,null,null,null,null,null,null,null,null,null,null,null,null,null,null,null,null,null,null,"",0,0,0,0,"xxx","xxx","xxx","xxx","xxx","xxx","xxx",{"$error":"#VALUE!"},0,null,"xxx","xxx","xxx",0]
["","","","","","",null,null,null,null,null,null,null,null,null,null,null,null,null,null,null,null,null,null,null,null,null,null,null,null,null,null,null,null,"",0,0,0,0,"xxx","xxx","xxx","xxx","xxx","xxx","xxx",{"$error":"#VALUE!"},0,null,"xxx","xxx","xxx",0]
["","","","","","",null,null,null,null,null,null,null,null,null,null,null,null,null,null,null,null,null,null,null,null,null,null,null,null,null,null,null,null,"",0,0,0,0,"xxx","xxx","xxx","xxx","xxx","xxx","xxx",{"$error":"#VALUE!"},0,null,"xxx","xxx","xxx",0]
["","","","","","",null,null,null,null,null,null,null,null,null,null,null,null,null,null,null,null,null,null,null,null,null,null,null,null,null,null,null,null,"",0,0,0,0,"xxx","xxx","xxx","xxx","xxx","xxx","xxx",{"$error":"#VALUE!"},0,null,"xxx","xxx","xxx",0]
["","","",{"$f":"IF(A419<>\"\",IF(OR($S$15=\"Błąd\",$S$16=\"Błąd\",O419=\"\",O419<$AK$2,O419>$AK$3),\"Błąd\",O419),\"\")","v":""},"","",null,null,null,null,null,null,null,null,null,null,null,null,null,null,null,null,null,null,null,null,null,null,null,null,null,null,null,null,"",0,0,0,0,"xxx","xxx","xxx","xxx","xxx","xxx","xxx",{"$error":"#VALUE!"},0,null,"xxx","xxx","xxx",0]
["","","","","","",null,null,null,null,null,null,null,null,null,null,null,null,null,null,null,null,null,null,null,null,null,null,null,null,null,null,null,null,"",0,0,0,0,"xxx","xxx","xxx","xxx","xxx","xxx","xxx",{"$error":"#VALUE!"},0,null,"xxx","xxx","xxx",0]
["","","","","","",null,null,null,null,null,null,null,null,null,null,null,null,null,null,null,null,null,null,null,null,null,null,null,null,null,null,null,null,"",0,0,0,0,"xxx","xxx","xxx","xxx","xxx","xxx","xxx",{"$error":"#VALUE!"},0,null,"xxx","xxx","xxx",0]
["","","","","","",null,null,null,null,null,null,null,null,null,null,null,null,null,null,null,null,null,null,null,null,null,null,null,null,null,null,null,null,"",0,0,0,0,"xxx","xxx","xxx","xxx","xxx","xxx","xxx",{"$error":"#VALUE!"},0,null,"xxx","xxx","xxx",0]
["","","","","","",null,null,null,null,null,null,null,null,null,null,null,null,null,null,null,null,null,null,null,null,null,null,null,null,null,null,null,null,"",0,0,0,0,"xxx","xxx","xxx","xxx","xxx","xxx","xxx",{"$error":"#VALUE!"},0,null,"xxx","xxx","xxx",0]
["","","","","","",null,null,null,null,null,null,null,null,null,null,null,null,null,null,null,null,null,null,null,null,null,null,null,null,null,null,null,null,"",0,0,0,0,"xxx","xxx","xxx","xxx","xxx","xxx","xxx",{"$error":"#VALUE!"},0,null,"xxx","xxx","xxx",0]
["","","","","","",null,null,null,null,null,null,null,null,null,null,null,null,null,null,null,null,null,null,null,null,null,null,null,null,null,null,null,null,"",0,0,0,0,"xxx","xxx","xxx","xxx","xxx","xxx","xxx",{"$error":"#VALUE!"},0,null,"xxx","xxx","xxx",0]
["","","","","","",null,null,null,null,null,null,null,null,null,null,null,null,null,null,null,null,null,null,null,null,null,null,null,null,null,null,null,null,"",0,0,0,0,"xxx","xxx","xxx","xxx","xxx","xxx","xxx",{"$error":"#VALUE!"},0,null,"xxx","xxx","xxx",0]
["","","","","","",null,null,null,null,null,null,null,null,null,null,null,null,null,null,null,null,null,null,null,null,null,null,null,null,null,null,null,null,"",0,0,0,0,"xxx","xxx","xxx","xxx","xxx","xxx","xxx",{"$error":"#VALUE!"},0,null,"xxx","xxx","xxx",0]
["","","","","","",null,null,null,null,null,null,null,null,null,null,null,null,null,null,null,null,null,null,null,null,null,null,null,null,null,null,null,null,"",0,0,0,0,"xxx","xxx","xxx","xxx","xxx","xxx","xxx",{"$error":"#VALUE!"},0,null,"xxx","xxx","xxx",0]
["","","","","","",null,null,null,null,null,null,null,null,null,null,null,null,null,null,null,null,null,null,null,null,null,null,null,null,null,null,null,null,"",0,0,0,0,"xxx","xxx","xxx","xxx","xxx","xxx","xxx",{"$error":"#VALUE!"},0,null,"xxx","xxx","xxx",0]
["","","","","","",null,null,null,null,null,null,null,null,null,null,null,null,null,null,null,null,null,null,null,null,null,null,null,null,null,null,null,null,"",0,0,0,0,"xxx","xxx","xxx","xxx","xxx","xxx","xxx",{"$error":"#VALUE!"},0,null,"xxx","xxx","xxx",0]
["","","","","","",null,null,null,null,null,null,null,null,null,null,null,null,null,null,null,null,null,null,null,null,null,null,null,null,null,null,null,null,"",0,0,0,0,"xxx","xxx","xxx","xxx","xxx","xxx","xxx",{"$error":"#VALUE!"},0,null,"xxx","xxx","xxx",0]
["","","","","","",null,null,null,null,null,null,null,null,null,null,null,null,null,null,null,null,null,null,null,null,null,null,null,null,null,null,null,null,"",0,0,0,0,"xxx","xxx","xxx","xxx","xxx","xxx","xxx",{"$error":"#VALUE!"},0,null,"xxx","xxx","xxx",0]
["","","","","","",null,null,null,null,null,null,null,null,null,null,null,null,null,null,null,null,null,null,null,null,null,null,null,null,null,null,null,null,"",0,0,0,0,"xxx","xxx","xxx","xxx","xxx","xxx","xxx",{"$error":"#VALUE!"},0,null,"xxx","xxx","xxx",0]
["","","","","","",null,null,null,null,null,null,null,null,null,null,null,null,null,null,null,null,null,null,null,null,null,null,null,null,null,null,null,null,"",0,0,0,0,"xxx","xxx","xxx","xxx","xxx","xxx","xxx",{"$error":"#VALUE!"},0,null,"xxx","xxx","xxx",0]
["","","","","","",null,null,null,null,null,null,null,null,null,null,null,null,null,null,null,null,null,null,null,null,null,null,null,null,null,null,null,null,"",0,0,0,0,"xxx","xxx","xxx","xxx","xxx","xxx","xxx",{"$error":"#VALUE!"},0,null,"xxx","xxx","xxx",0]
["","","","","","",null,null,null,null,null,null,null,null,null,null,null,null,null,null,null,null,null,null,null,null,null,null,null,null,null,null,null,null,"",0,0,0,0,"xxx","xxx","xxx","xxx","xxx","xxx","xxx",{"$error":"#VALUE!"},0,null,"xxx","xxx","xxx",0]
["","","","","","",null,null,null,null,null,null,null,null,null,null,null,null,null,null,null,null,null,null,null,null,null,null,null,null,null,null,null,null,"",0,0,0,0,"xxx","xxx","xxx","xxx","xxx","xxx","xxx",{"$error":"#VALUE!"},0,null,"xxx","xxx","xxx",0]
["","","","","","",null,null,null,null,null,null,null,null,null,null,null,null,null,null,null,null,null,null,null,null,null,null,null,null,null,null,null,null,"",0,0,0,0,"xxx","xxx","xxx","xxx","xxx","xxx","xxx",{"$error":"#VALUE!"},0,null,"xxx","xxx","xxx",0]
["","","","","","",null,null,null,null,null,null,null,null,null,null,null,null,null,null,null,null,null,null,null,null,null,null,null,null,null,null,null,null,"",0,0,0,0,"xxx","xxx","xxx","xxx","xxx","xxx","xxx",{"$error":"#VALUE!"},0,null,"xxx","xxx","xxx",0]
["","","","","","",null,null,null,null,null,null,null,null,null,null,null,null,null,null,null,null,null,null,null,null,null,null,null,null,null,null,null,null,"",0,0,0,0,"xxx","xxx","xxx","xxx","xxx","xxx","xxx",{"$error":"#VALUE!"},0,null,"xxx","xxx","xxx",0]
["","","","","","",null,null,null,null,null,null,null,null,null,null,null,null,null,null,null,null,null,null,null,null,null,null,null,null,null,null,null,null,"",0,0,0,0,"xxx","xxx","xxx","xxx","xxx","xxx","xxx",{"$error":"#VALUE!"},0,null,"xxx","xxx","xxx",0]
["","","","","","",null,null,null,null,null,null,null,null,null,null,null,null,null,null,null,null,null,null,null,null,null,null,null,null,null,null,null,null,"",0,0,0,0,"xxx","xxx","xxx","xxx","xxx","xxx","xxx",{"$error":"#VALUE!"},0,null,"xxx","xxx","xxx",0]
["","","","","","",null,null,null,null,null,null,null,null,null,null,null,null,null,null,null,null,null,null,null,null,null,null,null,null,null,null,null,null,"",0,0,0,0,"xxx","xxx","xxx","xxx","xxx","xxx","xxx",{"$error":"#VALUE!"},0,null,"xxx","xxx","xxx",0]
["","","","","","",null,null,null,null,null,null,null,null,null,null,null,null,null,null,null,null,null,null,null,null,null,null,null,null,null,null,null,null,"",0,0,0,0,"xxx","xxx","xxx","xxx","xxx","xxx","xxx",{"$error":"#VALUE!"},0,null,"xxx","xxx","xxx",0]
["","","","","","",null,null,null,null,null,null,null,null,null,null,null,null,null,null,null,null,null,null,null,null,null,null,null,null,null,null,null,null,"",0,0,0,0,"xxx","xxx","xxx","xxx","xxx","xxx","xxx",{"$error":"#VALUE!"},0,null,"xxx","xxx","xxx",0]
["","","","","","",null,null,null,null,null,null,null,null,null,null,null,null,null,null,null,null,null,null,null,null,null,null,null,null,null,null,null,null,"",0,0,0,0,"xxx","xxx","xxx","xxx","xxx","xxx","xxx",{"$error":"#VALUE!"},0,null,"xxx","xxx","xxx",0]
["","","","","","",null,null,null,null,null,null,null,null,null,null,null,null,null,null,null,null,null,null,null,null,null,null,null,null,null,null,null,null,"",0,0,0,0,"xxx","xxx","xxx","xxx","xxx","xxx","xxx",{"$error":"#VALUE!"},0,null,"xxx","xxx","xxx",0]
["","","","","","",null,null,null,null,null,null,null,null,null,null,null,null,null,null,null,null,null,null,null,null,null,null,null,null,null,null,null,null,"",0,0,0,0,"xxx","xxx","xxx","xxx","xxx","xxx","xxx",{"$error":"#VALUE!"},0,null,"xxx","xxx","xxx",0]
["","","","","","",null,null,null,null,null,null,null,null,null,null,null,null,null,null,null,null,null,null,null,null,null,null,null,null,null,null,null,null,"",0,0,0,0,"xxx","xxx","xxx","xxx","xxx","xxx","xxx",{"$error":"#VALUE!"},0,null,"xxx","xxx","xxx",0]
["","","","","","",null,null,null,null,null,null,null,null,null,null,null,null,null,null,null,null,null,null,null,null,null,null,null,null,null,null,null,null,"",0,0,0,0,"xxx","xxx","xxx","xxx","xxx","xxx","xxx",{"$error":"#VALUE!"},0,null,"xxx","xxx","xxx",0]
["","","","","","",null,null,null,null,null,null,null,null,null,null,null,null,null,null,null,null,null,null,null,null,null,null,null,null,null,null,null,null,"",0,0,0,0,"xxx","xxx","xxx","xxx","xxx","xxx","xxx",{"$error":"#VALUE!"},0,null,"xxx","xxx","xxx",0]
["","","","","","",null,null,null,null,null,null,null,null,null,null,null,null,null,null,null,null,null,null,null,null,null,null,null,null,null,null,null,null,"",0,0,0,0,"xxx","xxx","xxx","xxx","xxx","xxx","xxx",{"$error":"#VALUE!"},0,null,"xxx","xxx","xxx",0]
["","","","","","",null,null,null,null,null,null,null,null,null,null,null,null,null,null,null,null,null,null,null,null,null,null,null,null,null,null,null,null,"",0,0,0,0,"xxx","xxx","xxx","xxx","xxx","xxx","xxx",{"$error":"#VALUE!"},0,null,"xxx","xxx","xxx",0]
["","","","","","",null,null,null,null,null,null,null,null,null,null,null,null,null,null,null,null,null,null,null,null,null,null,null,null,null,null,null,null,"",0,0,0,0,"xxx","xxx","xxx","xxx","xxx","xxx","xxx",{"$error":"#VALUE!"},0,null,"xxx","xxx","xxx",0]
["","","","","","",null,null,null,null,null,null,null,null,null,null,null,null,null,null,null,null,null,null,null,null,null,null,null,null,null,null,null,null,"",0,0,0,0,"xxx","xxx","xxx","xxx","xxx","xxx","xxx",{"$error":"#VALUE!"},0,null,"xxx","xxx","xxx",0]
["","","","","","",null,null,null,null,null,null,null,null,null,null,null,null,null,null,null,null,null,null,null,null,null,null,null,null,null,null,null,null,"",0,0,0,0,"xxx","xxx","xxx","xxx","xxx","xxx","xxx",{"$error":"#VALUE!"},0,null,"xxx","xxx","xxx",0]
["","","","","","",null,null,null,null,null,null,null,null,null,null,null,null,null,null,null,null,null,null,null,null,null,null,null,null,null,null,null,null,"",0,0,0,0,"xxx","xxx","xxx","xxx","xxx","xxx","xxx",{"$error":"#VALUE!"},0,null,"xxx","xxx","xxx",0]
["","","","","","",null,null,null,null,null,null,null,null,null,null,null,null,null,null,null,null,null,null,null,null,null,null,null,null,null,null,null,null,"",0,0,0,0,"xxx","xxx","xxx","xxx","xxx","xxx","xxx",{"$error":"#VALUE!"},0,null,"xxx","xxx","xxx",0]
["","","","","","",null,null,null,null,null,null,null,null,null,null,null,null,null,null,null,null,null,null,null,null,null,null,null,null,null,null,null,null,"",0,0,0,0,"xxx","xxx","xxx","xxx","xxx","xxx","xxx",{"$error":"#VALUE!"},0,null,"xxx","xxx","xxx",0]
["","","","","","",null,null,null,null,null,null,null,null,null,null,null,null,null,null,null,null,null,null,null,null,null,null,null,null,null,null,null,null,"",0,0,0,0,"xxx","xxx","xxx","xxx","xxx","xxx","xxx",{"$error":"#VALUE!"},0,null,"xxx","xxx","xxx",0]
["","","","","","",null,null,null,null,null,null,null,null,null,null,null,null,null,null,null,null,null,null,null,null,null,null,null,null,null,null,null,null,"",0,0,0,0,"xxx","xxx","xxx","xxx","xxx","xxx","xxx",{"$error":"#VALUE!"},0,null,"xxx","xxx","xxx",0]
["","","","","","",null,null,null,null,null,null,null,null,null,null,null,null,null,null,null,null,null,null,null,null,null,null,null,null,null,null,null,null,"",0,0,0,0,"xxx","xxx","xxx","xxx","xxx","xxx","xxx",{"$error":"#VALUE!"},0,null,"xxx","xxx","xxx",0]
["","","","","","",null,null,null,null,null,null,null,null,null,null,null,null,null,null,null,null,null,null,null,null,null,null,null,null,null,null,null,null,"",0,0,0,0,"xxx","xxx","xxx","xxx","xxx","xxx","xxx",{"$error":"#VALUE!"},0,null,"xxx","xxx","xxx",0]
["","","","","","",null,null,null,null,null,null,null,null,null,null,null,null,null,null,null,null,null,null,null,null,null,null,null,null,null,null,null,null,"",0,0,0,0,"xxx","xxx","xxx","xxx","xxx","xxx","xxx",{"$error":"#VALUE!"},0,null,"xxx","xxx","xxx",0]
["","","","","","",null,null,null,null,null,null,null,null,null,null,null,null,null,null,null,null,null,null,null,null,null,null,null,null,null,null,null,null,"",0,0,0,0,"xxx","xxx","xxx","xxx","xxx","xxx","xxx",{"$error":"#VALUE!"},0,null,"xxx","xxx","xxx",0]
["","","","","","",null,null,null,null,null,null,null,null,null,null,null,null,null,null,null,null,null,null,null,null,null,null,null,null,null,null,null,null,"",0,0,0,0,"xxx","xxx","xxx","xxx","xxx","xxx","xxx",{"$error":"#VALUE!"},0,null,"xxx","xxx","xxx",0]
["","","","","","",null,null,null,null,null,null,null,null,null,null,null,null,null,null,null,null,null,null,null,null,null,null,null,null,null,null,null,null,"",0,0,0,0,"xxx","xxx","xxx","xxx","xxx","xxx","xxx",{"$error":"#VALUE!"},0,null,"xxx","xxx","xxx",0]
["","","","","","",null,null,null,null,null,null,null,null,null,null,null,null,null,null,null,null,null,null,null,null,null,null,null,null,null,null,null,null,"",0,0,0,0,"xxx","xxx","xxx","xxx","xxx","xxx","xxx",{"$error":"#VALUE!"},0,null,"xxx","xxx","xxx",0]
["","","","","","",null,null,null,null,null,null,null,null,null,null,null,null,null,null,null,null,null,null,null,null,null,null,null,null,null,null,null,null,"",0,0,0,0,"xxx","xxx","xxx","xxx","xxx","xxx","xxx",{"$error":"#VALUE!"},0,null,"xxx","xxx","xxx",0]
[{"$f":"IF(ROW()<$AG$4+$W$5,\"O\",\"\")","v":""},{"$f":"IF(A470<>\"\",IF($G$4=\"\",\"Błąd\",$AC$2),\"\")","v":""},{"$f":"IF(A470<>\"\",IF($G$4=\"\",\"Błąd\",$AC$3),\"\")","v":""},"",{"$f":"IF(A470<>\"\",IF(AT470=0,\"N\",IF(AZ470=0,\"R\",\"Błąd\")),\"\")","v":""},{"$f":"IF(A470<>\"\",IF(AT470=0,MID(H470,6,2),IF(AZ470=0,\"PL\",\"Błąd\")),\"\")","v":""},null,null,null,null,null,null,null,null,null,null,null,null,null,null,null,null,null,null,null,null,null,null,null,null,null,null,null,null,{"$f":"IF(AND(O470>=$AK$2,O470<=$AK$3),VLOOKUP(O470,$Q$26:$U$56,5,FALSE),\"\")","v":""},{"$f":"IF(LEN(G470)>0,1,0)","v":0},{"$f":"IF(T(L470)<>\"\",1,0)","v":0},{"$f":"IF(T(N470)<>\"\",1,0)","v":0},{"$f":"IF(T(O470)<>\"\",1,0)","v":0},{"$f":"IF($AO470=0,IF(LEN($H470)<>12,1,0),\"xxx\")","v":"xxx"},{"$f":"IF(LEFT($H470,1)=\"Z\",0,IF($H470=\"\",\"xxx\",1))","v":"xxx"},{"$f":"IF($AO470=0,IF(AND(MID($H470,2,4)<>\"0000\",MID($H470,2,4)<>\"1000\"),1,0),\"xxx\")","v":"xxx"},{"$f":"IF($AO470=0,IF(AND(LEN($H470)>=6,CODE(MID($H470,6,1))>=65,CODE(MID($H470,6,1))<=90),0,1),\"xxx\")","v":"xxx"},{"$f":"IF($AO470=0,IF(AND(LEN($H470)>=7,CODE(MID($H470,7,1))>=65,CODE(MID($H470,7,1))<=90),0,1),\"xxx\")","v":"xxx"},{"$f":"IF($AO470=0,IF(ISNUMBER($AU470),0,1),\"xxx\")","v":"xxx"},"xxx",{"$error":"#VALUE!"},0,null,"xxx",{"$f":"IF($AO470=1,IF(ISNUMBER($BA470),0,1),\"xxx\")","v":"xxx"},"xxx",{"$f":"VALUE(H470)","v":0}]
["","","","","","",null,null,null,null,null,null,null,null,null,null,null,null,null,null,null,null,null,null,null,null,null,null,null,null,null,null,null,null,"",0,0,0,0,"xxx","xxx","xxx","xxx","xxx","xxx",{"$f":"IF(COUNTIF(AN471:AR471,\"xxx\")>0,\"xxx\",SUM(AN471:AS471))","v":"xxx"},{"$f":"VALUE(MID($H471,8,5))","v":{"$error":"#VALUE!"}},{"$f":"SUM(AP471:AS471)","v":0},null,{"$f":"IF(AO471=1,IF(LEN($H471)=9,0,1),\"xxx\")","v":"xxx"},"xxx",{"$f":"IF(COUNTIF(AX471:AY471,\"xxx\")>0,\"xxx\",SUM(AX471:AY471))","v":"xxx"},0]
["","","","","","",null,null,null,null,null,null,null,null,null,null,null,null,null,null,null,null,null,null,null,null,null,null,null,null,null,null,null,null,"",0,0,0,0,"xxx","xxx","xxx","xxx","xxx","xxx","xxx",{"$error":"#VALUE!"},0,null,"xxx","xxx","xxx",0]
["","","","","","",null,null,null,null,null,null,null,null,null,null,null,null,null,null,null,null,null,null,null,null,null,null,null,null,null,null,null,null,"",0,0,0,0,"xxx","xxx","xxx","xxx","xxx","xxx","xxx",{"$error":"#VALUE!"},0,null,"xxx","xxx","xxx",0]
["","","","","","",null,null,null,null,null,null,null,null,null,null,null,null,null,null,null,null,null,null,null,null,null,null,null,null,null,null,null,null,"",0,0,0,0,"xxx","xxx","xxx","xxx","xxx","xxx","xxx",{"$error":"#VALUE!"},0,null,"xxx","xxx","xxx",0]
["","","","","","",null,null,null,null,null,null,null,null,null,null,null,null,null,null,null,null,null,null,null,null,null,null,null,null,null,null,null,null,"",0,0,0,0,"xxx","xxx","xxx","xxx","xxx","xxx","xxx",{"$error":"#VALUE!"},0,null,"xxx","xxx","xxx",0]
["","","","","","",null,null,null,null,null,null,null,null,null,null,null,null,null,null,null,null,null,null,null,null,null,null,null,null,null,null,null,null,"",0,0,0,0,"xxx","xxx","xxx","xxx","xxx","xxx","xxx",{"$error":"#VALUE!"},0,null,"xxx","xxx","xxx",0]
["","","","","","",null,null,null,null,null,null,null,null,null,null,null,null,null,null,null,null,null,null,null,null,null,null,null,null,null,null,null,null,"",0,0,0,0,"xxx","xxx","xxx","xxx","xxx","xxx","xxx",{"$error":"#VALUE!"},0,null,"xxx","xxx","xxx",0]
["","","","","","",null,null,null,null,null,null,null,null,null,null,null,null,null,null,null,null,null,null,null,null,null,null,null,null,null,null,null,null,"",0,0,0,0,"xxx","xxx","xxx","xxx","xxx","xxx","xxx",{"$error":"#VALUE!"},0,null,"xxx","xxx","xxx",0]
["","","","","","",null,null,null,null,null,null,null,null,null,null,null,null,null,null,null,null,null,null,null,null,null,null,null,null,null,null,null,null,"",0,0,0,0,"xxx","xxx","xxx","xxx","xxx","xxx","xxx",{"$error":"#VALUE!"},0,null,"xxx","xxx","xxx",0]
["","","","","","",null,null,null,null,null,null,null,null,null,null,null,null,null,null,null,null,null,null,null,null,null,null,null,null,null,null,null,null,"",0,0,0,0,"xxx","xxx","xxx","xxx","xxx","xxx","xxx",{"$error":"#VALUE!"},0,null,"xxx","xxx","xxx",0]
["","","","","","",null,null,null,null,null,null,null,null,null,null,null,null,null,null,null,null,null,null,null,null,null,null,null,null,null,null,null,null,"",0,0,0,0,"xxx","xxx","xxx","xxx","xxx","xxx","xxx",{"$error":"#VALUE!"},0,null,"xxx","xxx","xxx",0]
["","","","","","",null,null,null,null,null,null,null,null,null,null,null,null,null,null,null,null,null,null,null,null,null,null,null,null,null,null,null,null,"",0,0,0,0,"xxx","xxx","xxx","xxx","xxx","xxx","xxx",{"$error":"#VALUE!"},0,null,"xxx","xxx","xxx",0]
["","","",{"$f":"IF(A483<>\"\",IF(OR($S$15=\"Błąd\",$S$16=\"Błąd\",O483=\"\",O483<$AK$2,O483>$AK$3),\"Błąd\",O483),\"\")","v":""},"","",null,null,null,null,null,null,null,null,null,null,null,null,null,null,null,null,null,null,null,null,null,null,null,null,null,null,null,null,"",0,0,0,0,"xxx","xxx","xxx","xxx","xxx","xxx","xxx",{"$error":"#VALUE!"},0,null,"xxx","xxx","xxx",0]
["","","","","","",null,null,null,null,null,null,null,null,null,null,null,null,null,null,null,null,null,null,null,null,null,null,null,null,null,null,null,null,"",0,0,0,0,"xxx","xxx","xxx","xxx","xxx","xxx","xxx",{"$error":"#VALUE!"},0,null,"xxx","xxx","xxx",0]
["","","","","","",null,null,null,null,null,null,null,null,null,null,null,null,null,null,null,null,null,null,null,null,null,null,null,null,null,null,null,null,"",0,0,0,0,"xxx","xxx","xxx","xxx","xxx","xxx","xxx",{"$error":"#VALUE!"},0,null,"xxx","xxx","xxx",0]
["","","","","","",null,null,null,null,null,null,null,null,null,null,null,null,null,null,null,null,null,null,null,null,null,null,null,null,null,null,null,null,"",0,0,0,0,"xxx","xxx","xxx","xxx","xxx","xxx","xxx",{"$error":"#VALUE!"},0,null,"xxx","xxx","xxx",0]
["","","","","","",null,null,null,null,null,null,null,null,null,null,null,null,null,null,null,null,null,null,null,null,null,null,null,null,null,null,null,null,"",0,0,0,0,"xxx","xxx","xxx","xxx","xxx","xxx","xxx",{"$error":"#VALUE!"},0,null,"xxx","xxx","xxx",0]
["","","","","","",null,null,null,null,null,null,null,null,null,null,null,null,null,null,null,null,null,null,null,null,null,null,null,null,null,null,null,null,"",0,0,0,0,"xxx","xxx","xxx","xxx","xxx","xxx","xxx",{"$error":"#VALUE!"},0,null,"xxx","xxx","xxx",0]
["","","","","","",null,null,null,null,null,null,null,null,null,null,null,null,null,null,null,null,null,null,null,null,null,null,null,null,null,null,null,null,"",0,0,0,0,"xxx","xxx","xxx","xxx","xxx","xxx","xxx",{"$error":"#VALUE!"},0,null,"xxx","xxx","xxx",0]
["","","","","","",null,null,null,null,null,null,null,null,null,null,null,null,null,null,null,null,null,null,null,null,null,null,null,null,null,null,null,null,"",0,0,0,0,"xxx","xxx","xxx","xxx","xxx","xxx","xxx",{"$error":"#VALUE!"},0,null,"xxx","xxx","xxx",0]
["","","","","","",null,null,null,null,null,null,null,null,null,null,null,null,null,null,null,null,null,null,null,null,null,null,null,null,null,null,null,null,"",0,0,0,0,"xxx","xxx","xxx","xxx","xxx","xxx","xxx",{"$error":"#VALUE!"},0,null,"xxx","xxx","xxx",0]
["","","","","","",null,null,null,null,null,null,null,null,null,null,null,null,null,null,null,null,null,null,null,null,null,null,null,null,null,null,null,null,"",0,0,0,0,"xxx","xxx","xxx","xxx","xxx","xxx","xxx",{"$error":"#VALUE!"},0,null,"xxx","xxx","xxx",0]
["","","","","","",null,null,null,null,null,null,null,null,null,null,null,null,null,null,null,null,null,null,null,null,null,null,null,null,null,null,null,null,"",0,0,0,0,"xxx","xxx","xxx","xxx","xxx","xxx","xxx",{"$error":"#VALUE!"},0,null,"xxx","xxx","xxx",0]
["","","","","","",null,null,null,null,null,null,null,null,null,null,null,null,null,null,null,null,null,null,null,null,null,null,null,null,null,null,null,null,"",0,0,0,0,"xxx","xxx","xxx","xxx","xxx","xxx","xxx",{"$error":"#VALUE!"},0,null,"xxx","xxx","xxx",0]
["","","","","","",null,null,null,null,null,null,null,null,null,null,null,null,null,null,null,null,null,null,null,null,null,null,null,null,null,null,null,null,"",0,0,0,0,"xxx","xxx","xxx","xxx","xxx","xxx","xxx",{"$error":"#VALUE!"},0,null,"xxx","xxx","xxx",0]
["","","","","","",null,null,null,null,null,null,null,null,null,null,null,null,null,null,null,null,null,null,null,null,null,null,null,null,null,null,null,null,"",0,0,0,0,"xxx","xxx","xxx","xxx","xxx","xxx","xxx",{"$error":"#VALUE!"},0,null,"xxx","xxx","xxx",0]
["","","","","","",null,null,null,null,null,null,null,null,null,null,null,null,null,null,null,null,null,null,null,null,null,null,null,null,null,null,null,null,"",0,0,0,0,"xxx","xxx","xxx","xxx","xxx","xxx","xxx",{"$error":"#VALUE!"},0,null,"xxx","xxx","xxx",0]
["","","","","","",null,null,null,null,null,null,null,null,null,null,null,null,null,null,null,null,null,null,null,null,null,null,null,null,null,null,null,null,"",0,0,0,0,"xxx","xxx","xxx","xxx","xxx","xxx","xxx",{"$error":"#VALUE!"},0,null,"xxx","xxx","xxx",0]
["","","","","","",null,null,null,null,null,null,null,null,null,null,null,null,null,null,null,null,null,null,null,null,null,null,null,null,null,null,null,null,"",0,0,0,0,"xxx","xxx","xxx","xxx","xxx","xxx","xxx",{"$error":"#VALUE!"},0,null,"xxx","xxx","xxx",0]
["",{"$f":"IF(A500<>\"\",IF($G$4=\"\",\"Błąd\",$AC$2),\"\")","v":""},{"$f":"IF(A500<>\"\",IF($G$4=\"\",\"Błąd\",$AC$3),\"\")","v":""},{"$f":"IF(A500<>\"\",IF(OR($S$15=\"Błąd\",$S$16=\"Błąd\",O500=\"\",O500<$AK$2,O500>$AK$3),\"Błąd\",O500),\"\")","v":""},{"$f":"IF(A500<>\"\",IF(AT500=0,\"N\",IF(AZ500=0,\"R\",\"Błąd\")),\"\")","v":""},{"$f":"IF(A500<>\"\",IF(AT500=0,MID(H500,6,2),IF(AZ500=0,\"PL\",\"Błąd\")),\"\")","v":""},null,null,null,null,null,null,null,null,null,null,null,null,null,null,null,null,null,null,null,null,null,null,null,null,null,null,null,null,{"$f":"IF(AND(O500>=$AK$2,O500<=$AK$3),VLOOKUP(O500,$Q$26:$U$56,5,FALSE),\"\")","v":""},{"$f":"IF(LEN(G500)>0,1,0)","v":0},{"$f":"IF(T(L500)<>\"\",1,0)","v":0},{"$f":"IF(T(N500)<>\"\",1,0)","v":0},{"$f":"IF(T(O500)<>\"\",1,0)","v":0},{"$f":"IF($AO500=0,IF(LEN($H500)<>12,1,0),\"xxx\")","v":"xxx"},{"$f":"IF(LEFT($H500,1)=\"Z\",0,IF($H500=\"\",\"xxx\",1))","v":"xxx"},{"$f":"IF($AO500=0,IF(AND(MID($H500,2,4)<>\"0000\",MID($H500,2,4)<>\"1000\"),1,0),\"xxx\")","v":"xxx"},{"$f":"IF($AO500=0,IF(AND(LEN($H500)>=6,CODE(MID($H500,6,1))>=65,CODE(MID($H500,6,1))<=90),0,1),\"xxx\")","v":"xxx"},{"$f":"IF($AO500=0,IF(AND(LEN($H500)>=7,CODE(MID($H500,7,1))>=65,CODE(MID($H500,7,1))<=90),0,1),\"xxx\")","v":"xxx"},{"$f":"IF($AO500=0,IF(ISNUMBER($AU500),0,1),\"xxx\")","v":"xxx"},{"$f":"IF(COUNTIF(AN500:AR500,\"xxx\")>0,\"xxx\",SUM(AN500:AS500))","v":"xxx"},{"$f":"VALUE(MID($H500,8,5))","v":{"$error":"#VALUE!"}},{"$f":"SUM(AP500:AS500)","v":0},null,{"$f":"IF(AO500=1,IF(LEN($H500)=9,0,1),\"xxx\")","v":"xxx"},{"$f":"IF($AO500=1,IF(ISNUMBER($BA500),0,1),\"xxx\")","v":"xxx"},{"$f":"IF(COUNTIF(AX500:AY500,\"xxx\")>0,\"xxx\",SUM(AX500:AY500))","v":"xxx"},{"$f":"VALUE(H500)","v":0}]